Workbook

Sheet 第2編表紙
A2: 第２編 人 口
B16: 人口及び世帯年齢構成ピラミッド
K18: 年少人口
K22: 生産年齢人口
K34: 老齢人口

Sheet 人口の推移
A1: １．住民基本台帳人口
A3: １) 人口の推移（年次別）
D4: （各年9月末現在）
A5: 年 次 | B5: 世 帯 数 | C5: 人 口 | F5: 人口密度 | G5: 備 考
C6: 総数 | D6: 男 | E6: 女 | F6: (1k㎡当たり)
A7: 明治30年 | B7: 143 | C7: 572 | D7: 294 | E7: 278 | F7: 1.9 | G7: 戸町役場開設
A8: 44 | B8: 940 | C8: 5584 | D8: 2812 | E8: 2772 | F8: 18.9
A9: 昭和20年 | B9: 1925 | C9: 11235 | D9: 5443 | E9: 5792 | F9: 38.2
A10: 26 | B10: 2378 | C10: 13496 | D10: 6811 | E10: 6685 | F10: 45.9 | G10: 町制施行
A11: 27 | B11: 2767 | C11: =SUM(D11:E11) -> 14233 | D11: 7057 | E11: 7176 | F11: =C11/294.87 -> 48.26872859
A12: 28 | B12: 3221 | C12: =SUM(D12:E12) -> 16109 | D12: 7959 | E12: 8150 | F12: =C12/294.87 -> 54.63085427
A13: 29 | B13: 3619 | C13: 18175 | D13: 9010 | E13: 9165 | F13: 61.63733171
A14: 30 | B14: 4098 | C14: 19576 | D14: 9691 | E14: 9885 | F14: 66.38857802
A15: 31 | B15: 4535 | C15: 20972 | D15: 10424 | E15: 10548 | F15: 71.1228677
A16: 32 | B16: 4928 | C16: 22107 | D16: 11024 | E16: 11083 | F16: 74.97202157
A17: 33 | B17: 10016 | C17: 27966 | D17: 16431 | E17: 11535 | F17: 94.84179469
A18: 34 | B18: 10689 | C18: 28323 | D18: 16840 | E18: 11483 | F18: 96.05249771
A19: 35 | B19: 11175 | C19: 29614 | D19: 17564 | E19: 12050 | F19: 100.4306983
A20: 36 | B20: 10614 | C20: 28798 | D20: 16930 | E20: 11868 | F20: 97.66337708
A21: 37 | B21: 10082 | C21: 28346 | D21: 16439 | E21: 11907 | F21: 96.13049819
A22: 38 | B22: 9837 | C22: 29190 | D22: 16560 | E22: 12630 | F22: 98.99277648
A23: 39 | B23: 10265 | C23: 30327 | D23: 17058 | E23: 13269 | F23: 102.848713
A24: 40 | B24: 10051 | C24: 31085 | D24: 17111 | E24: 13974 | F24: 105.5
A25: 41 | B25: 10065 | C25: =SUM(D25:E25) -> 31621 | D25: 17190 | E25: 14431 | F25: =C25/294.87 -> 107.2370875
A26: 42 | B26: 10100 | C26: =SUM(D26:E26) -> 32369 | D26: 17383 | E26: 14986 | F26: =C26/294.87 -> 109.7737986
A27: 43 | B27: 17563 | C27: =SUM(D27:E27) -> 32965 | D27: 17563 | E27: 15402 | F27: =C27/294.87 -> 111.7950283
A28: 44 | B28: 10428 | C28: =SUM(D28:E28) -> 33566 | D28: 17793 | E28: 15773 | F28: =C28/294.87 -> 113.8332146
A29: 45 | B29: 10756 | C29: 34619 | D29: 18200 | E29: 16419 | F29: 117.5
A30: 46 | B30: 11237 | C30: 35668 | D30: 18775 | E30: 16893 | F30: 121 | G30: 市制施行
A31: 47 | B31: 11592 | C31: =SUM(D31:E31) -> 36645 | D31: 19191 | E31: 17454 | F31: =C31/294.87 -> 124.2751043
A32: 48 | B32: 11941 | C32: =SUM(D32:E32) -> 37798 | D32: 19753 | E32: 18045 | F32: =C32/294.87 -> 128.185302
A33: 49 | B33: 12366 | C33: =SUM(D33:E33) -> 38876 | D33: 20310 | E33: 18566 | F33: =C33/294.87 -> 131.8411503
A34: 50 | B34: 12829 | C34: 39805 | D34: 20822 | E34: 18983 | F34: 135.1
A35: 51 | B35: 13146 | C35: =SUM(D35:E35) -> 40664 | D35: 21179 | E35: 19485 | F35: =C35/294.87 -> 137.9048394
A36: 52 | B36: 13447 | C36: =SUM(D36:E36) -> 41694 | D36: 21649 | E36: 20045 | F36: =C36/294.87 -> 141.3979042
A37: 53 | B37: 13679 | C37: =SUM(D37:E37) -> 42169 | D37: 21834 | E37: 20335 | F37: =C37/294.87 -> 143.0087835
A38: 54 | B38: 14048 | C38: =SUM(D38:E38) -> 42922 | D38: 22215 | E38: 20707 | F38: =C38/294.87 -> 145.5624512
A39: 55 | B39: 14343 | C39: 43465 | D39: 22481 | E39: 20984 | F39: 157.5
A40: 56 | B40: 14722 | C40: =SUM(D40:E40) -> 44256 | D40: 22860 | E40: 21396 | F40: =C40/294.87 -> 150.0864788
A41: 57 | B41: 15150 | C41: =SUM(D41:E41) -> 45510 | D41: 23433 | E41: 22077 | F41: =C41/294.87 -> 154.3392003
A42: 58 | B42: 15677 | C42: =SUM(D42:E42) -> 46748 | D42: 23955 | E42: 22793 | F42: =C42/294.87 -> 158.5376607
A43: 59 | B43: 16714 | C43: =SUM(D43:E43) -> 47817 | D43: 24439 | E43: 23378 | F43: =C43/294.87 -> 162.1629871
A44: 60 | B44: 16578 | C44: 48724 | D44: 24786 | E44: 23938 | F44: 165.3
A45: 61 | B45: 17144 | C45: =SUM(D45:E45) -> 49574 | D45: 25199 | E45: 24375 | F45: =C45/294.87 -> 168.1215451
A46: 62 | B46: 17757 | C46: =SUM(D46:E46) -> 50785 | D46: 25750 | E46: 25035 | F46: =C46/294.87 -> 172.2284397
A47: 63 | B47: 18423 | C47: =SUM(D47:E47) -> 52213 | D47: 26413 | E47: 25800 | F47: =C47/294.87 -> 177.0712517
A48: 平成元年 | B48: 19248 | C48: 53962 | D48: 27335 | E48: 26627 | F48: 183
A49: 2 | B49: 20145 | C49: 55813 | D49: 28262 | E49: 27551 | F49: 189.3
A50: 3 | B50: 21016 | C50: =SUM(D50:E50) -> 57443 | D50: 29016 | E50: 28427 | F50: =C50/294.87 -> 194.8078814
A51: 4 | B51: 21799 | C51: =SUM(D51:E51) -> 58978 | D51: 29775 | E51: 29203 | F51: =C51/294.87 -> 200.0135653
A52: 5 | B52: 22777 | C52: =SUM(D52:E52) -> 60484 | D52: 30750 | E52: 29734 | F52: =C52/294.87 -> 205.1209007
A53: 6 | B53: 23094 | C53: =SUM(D53:E53) -> 61356 | D53: 30988 | E53: 30368 | F53: =C53/294.87 -> 208.0781361
A54: 7 | B54: 23723 | C54: 62372 | D54: 31531 | E54: 30841 | F54: 211.5
A55: 8 | B55: 24356 | C55: 63275 | D55: 31952 | E55: 31323 | F55: 214.6
A56: 9 | B56: 24899 | C56: 64011 | D56: 32284 | E56: 31727 | F56: 217.1
A57: 10 | B57: 25356 | C57: 64485 | D57: 32462 | E57: 32023 | F57: 218.7
A58: 11 | B58: 25719 | C58: 64897 | D58: 32590 | E58: 32307 | F58: 220.1
A59: 12 | B59: 26092 | C59: 65310 | D59: 32697 | E59: 32613 | F59: 221.5
A60: 13 | B60: 26388 | C60: 65590 | D60: 32785 | E60: 32805 | F60: 222.4
A61: 14 | B61: 26893 | C61: 66172 | D61: 33055 | E61: 33117 | F61: 224.4
A62: 15 | B62: 27378 | C62: 66718 | D62: 33278 | E62: 33440 | F62: 226.3
A63: 16 | B63: 27461 | C63: 67191 | D63: 33391 | E63: 33800 | F63: 227.9
A64: 17 | B64: 28205 | C64: 67598 | D64: 33584 | E64: 34014 | F64: =C64/294.87 -> 229.2467867
A65: 18 | B65: 28725 | C65: 67942 | D65: 33688 | E65: 34254 | F65: 230.4134025
A66: 19 | B66: 29188 | C66: 68417 | D66: 33763 | E66: 34654 | F66: 232.0242819
A67: 20 | B67: 29731 | C67: 68685 | D67: 33867 | E67: 34818 | F67: 232.933157
A68: 21 | B68: 29958 | C68: 68608 | D68: 33773 | E68: 35835 | F68: 232.7
A69: 22 | B69: 30316 | C69: 68809 | D69: 33870 | E69: 34939 | F69: 233.4
A70: 23 | B70: 30575 | C70: 68938 | D70: 33833 | E70: 35105 | F70: 233.8
A71: 24 | B71: 30909 | C71: 69126 | D71: 33806 | E71: 35320 | F71: =69126/294.87 -> 234.4287313
A72: 25 | B72: 31053 | C72: 68876 | D72: 33648 | E72: 35228 | F72: 233.5809001
A73: 26 | B73: 31338 | C73: 68950 | D73: 33610 | E73: 35340 | F73: 233.8318581
A74: 27 | B74: 31688 | C74: 68974 | D74: 33589 | E74: 35385 | F74: 233.9
A75: 28 | B75: 32266 | C75: 69212 | D75: 33646 | E75: 35566 | F75: 234.7
A76: 29 | B76: 32791 | C76: 69529 | D76: 33822 | E76: 35707 | F76: 235.8
A77: 30 | B77: 33250 | C77: =D77+E77 -> 69794 | D77: 33932 | E77: 35862 | F77: 236.7
A78: 〈資料〉生活環境部市民課 | G78: （単位：人）
A79: 注) 調査月日…明治は不明、昭和20年は11月1日
A80: 住民基本台帳法が改正され、平成24年7月より外国人住民が適用対象となった。

Sheet 地域の人口
A1: ２）地域の人口 | AA1: (各年9月末日)
A2: 地 区 | B2: 29年 | F2: 30年 | J2: 地 区 | K2: 29年 | O2: 30年 | S2: 地 区 | T2: 29年 | X2: 30年
B3: 人 口 | E3: 世 帯 | F3: 人 口 | I3: 世 帯 | K3: 人 口 | N3: 世 帯 | O3: 人 口 | R3: 世 帯 | T3: 人 口 | W3: 世 帯 | X3: 人 口 | AA3: 世 帯
B4: 計 | C4: 男 | D4: 女 | F4: 計 | G4: 男 | H4: 女 | K4: 計 | L4: 男 | M4: 女 | O4: 計 | P4: 男 | Q4: 女 | T4: 計 | U4: 男 | V4: 女 | X4: 計 | Y4: 男 | Z4: 女
A5: 漁太 | B5: 142 | C5: 71 | D5: 71 | E5: 67 | F5: 146 | G5: 72 | H5: 74 | I5: 70 | J5: 漁町 | K5: 1054 | L5: 521 | M5: 533 | N5: 580 | O5: 1018 | P5: 506 | Q5: 512 | R5: 578 | S5: 美咲野5丁目 | T5: 252 | U5: 122 | V5: 130 | W5: 96 | X5: 248 | Y5: 121 | Z5: 127 | AA5: 96
A6: 林田 | B6: 33 | C6: 16 | D6: 17 | E6: 19 | F6: 36 | G6: 16 | H6: 20 | I6: 21 | J6: 福住町1丁目 | K6: 703 | L6: 352 | M6: 351 | N6: 367 | O6: 694 | P6: 357 | Q6: 337 | R6: 369 | S6: 美咲野6丁目 | T6: 396 | U6: 192 | V6: 204 | W6: 137 | X6: 387 | Y6: 185 | Z6: 202 | AA6: 138
A7: 春日 | B7: 127 | C7: 68 | D7: 59 | E7: 59 | F7: 125 | G7: 67 | H7: 58 | I7: 60 | J7: 福住町2丁目 | K7: 369 | L7: 176 | M7: 193 | N7: 181 | O7: 373 | P7: 174 | Q7: 199 | R7: 182 | S7: 恵み野東1丁目 | T7: 297 | U7: 137 | V7: 160 | W7: 125 | X7: 301 | Y7: 139 | Z7: 162 | AA7: 128
A8: 中央 | B8: 248 | C8: 126 | D8: 122 | E8: 95 | F8: 247 | G8: 127 | H8: 120 | I8: 93 | J8: 福住町3丁目 | K8: 578 | L8: 272 | M8: 306 | N8: 279 | O8: 573 | P8: 268 | Q8: 305 | R8: 273 | S8: 恵み野東2丁目 | T8: 545 | U8: 260 | V8: 285 | W8: 231 | X8: 554 | Y8: 264 | Z8: 290 | AA8: 238
A9: 上山口 | B9: 199 | C9: 97 | D9: 102 | E9: 87 | F9: 200 | G9: 95 | H9: 105 | I9: 88 | J9: 新町 | K9: 77 | L9: 37 | M9: 40 | N9: 27 | O9: 77 | P9: 35 | Q9: 42 | R9: 27 | S9: 恵み野東3丁目 | T9: 391 | U9: 189 | V9: 202 | W9: 171 | X9: 392 | Y9: 192 | Z9: 200 | AA9: 174
A10: 戸磯 | B10: 146 | C10: 65 | D10: 81 | E10: 76 | F10: 139 | G10: 62 | H10: 77 | I10: 71 | J10: 本町 | K10: 456 | L10: 226 | M10: 230 | N10: 225 | O10: 445 | P10: 223 | Q10: 222 | R10: 214 | S10: 恵み野東4丁目 | T10: 894 | U10: 446 | V10: 448 | W10: 301 | X10: 885 | Y10: 437 | Z10: 448 | AA10: 300
A11: 恵南 | B11: 763 | C11: 485 | D11: 278 | E11: 465 | F11: 754 | G11: 483 | H11: 271 | I11: 461 | J11: 有明町1丁目 | K11: 421 | L11: 203 | M11: 218 | N11: 245 | O11: 424 | P11: 199 | Q11: 225 | R11: 244 | S11: 恵み野東5丁目 | T11: 576 | U11: 278 | V11: 298 | W11: 260 | X11: 582 | Y11: 283 | Z11: 299 | AA11: 259
A12: 和光町1丁目 | B12: 463 | C12: 227 | D12: 236 | E12: 228 | F12: 450 | G12: 219 | H12: 231 | I12: 221 | J12: 有明町2丁目 | K12: 501 | L12: 250 | M12: 251 | N12: 238 | O12: 491 | P12: 245 | Q12: 246 | R12: 233 | S12: 恵み野東6丁目 | T12: 475 | U12: 227 | V12: 248 | W12: 196 | X12: 477 | Y12: 225 | Z12: 252 | AA12: 201
A13: 和光町2丁目 | B13: 649 | C13: 327 | D13: 322 | E13: 267 | F13: 643 | G13: 330 | H13: 313 | I13: 271 | J13: 有明町3丁目 | K13: 269 | L13: 120 | M13: 149 | N13: 135 | O13: 249 | P13: 113 | Q13: 136 | R13: 126 | S13: 恵み野東7丁目 | T13: 543 | U13: 262 | V13: 281 | W13: 211 | X13: 556 | Y13: 266 | Z13: 290 | AA13: 219
A14: 和光町3丁目 | B14: 604 | C14: 308 | D14: 296 | E14: 289 | F14: 618 | G14: 314 | H14: 304 | I14: 313 | J14: 有明町4丁目 | K14: 295 | L14: 147 | M14: 148 | N14: 142 | O14: 268 | P14: 130 | Q14: 138 | R14: 133 | S14: 恵み野西1丁目 | T14: 697 | U14: 311 | V14: 386 | W14: 328 | X14: 697 | Y14: 311 | Z14: 386 | AA14: 331
A15: 和光町4丁目 | B15: 462 | C15: 231 | D15: 231 | E15: 216 | F15: 440 | G15: 218 | H15: 222 | I15: 207 | J15: 有明町5丁目 | K15: 292 | L15: 141 | M15: 151 | N15: 126 | O15: 286 | P15: 138 | Q15: 148 | R15: 130 | S15: 恵み野西2丁目 | T15: 242 | U15: 113 | V15: 129 | W15: 117 | X15: 264 | Y15: 118 | Z15: 146 | AA15: 143
A16: 和光町5丁目 | B16: 884 | C16: 474 | D16: 410 | E16: 453 | F16: 860 | G16: 459 | H16: 401 | I16: 449 | J16: 有明町6丁目 | K16: 378 | L16: 192 | M16: 186 | N16: 199 | O16: 386 | P16: 198 | Q16: 188 | R16: 204 | S16: 恵み野西3丁目 | T16: 342 | U16: 166 | V16: 176 | W16: 160 | X16: 338 | Y16: 164 | Z16: 174 | AA16: 158
A17: 駒場町1丁目 | B17: 653 | C17: 331 | D17: 322 | E17: 348 | F17: 678 | G17: 337 | H17: 341 | I17: 366 | J17: 大町1丁目 | K17: 218 | L17: 108 | M17: 110 | N17: 110 | O17: 231 | P17: 111 | Q17: 120 | R17: 117 | S17: 恵み野西4丁目 | T17: 464 | U17: 220 | V17: 244 | W17: 207 | X17: 465 | Y17: 216 | Z17: 249 | AA17: 212
A18: 駒場町2丁目 | B18: 406 | C18: 190 | D18: 216 | E18: 176 | F18: 416 | G18: 194 | H18: 222 | I18: 181 | J18: 大町2丁目 | K18: 169 | L18: 90 | M18: 79 | N18: 95 | O18: 188 | P18: 99 | Q18: 89 | R18: 104 | S18: 恵み野西5丁目 | T18: 282 | U18: 119 | V18: 163 | W18: 151 | X18: 281 | Y18: 118 | Z18: 163 | AA18: 154
A19: 駒場町3丁目 | B19: 303 | C19: 140 | D19: 163 | E19: 143 | F19: 300 | G19: 139 | H19: 161 | I19: 144 | J19: 大町3丁目 | K19: 265 | L19: 132 | M19: 133 | N19: 126 | O19: 264 | P19: 130 | Q19: 134 | R19: 131 | S19: 恵み野西6丁目 | T19: 827 | U19: 381 | V19: 446 | W19: 374 | X19: 820 | Y19: 386 | Z19: 434 | AA19: 382
A20: 駒場町4丁目 | B20: 366 | C20: 181 | D20: 185 | E20: 176 | F20: 363 | G20: 180 | H20: 183 | I20: 176 | J20: 大町4丁目 | K20: 188 | L20: 94 | M20: 94 | N20: 94 | O20: 176 | P20: 85 | Q20: 91 | R20: 89 | S20: 恵み野南1丁目 | T20: 268 | U20: 109 | V20: 159 | W20: 149 | X20: 263 | Y20: 107 | Z20: 156 | AA20: 146
A21: 駒場町5丁目 | B21: 206 | C21: 101 | D21: 105 | E21: 101 | F21: 225 | G21: 110 | H21: 115 | I21: 111 | J21: 文京町1丁目 | K21: 588 | L21: 278 | M21: 310 | N21: 257 | O21: 571 | P21: 269 | Q21: 302 | R21: 249 | S21: 恵み野南2丁目 | T21: 504 | U21: 239 | V21: 265 | W21: 235 | X21: 501 | Y21: 234 | Z21: 267 | AA21: 235
A22: 駒場町6丁目 | B22: 337 | C22: 164 | D22: 173 | E22: 181 | F22: 333 | G22: 167 | H22: 166 | I22: 184 | J22: 文京町2丁目 | K22: 473 | L22: 219 | M22: 254 | N22: 201 | O22: 483 | P22: 221 | Q22: 262 | R22: 200 | S22: 恵み野南3丁目 | T22: 609 | U22: 276 | V22: 333 | W22: 278 | X22: 599 | Y22: 275 | Z22: 324 | AA22: 277
A23: 白樺町1丁目 | B23: 362 | C23: 176 | D23: 186 | E23: 164 | F23: 357 | G23: 173 | H23: 184 | I23: 166 | J23: 文京町3丁目 | K23: 147 | L23: 72 | M23: 75 | N23: 76 | O23: 151 | P23: 75 | Q23: 76 | R23: 74 | S23: 恵み野南4丁目 | T23: 731 | U23: 343 | V23: 388 | W23: 329 | X23: 715 | Y23: 332 | Z23: 383 | AA23: 327
A24: 白樺町2丁目 | B24: 338 | C24: 179 | D24: 159 | E24: 167 | F24: 317 | G24: 165 | H24: 152 | I24: 159 | J24: 文京町4丁目 | K24: 667 | L24: 332 | M24: 335 | N24: 289 | O24: 661 | P24: 318 | Q24: 343 | R24: 291 | S24: 恵み野南5丁目 | X24: 13 | Y24: 8 | Z24: 5 | AA24: 8
A25: 白樺町3丁目 | B25: 633 | C25: 302 | D25: 331 | E25: 254 | F25: 641 | G25: 309 | H25: 332 | I25: 265 | J25: 牧場 | K25: 282 | L25: 137 | M25: 145 | N25: 166 | O25: 271 | P25: 134 | Q25: 137 | R25: 163 | S25: 恵み野北1丁目 | T25: 468 | U25: 228 | V25: 240 | W25: 211 | X25: 459 | Y25: 221 | Z25: 238 | AA25: 205
A26: 白樺町4丁目 | B26: 25 | C26: 16 | D26: 9 | E26: 15 | F26: 21 | G26: 13 | H26: 8 | I26: 14 | J26: 盤尻 | K26: 17 | L26: 9 | M26: 8 | N26: 9 | O26: 18 | P26: 10 | Q26: 8 | R26: 9 | S26: 恵み野北2丁目 | T26: 504 | U26: 238 | V26: 266 | W26: 221 | X26: 496 | Y26: 235 | Z26: 261 | AA26: 218
A27: 黄金北1丁目 | B27: 589 | C27: 298 | D27: 291 | E27: 287 | F27: 596 | G27: 294 | H27: 302 | I27: 297 | J27: 桜森 | S27: 恵み野北3丁目 | T27: 317 | U27: 137 | V27: 180 | W27: 178 | X27: 311 | Y27: 137 | Z27: 174 | AA27: 177
A28: 黄金北2丁目 | B28: 581 | C28: 261 | D28: 320 | E28: 263 | F28: 577 | G28: 263 | H28: 314 | I28: 265 | J28: 中島町1丁目 | K28: 633 | L28: 311 | M28: 322 | N28: 283 | O28: 637 | P28: 311 | Q28: 326 | R28: 286 | S28: 恵み野北4丁目 | T28: 325 | U28: 154 | V28: 171 | W28: 138 | X28: 328 | Y28: 163 | Z28: 165 | AA28: 145
A29: 黄金北3丁目 | B29: 810 | C29: 387 | D29: 423 | E29: 400 | F29: 792 | G29: 383 | H29: 409 | I29: 387 | J29: 中島町2丁目 | K29: 464 | L29: 214 | M29: 250 | N29: 217 | O29: 481 | P29: 221 | Q29: 260 | R29: 224 | S29: 恵み野北5丁目 | T29: 443 | U29: 220 | V29: 223 | W29: 182 | X29: 586 | Y29: 291 | Z29: 295 | AA29: 227
A30: 黄金北4丁目 | B30: 710 | C30: 338 | D30: 372 | E30: 321 | F30: 679 | G30: 324 | H30: 355 | I30: 316 | J30: 中島町3丁目 | K30: 205 | L30: 100 | M30: 105 | N30: 80 | O30: 217 | P30: 105 | Q30: 112 | R30: 85 | S30: 恵み野北6丁目 | T30: 645 | U30: 306 | V30: 339 | W30: 264 | X30: 642 | Y30: 304 | Z30: 338 | AA30: 274
A31: 黄金中央１丁目 | B31: 536 | C31: 233 | D31: 303 | E31: 301 | F31: 546 | G31: 247 | H31: 299 | I31: 308 | J31: 中島町4丁目 | K31: 984 | L31: 473 | M31: 511 | N31: 479 | O31: 987 | P31: 479 | Q31: 508 | R31: 498 | S31: 恵み野北7丁目 | T31: 797 | U31: 372 | V31: 425 | W31: 296 | X31: 791 | Y31: 371 | Z31: 420 | AA31: 299
A32: 黄金中央２丁目 | B32: 324 | C32: 142 | D32: 182 | E32: 186 | F32: 330 | G32: 146 | H32: 184 | I32: 193 | J32: 中島町5丁目 | K32: 481 | L32: 249 | M32: 232 | N32: 255 | O32: 477 | P32: 251 | Q32: 226 | R32: 251 | S32: 恵み野里美1丁目 | T32: 168 | U32: 79 | V32: 89 | W32: 130 | X32: 183 | Y32: 94 | Z32: 89 | AA32: 137
A33: 黄金中央３丁目 | B33: 637 | C33: 307 | D33: 330 | E33: 320 | F33: 636 | G33: 308 | H33: 328 | I33: 338 | J33: 中島町6丁目 | K33: 694 | L33: 316 | M33: 378 | N33: 374 | O33: 673 | P33: 305 | Q33: 368 | R33: 383 | S33: 恵み野里美2丁目 | T33: 449 | U33: 225 | V33: 224 | W33: 139 | X33: 464 | Y33: 237 | Z33: 227 | AA33: 139
A34: 黄金中央４丁目 | B34: 395 | C34: 185 | D34: 210 | E34: 191 | F34: 409 | G34: 193 | H34: 216 | I34: 210 | J34: 恵央町 | K34: 737 | L34: 309 | M34: 428 | N34: 387 | O34: 740 | P34: 314 | Q34: 426 | R34: 390 | S34: 島松寿町1丁目 | T34: 637 | U34: 304 | V34: 333 | W34: 349 | X34: 637 | Y34: 303 | Z34: 334 | AA34: 353
A35: 黄金中央５丁目 | J35: 幸町1丁目 | K35: 241 | L35: 114 | M35: 127 | N35: 108 | O35: 236 | P35: 116 | Q35: 120 | R35: 107 | S35: 島松寿町2丁目 | T35: 975 | U35: 453 | V35: 522 | W35: 486 | X35: 968 | Y35: 449 | Z35: 519 | AA35: 482
A36: 黄金南１丁目 | B36: 974 | C36: 473 | D36: 501 | E36: 376 | F36: 984 | G36: 489 | H36: 495 | I36: 377 | J36: 幸町2丁目 | K36: 378 | L36: 174 | M36: 204 | N36: 176 | O36: 370 | P36: 171 | Q36: 199 | R36: 176 | S36: 島松仲町1丁目 | T36: 259 | U36: 134 | V36: 125 | W36: 141 | X36: 259 | Y36: 136 | Z36: 123 | AA36: 142
A37: 黄金南２丁目 | B37: 696 | C37: 349 | D37: 347 | E37: 296 | F37: 726 | G37: 358 | H37: 368 | I37: 305 | J37: 幸町3丁目 | K37: 421 | L37: 207 | M37: 214 | N37: 195 | O37: 409 | P37: 201 | Q37: 208 | R37: 190 | S37: 島松仲町2丁目 | T37: 206 | U37: 95 | V37: 111 | W37: 109 | X37: 203 | Y37: 95 | Z37: 108 | AA37: 109
A38: 黄金南３丁目 | B38: 932 | C38: 455 | D38: 477 | E38: 330 | F38: 963 | G38: 463 | H38: 500 | I38: 353 | J38: 幸町4丁目 | K38: 5 | L38: 2 | M38: 3 | N38: 2 | O38: 6 | P38: 2 | Q38: 4 | R38: 3 | S38: 島松仲町3丁目 | T38: 160 | U38: 74 | V38: 86 | W38: 76 | X38: 158 | Y38: 74 | Z38: 84 | AA38: 77
A39: 黄金南４丁目 | B39: 956 | C39: 492 | D39: 464 | E39: 324 | F39: 1003 | G39: 513 | H39: 490 | I39: 339 | J39: 柏陽町1丁目 | K39: 726 | L39: 345 | M39: 381 | N39: 355 | O39: 718 | P39: 341 | Q39: 377 | R39: 357 | S39: 島松東町1丁目 | T39: 287 | U39: 135 | V39: 152 | W39: 121 | X39: 287 | Y39: 136 | Z39: 151 | AA39: 123
A40: 黄金南５丁目 | B40: 292 | C40: 146 | D40: 146 | E40: 105 | F40: 302 | G40: 147 | H40: 155 | I40: 105 | J40: 柏陽町3丁目 | K40: 1677 | L40: 828 | M40: 849 | N40: 705 | O40: 1681 | P40: 823 | Q40: 858 | R40: 708 | S40: 島松東町2丁目 | T40: 350 | U40: 164 | V40: 186 | W40: 168 | X40: 341 | Y40: 160 | Z40: 181 | AA40: 166
A41: 黄金南６丁目 | B41: 322 | C41: 160 | D41: 162 | E41: 111 | F41: 312 | G41: 154 | H41: 158 | I41: 106 | J41: 柏陽町4丁目 | K41: 539 | L41: 240 | M41: 299 | N41: 316 | O41: 523 | P41: 235 | Q41: 288 | R41: 307 | S41: 島松東町3丁目 | T41: 305 | U41: 160 | V41: 145 | W41: 152 | X41: 421 | Y41: 218 | Z41: 203 | AA41: 197
A42: 黄金南７丁目 | B42: 821 | C42: 402 | D42: 419 | E42: 294 | F42: 820 | G42: 402 | H42: 418 | I42: 296 | J42: 柏木町 | K42: 340 | L42: 239 | M42: 101 | N42: 289 | O42: 315 | P42: 217 | Q42: 98 | R42: 263 | S42: 島松東町4丁目 | T42: 201 | U42: 94 | V42: 107 | W42: 94 | X42: 202 | Y42: 92 | Z42: 110 | AA42: 97
A43: 相生町 | B43: 1870 | C43: 906 | D43: 964 | E43: 1047 | F43: 1878 | G43: 913 | H43: 965 | I43: 1057 | J43: 柏木町1丁目 | K43: 397 | L43: 209 | M43: 188 | N43: 202 | O43: 408 | P43: 219 | Q43: 189 | R43: 210 | S43: 島松本町1丁目 | T43: 485 | U43: 228 | V43: 257 | W43: 219 | X43: 472 | Y43: 220 | Z43: 252 | AA43: 213
A44: 緑町1丁目 | B44: 156 | C44: 78 | D44: 78 | E44: 104 | F44: 155 | G44: 75 | H44: 80 | I44: 106 | J44: 柏木町2丁目 | K44: 267 | L44: 134 | M44: 133 | N44: 119 | O44: 261 | P44: 130 | Q44: 131 | R44: 121 | S44: 島松本町2丁目 | T44: 590 | U44: 283 | V44: 307 | W44: 282 | X44: 591 | Y44: 284 | Z44: 307 | AA44: 291
A45: 緑町2丁目 | B45: 653 | C45: 286 | D45: 367 | E45: 330 | F45: 669 | G45: 296 | H45: 373 | I45: 339 | J45: 柏木町3丁目 | K45: 611 | L45: 292 | M45: 319 | N45: 305 | O45: 606 | P45: 295 | Q45: 311 | R45: 306 | S45: 島松本町3丁目 | T45: 706 | U45: 329 | V45: 377 | W45: 330 | X45: 715 | Y45: 334 | Z45: 381 | AA45: 335
A46: 住吉町1丁目 | B46: 272 | C46: 135 | D46: 137 | E46: 130 | F46: 253 | G46: 125 | H46: 128 | I46: 123 | J46: 柏木町4丁目 | K46: 360 | L46: 178 | M46: 182 | N46: 200 | O46: 362 | P46: 181 | Q46: 181 | R46: 206 | S46: 島松本町4丁目 | T46: 502 | U46: 238 | V46: 264 | W46: 224 | X46: 513 | Y46: 239 | Z46: 274 | AA46: 224
A47: 住吉町2丁目 | B47: 491 | C47: 228 | D47: 263 | E47: 265 | F47: 499 | G47: 233 | H47: 266 | I47: 271 | J47: 柏木町5丁目 | K47: 576 | L47: 298 | M47: 278 | N47: 258 | O47: 568 | P47: 296 | Q47: 272 | R47: 265 | S47: 島松旭町1丁目 | T47: 330 | U47: 147 | V47: 183 | W47: 139 | X47: 330 | Y47: 149 | Z47: 181 | AA47: 138
A48: 住吉町3丁目 | B48: 530 | C48: 254 | D48: 276 | E48: 249 | F48: 559 | G48: 273 | H48: 286 | I48: 270 | J48: 北柏木町1丁目 | K48: 748 | L48: 368 | M48: 380 | N48: 330 | O48: 736 | P48: 364 | Q48: 372 | R48: 333 | S48: 島松旭町2丁目 | T48: 374 | U48: 184 | V48: 190 | W48: 156 | X48: 364 | Y48: 179 | Z48: 185 | AA48: 154
A49: 住吉町4丁目 | B49: 399 | C49: 183 | D49: 216 | E49: 192 | F49: 408 | G49: 187 | H49: 221 | I49: 194 | J49: 北柏木町2丁目 | K49: 608 | L49: 294 | M49: 314 | N49: 273 | O49: 618 | P49: 293 | Q49: 325 | R49: 282 | S49: 島松旭町3丁目 | T49: 323 | U49: 149 | V49: 174 | W49: 108 | X49: 313 | Y49: 145 | Z49: 168 | AA49: 107
A50: 末広町 | B50: 608 | C50: 289 | D50: 319 | E50: 317 | F50: 631 | G50: 301 | H50: 330 | I50: 333 | J50: 北柏木町3丁目 | K50: 27 | L50: 13 | M50: 14 | N50: 13 | O50: 29 | P50: 15 | Q50: 14 | R50: 15 | S50: 島松旭町4丁目 | T50: 385 | U50: 180 | V50: 205 | W50: 167 | X50: 381 | Y50: 175 | Z50: 206 | AA50: 168
A51: 栄恵町 | B51: 181 | C51: 96 | D51: 85 | E51: 121 | F51: 193 | G51: 97 | H51: 96 | I51: 129 | J51: 北柏木町4丁目 | K51: 8 | L51: 4 | M51: 4 | N51: 3 | O51: 8 | P51: 4 | Q51: 4 | R51: 3 | S51: 西島松 | T51: 707 | U51: 438 | V51: 269 | W51: 509 | X51: 729 | Y51: 435 | Z51: 294 | AA51: 517
A52: 泉 町 | B52: 675 | C52: 359 | D52: 316 | E52: 392 | F52: 687 | G52: 361 | H52: 326 | I52: 415 | J52: 北柏木町5丁目 | K52: 1 | L52: 0 | M52: 1 | N52: 1 | O52: 4 | P52: 2 | Q52: 2 | R52: 1 | S52: 南島松 | T52: 221 | U52: 88 | V52: 133 | W52: 126 | X52: 198 | Y52: 76 | Z52: 122 | AA52: 115
A53: 桜町1丁目 | B53: 233 | C53: 126 | D53: 107 | E53: 120 | F53: 258 | G53: 134 | H53: 124 | I53: 121 | J53: 島松沢 | K53: 14 | L53: 8 | M53: 6 | N53: 8 | O53: 15 | P53: 9 | Q53: 6 | R53: 9 | S53: 中島松 | T53: 152 | U53: 70 | V53: 82 | W53: 61 | X53: 152 | Y53: 69 | Z53: 83 | AA53: 66
A54: 桜町2丁目 | B54: 744 | C54: 333 | D54: 411 | E54: 370 | F54: 738 | G54: 329 | H54: 409 | I54: 369 | J54: 美咲野1丁目 | K54: 587 | L54: 277 | M54: 310 | N54: 206 | O54: 594 | P54: 286 | Q54: 308 | R54: 212 | S54: 下島松 | T54: 299 | U54: 150 | V54: 149 | W54: 156 | X54: 293 | Y54: 148 | Z54: 145 | AA54: 151
A55: 桜町3丁目 | B55: 351 | C55: 181 | D55: 170 | E55: 154 | F55: 411 | G55: 209 | H55: 202 | I55: 178 | J55: 美咲野2丁目 | K55: 369 | L55: 185 | M55: 184 | N55: 127 | O55: 364 | P55: 181 | Q55: 183 | R55: 126 | S55: 穂栄 | T55: 98 | U55: 49 | V55: 49 | W55: 46 | X55: 98 | Y55: 49 | Z55: 49 | AA55: 50
A56: 桜町4丁目 | B56: 4 | C56: 3 | D56: 1 | E56: 1 | F56: 3 | G56: 2 | H56: 1 | I56: 1 | J56: 美咲野3丁目 | K56: 373 | L56: 198 | M56: 175 | N56: 141 | O56: 353 | P56: 186 | Q56: 167 | R56: 140 | S56: 北島 | T56: 86 | U56: 44 | V56: 42 | W56: 38 | X56: 85 | Y56: 44 | Z56: 41 | AA56: 37
A57: 京町 | B57: 180 | C57: 89 | D57: 91 | E57: 99 | F57: 178 | G57: 83 | H57: 95 | I57: 99 | J57: 美咲野4丁目 | K57: 291 | L57: 147 | M57: 144 | N57: 103 | O57: 288 | P57: 147 | Q57: 141 | R57: 103 | S57: 合計 | T57: 69529 | U57: 33822 | V57: 35707 | W57: 32791 | X57: 69794 | Y57: 33932 | Z57: 35862 | AA57: 33250
A58: 〈資料〉生活環境部市民課
A59: 注）住民基本台帳法が改正され、平成24年7月より外国人住民が適用対象となった。

Sheet 年齢別人口（５歳階級）
A1: ３）年齢別人口(5歳階級)
Q2: （各年9月末日）
A3: 年 齢 | B3: 26年 | E3: 27年 | H3: 28年 | K3: 29年 | N3: 30年 | Q3: 年 齢
B4: 男 | C4: 女 | D4: 計 | E4: 男 | F4: 女 | G4: 計 | H4: 男 | I4: 女 | J4: 計 | K4: 男 | L4: 女 | M4: 計 | N4: 男 | O4: 女 | P4: 計
A5: 総数 | B5: 33610 | C5: 35340 | D5: 68950 | E5: 33589 | F5: 35385 | G5: 68974 | H5: 33646 | I5: 35566 | J5: 69212 | K5: =SUM(K8+K15+K29) -> 33822 | L5: 35707 | M5: 69529 | N5: 33932 | O5: 35862 | P5: =SUM(P8+P15+P29) -> 69794 | Q5: 総数
D6: (100%) | G6: (100%) | J6: (100%) | M6: (100%) | P6: (100%)
A7: 年少人口 | Q7: 年少人口
A8: 0歳～14歳 | B8: 4713 | C8: 4590 | D8: 9303 | E8: 4640 | F8: 4591 | G8: 9231 | H8: 4625 | I8: 4511 | J8: 9136 | K8: =SUM(K10:K12) -> 4625 | L8: =SUM(L10:L12) -> 4430 | M8: =SUM(K8:L8) -> 9055 | N8: 4613 | O8: 4384 | P8: =SUM(N8:O8) -> 8997 | Q8: 0歳～14歳
D9: (13.5%) | G9: (13.4%) | J9: (13.2%) | M9: (11.0%) | P9: (12.9%)
A10: 0歳～4歳 | B10: 1374 | C10: 1350 | D10: 2724 | E10: 1332 | F10: 1355 | G10: 2687 | H10: 1333 | I10: 1349 | J10: 2682 | K10: 1368 | L10: 1295 | M10: 2663 | N10: 1364 | O10: 1266 | P10: =SUM(N10:O10) -> 2630 | Q10: 0歳～4歳
A11: 5～9 | B11: 1615 | C11: 1540 | D11: 3155 | E11: 1598 | F11: 1541 | G11: 3139 | H11: 1609 | I11: 1535 | J11: 3144 | K11: 1595 | L11: 1486 | M11: 3081 | N11: 1555 | O11: 1496 | P11: 3051 | Q11: 5～9
A12: 10～14 | B12: 1724 | C12: 1700 | D12: 3424 | E12: 1710 | F12: 1695 | G12: 3405 | H12: 1683 | I12: 1627 | J12: 3310 | K12: 1662 | L12: 1649 | M12: 3311 | N12: 1694 | O12: 1622 | P12: 3316 | Q12: 10～14
A14: 生産年齢人口 | Q14: 生産年齢人口
A15: 15歳～64歳 | B15: 21538 | C15: 21504 | D15: 43042 | E15: 21314 | F15: 21191 | G15: 42505 | H15: 21179 | I15: 21086 | J15: 42265 | K15: =SUM(K17:K26) -> 21134 | L15: =SUM(L17:L26) -> 21007 | M15: =SUM(M17:M26) -> 42141 | N15: 21050 | O15: 20908 | P15: =SUM(P17:P26) -> 41958 | Q15: 15歳～64歳
D16: (62.4%) | G16: (61.6%) | J16: (61.1%) | M16: (62.6%) | P16: (60.1%)
A17: 15歳～19歳 | B17: 1905 | C17: 1834 | D17: 3739 | E17: 1885 | F17: 1812 | G17: 3697 | H17: 1895 | I17: 1821 | J17: 3716 | K17: 1859 | L17: 1806 | M17: 3665 | N17: 1823 | O17: 1789 | P17: =SUM(N17:O17) -> 3612 | Q17: 15歳～19歳
A18: 20～24 | B18: 1857 | C18: 1737 | D18: 3594 | E18: 1850 | F18: 1706 | G18: 3556 | H18: 1831 | I18: 1725 | J18: 3556 | K18: 1855 | L18: 1802 | M18: 3657 | N18: 1859 | O18: 1801 | P18: 3660 | Q18: 20～24
A19: 25～29 | B19: 1693 | C19: 1675 | D19: 3368 | E19: 1702 | F19: 1562 | G19: 3264 | H19: 1677 | I19: 1554 | J19: 3231 | K19: 1719 | L19: 1505 | M19: 3224 | N19: 1703 | O19: 1508 | P19: 3211 | Q19: 25～29
A20: 30～34 | B20: 1913 | C20: 1943 | D20: 3856 | E20: 1870 | F20: 1935 | G20: 3805 | H20: 1877 | I20: 1918 | J20: 3795 | K20: 1844 | L20: 1885 | M20: 3729 | N20: 1828 | O20: 1864 | P20: 3692 | Q20: 30～34
A21: 35～39 | B21: 2465 | C21: 2358 | D21: 4823 | E21: 2358 | F21: 2286 | G21: 4644 | H21: 2256 | I21: 2206 | J21: 4462 | K21: 2178 | L21: 2168 | M21: 4346 | N21: 2129 | O21: 2104 | P21: 4233 | Q21: 35～39
A22: 40～44 | B22: 2591 | C22: 2567 | D22: 5158 | E22: 2597 | F22: 2618 | G22: 5215 | H22: 2581 | I22: 2629 | J22: 5210 | K22: 2636 | L22: 2620 | M22: 5256 | N22: 2604 | O22: 2554 | P22: 5158 | Q22: 40～44
A23: 45～49 | B23: 2324 | C23: 2357 | D23: 4681 | E23: 2372 | F23: 2353 | G23: 4725 | H23: 2510 | I23: 2456 | J23: 4966 | K23: 2511 | L23: 2459 | M23: 4970 | N23: 2600 | O23: 2582 | P23: 5182 | Q23: 45～49
A24: 50～54 | B24: 2134 | C24: 2204 | D24: 4338 | E24: 2175 | F24: 2245 | G24: 4420 | H24: 2130 | I24: 2211 | J24: 4341 | K24: 2194 | L24: 2274 | M24: 4468 | N24: 2224 | O24: 2314 | P24: 4538 | Q24: 50～54
A25: 55～59 | B25: 2105 | C25: 2126 | D25: 4231 | E25: 2074 | F25: 2103 | G25: 4177 | H25: 2075 | I25: 2077 | J25: 4152 | K25: 2106 | L25: 2116 | M25: 4222 | N25: 2130 | O25: 2183 | P25: 4313 | Q25: 55～59
A26: 60～64 | B26: 2551 | C26: 2703 | D26: 5254 | E26: 2431 | F26: 2571 | G26: 5002 | H26: 2347 | I26: 2489 | J26: 4836 | K26: 2232 | L26: 2372 | M26: 4604 | N26: 2150 | O26: 2209 | P26: 4359 | Q26: 60～64
A28: 老年人口 | Q28: 老年人口
A29: 65歳以上 | B29: 7359 | C29: 9246 | D29: 16605 | E29: 7635 | F29: 9603 | G29: 17238 | H29: 7842 | I29: 9969 | J29: 17811 | K29: =SUM(K31:K37) -> 8063 | L29: =SUM(L31:L37) -> 10270 | M29: =SUM(M31:M37) -> 18333 | N29: 8269 | O29: 10570 | P29: =SUM(N29:O29) -> 18839 | Q29: 65歳以上
D30: (24.1%) | G30: (25%) | J30: (25.7%) | M30: (26.4%) | P30: (27.0%)
A31: 65歳～69歳 | B31: 2332 | C31: 2530 | D31: 4862 | E31: 2524 | F31: 2716 | G31: 5240 | H31: 2628 | I31: 2846 | J31: 5474 | K31: 2682 | L31: 2892 | M31: 5574 | N31: 2625 | O31: 2831 | P31: =SUM(N31:O31) -> 5456 | Q31: 65歳～69歳
A32: 70～74 | B32: 1721 | C32: 2136 | D32: 3857 | E32: 1736 | F32: 2116 | G32: 3852 | H32: 1747 | I32: 2078 | J32: 3825 | K32: 1793 | L32: 2098 | M32: 3891 | N32: 1978 | O32: 2279 | P32: 4257 | Q32: 70～74
A33: 75～79 | B33: 1493 | C33: 1870 | D33: 3363 | E33: 1461 | F33: 1853 | G33: 3314 | H33: 1465 | I33: 1906 | J33: 3371 | K33: 1478 | L33: 1967 | M33: 3445 | N33: 1478 | O33: 1982 | P33: 3460 | Q33: 75～79
A34: 80～84 | B34: 1066 | C34: 1338 | D34: 2404 | E34: 1124 | F34: 1435 | G34: 2559 | H34: 1168 | I34: 1541 | J34: 2709 | K34: 1208 | L34: 1614 | M34: 2822 | N34: 1209 | O34: 1664 | P34: 2873 | Q34: 80～84
A35: 85～89 | B35: 576 | C35: 840 | D35: 1416 | E35: 609 | F35: 907 | G35: 1516 | H35: 636 | I35: 960 | J35: 1596 | K35: 673 | L35: 995 | M35: 1668 | N35: 716 | O35: 1073 | P35: 1789 | Q35: 85～89
A36: 90～94 | B36: 133 | C36: 406 | D36: 539 | E36: 150 | F36: 438 | G36: 588 | H36: 170 | I36: 482 | J36: 652 | K36: 204 | L36: 516 | M36: 720 | N36: 231 | O36: 525 | P36: 756 | Q36: 90～94
A37: 95歳以上 | B37: 38 | C37: 126 | D37: 164 | E37: 31 | F37: 138 | G37: 169 | H37: 28 | I37: 156 | J37: 184 | K37: 25 | L37: 188 | M37: 213 | N37: 32 | O37: 216 | P37: 248 | Q37: 95歳以上
A38: 〈資料〉生活環境部市民課、住民基本台帳

Sheet 町内別年齢別人口①
A1: ４）町内別年齢別人口(５歳階級)
X2: 平成30年9月末現在
A3: 町 名 | B3: 総数 | C3: 0歳～ 4歳 | D3: 5歳～ 9歳 | E3: 10歳～ 14歳 | F3: 15歳～ 19歳 | G3: 20歳～ 24歳 | H3: 25歳～ 29歳 | I3: 30歳～ 34歳 | J3: 35歳～ 39歳 | K3: 40歳～ 44歳 | L3: 45歳～ 49歳 | M3: 50歳～ 54歳 | N3: 55歳～59歳 | O3: 60歳～64歳 | P3: 65歳～69歳 | Q3: 70歳～74歳 | R3: 75歳～79歳 | S3: 80歳～84歳 | T3: 85歳～89歳 | U3: 90歳～94歳 | V3: 95歳～99歳 | W3: 100歳以上 | X3: 町 名
A4: 漁太 | B4: =SUM(C4:W4) -> 146 | C4: 5 | D4: 3 | E4: 2 | F4: 2 | G4: 1 | H4: 5 | I4: 5 | J4: 4 | K4: 11 | L4: 6 | M4: 12 | N4: 8 | O4: 13 | P4: 18 | Q4: 10 | R4: 21 | S4: 12 | T4: 5 | U4: 1 | V4: 2 | W4: 0 | X4: 漁太
A5: 林田 | B5: =SUM(C5:W5) -> 36 | C5: 0 | D5: 0 | E5: 0 | F5: 1 | G5: 0 | H5: 1 | I5: 0 | J5: 2 | K5: 2 | L5: 0 | M5: 2 | N5: 1 | O5: 5 | P5: 7 | Q5: 5 | R5: 3 | S5: 3 | T5: 1 | U5: 3 | V5: 0 | W5: 0 | X5: 林田
A6: 春日 | B6: =SUM(C6:W6) -> 125 | C6: 0 | D6: 2 | E6: 4 | F6: 1 | G6: 3 | H6: 4 | I6: 5 | J6: 8 | K6: 3 | L6: 7 | M6: 9 | N6: 10 | O6: 14 | P6: 8 | Q6: 13 | R6: 10 | S6: 13 | T6: 5 | U6: 4 | V6: 2 | W6: 0 | X6: 春日
A7: 中央 | B7: 247 | C7: 10 | D7: 18 | E7: 12 | F7: 6 | G7: 5 | H7: 4 | I7: 18 | J7: 19 | K7: 19 | L7: 10 | M7: 14 | N7: 12 | O7: 26 | P7: 20 | Q7: 14 | R7: 10 | S7: 18 | T7: 9 | U7: 3 | V7: 0 | W7: 0 | X7: 中央
A8: 上山口 | B8: 200 | C8: 4 | D8: 6 | E8: 5 | F8: 10 | G8: 7 | H8: 2 | I8: 8 | J8: 9 | K8: 12 | L8: 12 | M8: 11 | N8: 8 | O8: 22 | P8: 16 | Q8: 22 | R8: 15 | S8: 12 | T8: 9 | U8: 5 | V8: 4 | W8: 1 | X8: 上山口
A9: 戸磯 | B9: 139 | C9: 7 | D9: 3 | E9: 2 | F9: 4 | G9: 4 | H9: 5 | I9: 9 | J9: 7 | K9: 6 | L9: 5 | M9: 11 | N9: 11 | O9: 13 | P9: 20 | Q9: 10 | R9: 5 | S9: 8 | T9: 6 | U9: 3 | V9: 0 | W9: 0 | X9: 戸磯
A10: 恵南 | B10: =SUM(C10:W10) -> 754 | C10: 9 | D10: 20 | E10: 13 | F10: 41 | G10: 118 | H10: 78 | I10: 37 | J10: 30 | K10: 48 | L10: 45 | M10: 41 | N10: 46 | O10: 47 | P10: 65 | Q10: 39 | R10: 40 | S10: 21 | T10: 7 | U10: 8 | V10: 1 | W10: 0 | X10: 恵南
A11: 和光町１ 丁目 | B11: 450 | C11: 19 | D11: 21 | E11: 22 | F11: 14 | G11: 23 | H11: 20 | I11: 17 | J11: 26 | K11: 42 | L11: 38 | M11: 18 | N11: 24 | O11: 23 | P11: 36 | Q11: 40 | R11: 27 | S11: 24 | T11: 11 | U11: 4 | V11: 1 | W11: 0 | X11: 和光町１ 丁目
A12: 和光町２ 丁目 | B12: 643 | C12: 26 | D12: 36 | E12: 48 | F12: 37 | G12: 28 | H12: 36 | I12: 32 | J12: 52 | K12: 45 | L12: 68 | M12: 52 | N12: 36 | O12: 31 | P12: 30 | Q12: 33 | R12: 23 | S12: 14 | T12: 11 | U12: 3 | V12: 2 | W12: 0 | X12: 和光町２ 丁目
A13: 和光町３ 丁目 | B13: 618 | C13: 20 | D13: 30 | E13: 31 | F13: 40 | G13: 41 | H13: 58 | I13: 46 | J13: 31 | K13: 59 | L13: 41 | M13: 29 | N13: 31 | O13: 26 | P13: 36 | Q13: 32 | R13: 30 | S13: 17 | T13: 15 | U13: 4 | V13: 1 | W13: 0 | X13: 和光町３ 丁目
A14: 和光町４ 丁目 | B14: 440 | C14: 16 | D14: 20 | E14: 26 | F14: 24 | G14: 20 | H14: 21 | I14: 20 | J14: 33 | K14: 32 | L14: 37 | M14: 35 | N14: 23 | O14: 20 | P14: 33 | Q14: 37 | R14: 20 | S14: 10 | T14: 8 | U14: 5 | V14: 0 | W14: 0 | X14: 和光町４ 丁目
A15: 和光町５ 丁目 | B15: 860 | C15: 34 | D15: 54 | E15: 47 | F15: 78 | G15: 75 | H15: 42 | I15: 36 | J15: 69 | K15: 93 | L15: 62 | M15: 47 | N15: 45 | O15: 23 | P15: 36 | Q15: 35 | R15: 23 | S15: 34 | T15: 16 | U15: 11 | V15: 0 | W15: 0 | X15: 和光町５ 丁目
A16: 駒場町１ 丁目 | B16: 678 | C16: 38 | D16: 21 | E16: 11 | F16: 26 | G16: 42 | H16: 38 | I16: 44 | J16: 51 | K16: 47 | L16: 51 | M16: 62 | N16: 55 | O16: 37 | P16: 41 | Q16: 40 | R16: 25 | S16: 28 | T16: 18 | U16: 1 | V16: 2 | W16: 0 | X16: 駒場町１ 丁目
A17: 駒場町２ 丁目 | B17: 416 | C17: 28 | D17: 26 | E17: 26 | F17: 14 | G17: 17 | H17: 24 | I17: 33 | J17: 36 | K17: 29 | L17: 23 | M17: 26 | N17: 12 | O17: 20 | P17: 25 | Q17: 21 | R17: 28 | S17: 15 | T17: 6 | U17: 5 | V17: 2 | W17: 0 | X17: 駒場町２ 丁目
A18: 駒場町３ 丁目 | B18: 300 | C18: 16 | D18: 9 | E18: 7 | F18: 10 | G18: 12 | H18: 14 | I18: 14 | J18: 21 | K18: 15 | L18: 25 | M18: 25 | N18: 21 | O18: 25 | P18: 24 | Q18: 17 | R18: 14 | S18: 19 | T18: 9 | U18: 2 | V18: 1 | W18: 0 | X18: 駒場町３ 丁目
A19: 駒場町４ 丁目 | B19: 363 | C19: 11 | D19: 12 | E19: 10 | F19: 15 | G19: 15 | H19: 16 | I19: 20 | J19: 16 | K19: 29 | L19: 25 | M19: 22 | N19: 23 | O19: 32 | P19: 36 | Q19: 26 | R19: 25 | S19: 17 | T19: 10 | U19: 3 | V19: 0 | W19: 0 | X19: 駒場町４ 丁目
A20: 駒場町５ 丁目 | B20: 225 | C20: 3 | D20: 17 | E20: 6 | F20: 11 | G20: 7 | H20: 8 | I20: 10 | J20: 21 | K20: 13 | L20: 13 | M20: 11 | N20: 14 | O20: 15 | P20: 19 | Q20: 17 | R20: 16 | S20: 10 | T20: 10 | U20: 3 | V20: 1 | W20: 0 | X20: 駒場町５ 丁目
A21: 駒場町６ 丁目 | B21: 333 | C21: 8 | D21: 11 | E21: 16 | F21: 17 | G21: 24 | H21: 22 | I21: 29 | J21: 22 | K21: 27 | L21: 29 | M21: 22 | N21: 12 | O21: 16 | P21: 15 | Q21: 22 | R21: 20 | S21: 10 | T21: 6 | U21: 4 | V21: 1 | W21: 0 | X21: 駒場町６ 丁目
A22: 白樺町１ 丁目 | B22: 357 | C22: 8 | D22: 15 | E22: 17 | F22: 21 | G22: 17 | H22: 12 | I22: 16 | J22: 39 | K22: 26 | L22: 22 | M22: 33 | N22: 41 | O22: 27 | P22: 16 | Q22: 12 | R22: 13 | S22: 10 | T22: 5 | U22: 4 | V22: 3 | W22: 0 | X22: 白樺町１ 丁目
A23: 白樺町２ 丁目 | B23: 317 | C23: 6 | D23: 7 | E23: 8 | F23: 14 | G23: 20 | H23: 11 | I23: 11 | J23: 17 | K23: 23 | L23: 19 | M23: 18 | N23: 19 | O23: 29 | P23: 31 | Q23: 37 | R23: 30 | S23: 6 | T23: 7 | U23: 3 | V23: 1 | W23: 0 | X23: 白樺町２ 丁目
A24: 白樺町３ 丁目 | B24: 641 | C24: 8 | D24: 19 | E24: 37 | F24: 54 | G24: 42 | H24: 17 | I24: 18 | J24: 20 | K24: 57 | L24: 58 | M24: 73 | N24: 72 | O24: 36 | P24: 46 | Q24: 29 | R24: 19 | S24: 26 | T24: 5 | U24: 4 | V24: 1 | W24: 0 | X24: 白樺町３ 丁目
A25: 白樺町４ 丁目 | B25: 21 | C25: 2 | D25: 0 | E25: 0 | F25: 6 | G25: 1 | H25: 0 | I25: 0 | J25: 2 | K25: 0 | L25: 1 | M25: 6 | N25: 3 | O25: 0 | P25: 0 | Q25: 0 | R25: 0 | S25: 0 | T25: 0 | U25: 0 | V25: 0 | W25: 0 | X25: 白樺町４ 丁目
A26: 黄金北１丁目 | B26: 596 | C26: 33 | D26: 27 | E26: 23 | F26: 40 | G26: 43 | H26: 35 | I26: 45 | J26: 30 | K26: 48 | L26: 45 | M26: 40 | N26: 39 | O26: 42 | P26: 39 | Q26: 24 | R26: 18 | S26: 13 | T26: 7 | U26: 3 | V26: 2 | W26: 0 | X26: 黄金北１丁目
A27: 黄金北２丁目 | B27: 577 | C27: 15 | D27: 31 | E27: 29 | F27: 34 | G27: 39 | H27: 26 | I27: 33 | J27: 37 | K27: 38 | L27: 39 | M27: 40 | N27: 35 | O27: 38 | P27: 32 | Q27: 29 | R27: 31 | S27: 22 | T27: 16 | U27: 11 | V27: 2 | W27: 0 | X27: 黄金北２丁目
A28: 黄金北３丁目 | B28: 792 | C28: 21 | D28: 28 | E28: 29 | F28: 41 | G28: 72 | H28: 45 | I28: 40 | J28: 32 | K28: 49 | L28: 68 | M28: 46 | N28: 43 | O28: 64 | P28: 73 | Q28: 48 | R28: 47 | S28: 23 | T28: 14 | U28: 7 | V28: 2 | W28: 0 | X28: 黄金北３丁目
A29: 黄金北４丁目 | B29: 679 | C29: 11 | D29: 26 | E29: 35 | F29: 42 | G29: 51 | H29: 40 | I29: 30 | J29: 40 | K29: 54 | L29: 49 | M29: 49 | N29: 67 | O29: 53 | P29: 55 | Q29: 27 | R29: 22 | S29: 10 | T29: 12 | U29: 6 | V29: 0 | W29: 0 | X29: 黄金北４丁目
A30: 黄金中央１ 丁目 | B30: 546 | C30: 23 | D30: 20 | E30: 24 | F30: 19 | G30: 36 | H30: 57 | I30: 50 | J30: 42 | K30: 42 | L30: 51 | M30: 16 | N30: 14 | O30: 15 | P30: 17 | Q30: 28 | R30: 23 | S30: 25 | T30: 34 | U30: 9 | V30: 1 | W30: 0 | X30: 黄金中央１ 丁目
A31: 黄金中央２ 丁目 | B31: 330 | C31: 8 | D31: 7 | E31: 13 | F31: 16 | G31: 44 | H31: 40 | I31: 20 | J31: 20 | K31: 23 | L31: 18 | M31: 17 | N31: 19 | O31: 16 | P31: 18 | Q31: 14 | R31: 13 | S31: 17 | T31: 3 | U31: 4 | V31: 0 | W31: 0 | X31: 黄金中央２ 丁目
A32: 黄金中央３ 丁目 | B32: 636 | C32: 24 | D32: 28 | E32: 35 | F32: 59 | G32: 75 | H32: 50 | I32: 43 | J32: 49 | K32: 62 | L32: 58 | M32: 42 | N32: 12 | O32: 9 | P32: 30 | Q32: 27 | R32: 17 | S32: 6 | T32: 6 | U32: 4 | V32: 0 | W32: 0 | X32: 黄金中央３ 丁目
A33: 黄金中央４ 丁目 | B33: 409 | C33: 12 | D33: 14 | E33: 18 | F33: 20 | G33: 34 | H33: 26 | I33: 29 | J33: 23 | K33: 28 | L33: 27 | M33: 23 | N33: 32 | O33: 37 | P33: 44 | Q33: 16 | R33: 5 | S33: 9 | T33: 8 | U33: 4 | V33: 0 | W33: 0 | X33: 黄金中央４ 丁目
A34: 黄金中央５ 丁目 | B34: - | X34: 黄金中央５ 丁目
A35: 黄金南１丁目 | B35: 984 | C35: 51 | D35: 87 | E35: 97 | F35: 53 | G35: 36 | H35: 38 | I35: 49 | J35: 85 | K35: 135 | L35: 95 | M35: 59 | N35: 34 | O35: 37 | P35: 40 | Q35: 34 | R35: 22 | S35: 14 | T35: 13 | U35: 3 | V35: 2 | W35: 0 | X35: 黄金南１丁目
A36: 黄金南２丁目 | B36: 726 | C36: 28 | D36: 48 | E36: 51 | F36: 51 | G36: 26 | H36: 30 | I36: 36 | J36: 51 | K36: 69 | L36: 70 | M36: 41 | N36: 43 | O36: 37 | P36: 43 | Q36: 33 | R36: 25 | S36: 21 | T36: 12 | U36: 7 | V36: 3 | W36: 1 | X36: 黄金南２丁目
A37: 黄金南３丁目 | B37: 963 | C37: 47 | D37: 72 | E37: 96 | F37: 88 | G37: 59 | H37: 29 | I37: 47 | J37: 75 | K37: 112 | L37: 118 | M37: 75 | N37: 53 | O37: 27 | P37: 26 | Q37: 10 | R37: 12 | S37: 9 | T37: 6 | U37: 2 | V37: 0 | W37: 0 | X37: 黄金南３丁目
A38: 黄金南４丁目 | B38: 1003 | C38: 54 | D38: 68 | E38: 110 | F38: 108 | G38: 42 | H38: 17 | I38: 32 | J38: 86 | K38: 133 | L38: 121 | M38: 66 | N38: 42 | O38: 23 | P38: 31 | Q38: 16 | R38: 21 | S38: 17 | T38: 9 | U38: 4 | V38: 3 | W38: 0 | X38: 黄金南４丁目
A39: 黄金南５丁目 | B39: 302 | C39: 23 | D39: 35 | E39: 37 | F39: 20 | G39: 8 | H39: 5 | I39: 15 | J39: 28 | K39: 40 | L39: 35 | M39: 17 | N39: 6 | O39: 6 | P39: 10 | Q39: 9 | R39: 7 | S39: 0 | T39: 1 | U39: 0 | V39: 0 | W39: 0 | X39: 黄金南５丁目
A40: 黄金南６丁目 | B40: 312 | C40: 16 | D40: 20 | E40: 35 | F40: 37 | G40: 11 | H40: 1 | I40: 11 | J40: 30 | K40: 37 | L40: 49 | M40: 28 | N40: 8 | O40: 2 | P40: 7 | Q40: 8 | R40: 8 | S40: 4 | T40: 0 | U40: 0 | V40: 0 | W40: 0 | X40: 黄金南６丁目
A41: 黄金南７丁目 | B41: 820 | C41: 32 | D41: 56 | E41: 113 | F41: 84 | G41: 35 | H41: 21 | I41: 28 | J41: 78 | K41: 106 | L41: 98 | M41: 63 | N41: 27 | O41: 21 | P41: 27 | Q41: 15 | R41: 9 | S41: 3 | T41: 2 | U41: 2 | V41: 0 | W41: 0 | X41: 黄金南７丁目
A42: 相生町 | B42: 1878 | C42: 70 | D42: 60 | E42: 55 | F42: 77 | G42: 123 | H42: 181 | I42: 134 | J42: 110 | K42: 121 | L42: 127 | M42: 129 | N42: 123 | O42: 118 | P42: 115 | Q42: 82 | R42: 93 | S42: 86 | T42: 38 | U42: 28 | V42: 7 | W42: 1 | X42: 相生町
A43: 緑町1丁目 | B43: 155 | C43: 5 | D43: 2 | E43: 3 | F43: 5 | G43: 15 | H43: 17 | I43: 20 | J43: 7 | K43: 12 | L43: 14 | M43: 11 | N43: 4 | O43: 6 | P43: 6 | Q43: 6 | R43: 8 | S43: 12 | T43: 1 | U43: 0 | V43: 1 | W43: 0 | X43: 緑町1丁目
A44: 緑町2丁目 | B44: 669 | C44: 20 | D44: 25 | E44: 32 | F44: 43 | G44: 27 | H44: 32 | I44: 35 | J44: 44 | K44: 45 | L44: 57 | M44: 37 | N44: 43 | O44: 27 | P44: 48 | Q44: 60 | R44: 45 | S44: 35 | T44: 13 | U44: 1 | V44: 0 | W44: 0 | X44: 緑町2丁目
A45: 住吉町１ 丁目 | B45: 253 | C45: 14 | D45: 8 | E45: 5 | F45: 9 | G45: 15 | H45: 19 | I45: 26 | J45: 16 | K45: 13 | L45: 13 | M45: 19 | N45: 14 | O45: 16 | P45: 18 | Q45: 10 | R45: 13 | S45: 14 | T45: 9 | U45: 0 | V45: 1 | W45: 1 | X45: 住吉町１ 丁目
A46: 住吉町２ 丁目 | B46: 499 | C46: 20 | D46: 20 | E46: 21 | F46: 21 | G46: 30 | H46: 27 | I46: 24 | J46: 36 | K46: 41 | L46: 36 | M46: 37 | N46: 36 | O46: 23 | P46: 32 | Q46: 30 | R46: 27 | S46: 24 | T46: 11 | U46: 3 | V46: 0 | W46: 0 | X46: 住吉町２ 丁目
A47: 住吉町３ 丁目 | B47: 559 | C47: 33 | D47: 23 | E47: 28 | F47: 24 | G47: 28 | H47: 17 | I47: 33 | J47: 57 | K47: 65 | L47: 44 | M47: 37 | N47: 23 | O47: 32 | P47: 44 | Q47: 24 | R47: 16 | S47: 16 | T47: 10 | U47: 4 | V47: 1 | W47: 0 | X47: 住吉町３ 丁目
A48: 住吉町４ 丁目 | B48: 408 | C48: 25 | D48: 21 | E48: 19 | F48: 14 | G48: 19 | H48: 37 | I48: 34 | J48: 29 | K48: 22 | L48: 18 | M48: 8 | N48: 29 | O48: 28 | P48: 32 | Q48: 23 | R48: 19 | S48: 16 | T48: 12 | U48: 3 | V48: 0 | W48: 0 | X48: 住吉町４ 丁目
A49: 末広町 | B49: 631 | C49: 34 | D49: 30 | E49: 27 | F49: 24 | G49: 35 | H49: 48 | I49: 48 | J49: 44 | K49: 51 | L49: 42 | M49: 46 | N49: 35 | O49: 37 | P49: 20 | Q49: 26 | R49: 29 | S49: 29 | T49: 22 | U49: 4 | V49: 0 | W49: 0 | X49: 末広町
A50: 栄恵町 | B50: 193 | C50: 3 | D50: 7 | E50: 2 | F50: 4 | G50: 5 | H50: 16 | I50: 15 | J50: 10 | K50: 12 | L50: 15 | M50: 16 | N50: 18 | O50: 13 | P50: 13 | Q50: 10 | R50: 13 | S50: 12 | T50: 5 | U50: 2 | V50: 2 | W50: 0 | X50: 栄恵町
A51: 泉町 | B51: 687 | C51: 31 | D51: 12 | E51: 14 | F51: 27 | G51: 45 | H51: 59 | I51: 56 | J51: 40 | K51: 58 | L51: 55 | M51: 52 | N51: 43 | O51: 35 | P51: 39 | Q51: 46 | R51: 25 | S51: 32 | T51: 10 | U51: 7 | V51: 1 | W51: 0 | X51: 泉町
A52: 桜町１ 丁目 | B52: 258 | C52: 23 | D52: 15 | E52: 12 | F52: 5 | G52: 2 | H52: 16 | I52: 18 | J52: 30 | K52: 27 | L52: 18 | M52: 21 | N52: 10 | O52: 11 | P52: 18 | Q52: 9 | R52: 5 | S52: 14 | T52: 3 | U52: 1 | V52: 0 | W52: 0 | X52: 桜町１ 丁目
A53: 桜町２ 丁目 | B53: 738 | C53: 26 | D53: 38 | E53: 47 | F53: 40 | G53: 28 | H53: 25 | I53: 37 | J53: 45 | K53: 63 | L53: 43 | M53: 38 | N53: 38 | O53: 40 | P53: 67 | Q53: 35 | R53: 55 | S53: 39 | T53: 21 | U53: 11 | V53: 2 | W53: 0 | X53: 桜町２ 丁目
A54: 桜町３ 丁目 | B54: 411 | C54: 31 | D54: 29 | E54: 13 | F54: 17 | G54: 15 | H54: 24 | I54: 33 | J54: 27 | K54: 36 | L54: 35 | M54: 25 | N54: 15 | O54: 13 | P54: 16 | Q54: 18 | R54: 27 | S54: 30 | T54: 6 | U54: 1 | V54: 0 | W54: 0 | X54: 桜町３ 丁目
A55: 桜町４ 丁目 | B55: 3 | C55: 0 | D55: 1 | E55: 1 | F55: 0 | G55: 0 | H55: 0 | I55: 0 | J55: 0 | K55: 1 | L55: 0 | M55: 0 | N55: 0 | O55: 0 | P55: 0 | Q55: 0 | R55: 0 | S55: 0 | T55: 0 | U55: 0 | V55: 0 | W55: 0 | X55: 桜町４ 丁目
A56: 京町 | B56: =SUM(C56:W56) -> 178 | C56: 7 | D56: 7 | E56: 1 | F56: 8 | G56: 10 | H56: 19 | I56: 15 | J56: 11 | K56: 22 | L56: 15 | M56: 7 | N56: 11 | O56: 8 | P56: 10 | Q56: 10 | R56: 7 | S56: 4 | T56: 3 | U56: 3 | V56: 0 | W56: 0 | X56: 京町
A57: 〈資料〉生活環境部市民課

Sheet 町内別年齢別人口②
X2: 平成30年9月末現在
A3: 町 名 | B3: 総数 | C3: 0歳～ 4歳 | D3: 5歳～ 9歳 | E3: 10歳～ 14歳 | F3: 15歳～ 19歳 | G3: 20歳～ 24歳 | H3: 25歳～ 29歳 | I3: 30歳～ 34歳 | J3: 35歳～ 39歳 | K3: 40歳～ 44歳 | L3: 45歳～ 49歳 | M3: 50歳～ 54歳 | N3: 55歳～59歳 | O3: 60歳～64歳 | P3: 65歳～69歳 | Q3: 70歳～74歳 | R3: 75歳～79歳 | S3: 80歳～84歳 | T3: 85歳～89歳 | U3: 90歳～94歳 | V3: 95歳～99歳 | W3: 100歳以上 | X3: 町 名
A4: 漁町 | B4: =SUM(C4:W4) -> 1018 | C4: 41 | D4: 37 | E4: 35 | F4: 28 | G4: 33 | H4: 80 | I4: 69 | J4: 76 | K4: 92 | L4: 85 | M4: 61 | N4: 49 | O4: 54 | P4: 74 | Q4: 67 | R4: 60 | S4: 39 | T4: 26 | U4: 8 | V4: 4 | W4: 0 | X4: 漁町
A5: 福住町１ 丁目 | B5: =SUM(C5:W5) -> 694 | C5: 20 | D5: 42 | E5: 41 | F5: 21 | G5: 21 | H5: 27 | I5: 43 | J5: 53 | K5: 60 | L5: 43 | M5: 29 | N5: 36 | O5: 46 | P5: 38 | Q5: 42 | R5: 39 | S5: 53 | T5: 33 | U5: 4 | V5: 3 | W5: 0 | X5: 福住町１ 丁目
A6: 福住町２ 丁目 | B6: =SUM(C6:W6) -> 373 | C6: 18 | D6: 17 | E6: 27 | F6: 15 | G6: 10 | H6: 18 | I6: 25 | J6: 20 | K6: 31 | L6: 32 | M6: 16 | N6: 27 | O6: 18 | P6: 17 | Q6: 27 | R6: 19 | S6: 18 | T6: 14 | U6: 3 | V6: 1 | W6: 0 | X6: 福住町２ 丁目
A7: 福住町３ 丁目 | B7: 573 | C7: 31 | D7: 30 | E7: 28 | F7: 21 | G7: 21 | H7: 24 | I7: 37 | J7: 42 | K7: 44 | L7: 33 | M7: 38 | N7: 21 | O7: 36 | P7: 29 | Q7: 32 | R7: 38 | S7: 38 | T7: 17 | U7: 8 | V7: 4 | W7: 1 | X7: 福住町３ 丁目
A8: 新町 | B8: 77 | C8: 5 | D8: 3 | E8: 5 | F8: 5 | G8: 7 | H8: 2 | I8: 2 | J8: 4 | K8: 8 | L8: 6 | M8: 5 | N8: 5 | O8: 2 | P8: 6 | Q8: 4 | R8: 2 | S8: 2 | T8: 1 | U8: 1 | V8: 2 | W8: 0 | X8: 新町
A9: 本町 | B9: 445 | C9: 23 | D9: 16 | E9: 21 | F9: 24 | G9: 16 | H9: 8 | I9: 27 | J9: 30 | K9: 28 | L9: 34 | M9: 31 | N9: 25 | O9: 28 | P9: 41 | Q9: 24 | R9: 26 | S9: 22 | T9: 16 | U9: 5 | V9: 0 | W9: 0 | X9: 本町
A10: 有明町１丁目 | B10: =SUM(C10:W10) -> 424 | C10: 9 | D10: 11 | E10: 13 | F10: 16 | G10: 21 | H10: 19 | I10: 19 | J10: 19 | K10: 29 | L10: 36 | M10: 34 | N10: 37 | O10: 23 | P10: 32 | Q10: 28 | R10: 21 | S10: 40 | T10: 15 | U10: 1 | V10: 0 | W10: 1 | X10: 有明町１丁目
A11: 有明町２ 丁目 | B11: 491 | C11: 11 | D11: 24 | E11: 25 | F11: 25 | G11: 22 | H11: 25 | I11: 27 | J11: 20 | K11: 39 | L11: 41 | M11: 32 | N11: 23 | O11: 23 | P11: 54 | Q11: 23 | R11: 36 | S11: 26 | T11: 9 | U11: 4 | V11: 2 | W11: 0 | X11: 有明町２ 丁目
A12: 有明町３ 丁目 | B12: 249 | C12: 7 | D12: 4 | E12: 10 | F12: 8 | G12: 11 | H12: 5 | I12: 5 | J12: 4 | K12: 12 | L12: 27 | M12: 13 | N12: 7 | O12: 18 | P12: 24 | Q12: 30 | R12: 30 | S12: 20 | T12: 8 | U12: 5 | V12: 1 | W12: 0 | X12: 有明町３ 丁目
A13: 有明町４ 丁目 | B13: 268 | C13: 10 | D13: 10 | E13: 15 | F13: 9 | G13: 5 | H13: 13 | I13: 15 | J13: 11 | K13: 14 | L13: 27 | M13: 18 | N13: 9 | O13: 14 | P13: 30 | Q13: 21 | R13: 21 | S13: 14 | T13: 10 | U13: 2 | V13: 0 | W13: 0 | X13: 有明町４ 丁目
A14: 有明町５ 丁目 | B14: 286 | C14: 12 | D14: 13 | E14: 16 | F14: 17 | G14: 10 | H14: 15 | I14: 23 | J14: 21 | K14: 31 | L14: 12 | M14: 24 | N14: 11 | O14: 14 | P14: 22 | Q14: 16 | R14: 14 | S14: 7 | T14: 8 | U14: 0 | V14: 0 | W14: 0 | X14: 有明町５ 丁目
A15: 有明町６ 丁目 | B15: 386 | C15: 9 | D15: 10 | E15: 11 | F15: 14 | G15: 13 | H15: 17 | I15: 25 | J15: 28 | K15: 21 | L15: 27 | M15: 29 | N15: 22 | O15: 36 | P15: 25 | Q15: 21 | R15: 29 | S15: 32 | T15: 15 | U15: 2 | V15: 0 | W15: 0 | X15: 有明町６ 丁目
A16: 大町１ 丁目 | B16: 231 | C16: 12 | D16: 9 | E16: 23 | F16: 6 | G16: 11 | H16: 11 | I16: 12 | J16: 19 | K16: 13 | L16: 18 | M16: 8 | N16: 10 | O16: 15 | P16: 16 | Q16: 18 | R16: 13 | S16: 11 | T16: 4 | U16: 2 | V16: 0 | W16: 0 | X16: 大町１ 丁目
A17: 大町２ 丁目 | B17: 188 | C17: 6 | D17: 10 | E17: 9 | F17: 6 | G17: 5 | H17: 6 | I17: 11 | J17: 8 | K17: 13 | L17: 16 | M17: 16 | N17: 16 | O17: 7 | P17: 10 | Q17: 7 | R17: 17 | S17: 11 | T17: 10 | U17: 4 | V17: 0 | W17: 0 | X17: 大町２ 丁目
A18: 大町３ 丁目 | B18: 264 | C18: 15 | D18: 10 | E18: 13 | F18: 6 | G18: 14 | H18: 15 | I18: 13 | J18: 18 | K18: 22 | L18: 20 | M18: 15 | N18: 13 | O18: 20 | P18: 18 | Q18: 17 | R18: 16 | S18: 9 | T18: 5 | U18: 4 | V18: 1 | W18: 0 | X18: 大町３ 丁目
A19: 大町４ 丁目 | B19: 176 | C19: 8 | D19: 7 | E19: 3 | F19: 10 | G19: 5 | H19: 3 | I19: 13 | J19: 7 | K19: 10 | L19: 15 | M19: 4 | N19: 17 | O19: 14 | P19: 18 | Q19: 10 | R19: 12 | S19: 7 | T19: 6 | U19: 4 | V19: 3 | W19: 0 | X19: 大町４ 丁目
A20: 文京町１ 丁目 | B20: 571 | C20: 23 | D20: 22 | E20: 36 | F20: 28 | G20: 22 | H20: 25 | I20: 29 | J20: 21 | K20: 33 | L20: 47 | M20: 40 | N20: 34 | O20: 32 | P20: 59 | Q20: 33 | R20: 36 | S20: 27 | T20: 14 | U20: 6 | V20: 4 | W20: 0 | X20: 文京町１ 丁目
A21: 文京町２ 丁目 | B21: 483 | C21: 22 | D21: 26 | E21: 37 | F21: 23 | G21: 26 | H21: 22 | I21: 26 | J21: 23 | K21: 33 | L21: 50 | M21: 46 | N21: 29 | O21: 15 | P21: 35 | Q21: 21 | R21: 28 | S21: 10 | T21: 8 | U21: 3 | V21: 0 | W21: 0 | X21: 文京町２ 丁目
A22: 文京町３ 丁目 | B22: 151 | C22: 10 | D22: 7 | E22: 14 | F22: 16 | G22: 1 | H22: 9 | I22: 10 | J22: 11 | K22: 13 | L22: 10 | M22: 10 | N22: 8 | O22: 5 | P22: 8 | Q22: 6 | R22: 7 | S22: 4 | T22: 2 | U22: 0 | V22: 0 | W22: 0 | X22: 文京町３ 丁目
A23: 文京町４ 丁目 | B23: 661 | C23: 18 | D23: 34 | E23: 28 | F23: 45 | G23: 36 | H23: 24 | I23: 33 | J23: 35 | K23: 49 | L23: 50 | M23: 55 | N23: 49 | O23: 38 | P23: 53 | Q23: 37 | R23: 21 | S23: 33 | T23: 9 | U23: 10 | V23: 4 | W23: 0 | X23: 文京町４ 丁目
A24: 牧場 | B24: 271 | C24: 5 | D24: 4 | E24: 10 | F24: 8 | G24: 9 | H24: 11 | I24: 5 | J24: 12 | K24: 21 | L24: 23 | M24: 27 | N24: 13 | O24: 18 | P24: 30 | Q24: 18 | R24: 21 | S24: 21 | T24: 11 | U24: 2 | V24: 1 | W24: 1 | X24: 牧場
A25: 盤尻 | B25: 18 | C25: 0 | D25: 3 | E25: 1 | F25: 1 | G25: 0 | H25: 0 | I25: 0 | J25: 0 | K25: 1 | L25: 1 | M25: 1 | N25: 1 | O25: 2 | P25: 1 | Q25: 3 | R25: 1 | S25: 2 | T25: 0 | U25: 0 | V25: 0 | W25: 0 | X25: 盤尻
A26: 桜森 | B26: - | X26: 桜森
A27: 中島町１ 丁目 | B27: 637 | C27: 40 | D27: 30 | E27: 28 | F27: 37 | G27: 40 | H27: 35 | I27: 36 | J27: 47 | K27: 50 | L27: 60 | M27: 48 | N27: 37 | O27: 27 | P27: 36 | Q27: 34 | R27: 27 | S27: 7 | T27: 12 | U27: 4 | V27: 2 | W27: 0 | X27: 中島町１ 丁目
A28: 中島町２ 丁目 | B28: 481 | C28: 16 | D28: 18 | E28: 20 | F28: 22 | G28: 30 | H28: 17 | I28: 30 | J28: 33 | K28: 20 | L28: 18 | M28: 35 | N28: 36 | O28: 44 | P28: 57 | Q28: 37 | R28: 20 | S28: 11 | T28: 13 | U28: 2 | V28: 2 | W28: 0 | X28: 中島町２ 丁目
A29: 中島町３ 丁目 | B29: 217 | C29: 8 | D29: 15 | E29: 13 | F29: 8 | G29: 11 | H29: 6 | I29: 11 | J29: 18 | K29: 17 | L29: 19 | M29: 13 | N29: 17 | O29: 19 | P29: 14 | Q29: 11 | R29: 8 | S29: 5 | T29: 2 | U29: 2 | V29: 0 | W29: 0 | X29: 中島町３ 丁目
A30: 中島町４ 丁目 | B30: 987 | C30: 19 | D30: 29 | E30: 50 | F30: 42 | G30: 79 | H30: 62 | I30: 63 | J30: 57 | K30: 60 | L30: 58 | M30: 58 | N30: 75 | O30: 108 | P30: 106 | Q30: 56 | R30: 29 | S30: 14 | T30: 14 | U30: 5 | V30: 3 | W30: 0 | X30: 中島町４ 丁目
A31: 中島町５ 丁目 | B31: 477 | C31: 12 | D31: 36 | E31: 34 | F31: 25 | G31: 34 | H31: 37 | I31: 40 | J31: 47 | K31: 43 | L31: 37 | M31: 22 | N31: 23 | O31: 24 | P31: 18 | Q31: 16 | R31: 16 | S31: 9 | T31: 4 | U31: 0 | V31: 0 | W31: 0 | X31: 中島町５ 丁目
A32: 中島町６ 丁目 | B32: 673 | C32: 28 | D32: 16 | E32: 24 | F32: 20 | G32: 50 | H32: 33 | I32: 47 | J32: 47 | K32: 42 | L32: 37 | M32: 39 | N32: 35 | O32: 54 | P32: 62 | Q32: 46 | R32: 21 | S32: 23 | T32: 24 | U32: 23 | V32: 2 | W32: 0 | X32: 中島町６ 丁目
A33: 恵央町 | B33: 740 | C33: 40 | D33: 39 | E33: 29 | F33: 24 | G33: 24 | H33: 33 | I33: 47 | J33: 38 | K33: 44 | L33: 46 | M33: 39 | N33: 35 | O33: 41 | P33: 64 | Q33: 56 | R33: 56 | S33: 39 | T33: 30 | U33: 13 | V33: 3 | W33: 0 | X33: 恵央町
A34: 幸町1丁目 | B34: 236 | C34: 13 | D34: 12 | E34: 14 | F34: 6 | G34: 5 | H34: 12 | I34: 7 | J34: 9 | K34: 17 | L34: 17 | M34: 16 | N34: 15 | O34: 10 | P34: 11 | Q34: 17 | R34: 31 | S34: 14 | T34: 8 | U34: 0 | V34: 2 | W34: 0 | X34: 幸町1丁目
A35: 幸町2丁目 | B35: 370 | C35: 13 | D35: 9 | E35: 8 | F35: 16 | G35: 20 | H35: 19 | I35: 9 | J35: 12 | K35: 24 | L35: 31 | M35: 35 | N35: 27 | O35: 24 | P35: 25 | Q35: 20 | R35: 28 | S35: 32 | T35: 13 | U35: 4 | V35: 1 | W35: 0 | X35: 幸町2丁目
A36: 幸町3丁目 | B36: 409 | C36: 13 | D36: 12 | E36: 13 | F36: 14 | G36: 24 | H36: 22 | I36: 18 | J36: 15 | K36: 17 | L36: 21 | M36: 36 | N36: 27 | O36: 35 | P36: 42 | Q36: 28 | R36: 31 | S36: 25 | T36: 11 | U36: 3 | V36: 2 | W36: 0 | X36: 幸町3丁目
A37: 幸町4丁目 | B37: 6 | C37: 0 | D37: 0 | E37: 0 | F37: 0 | G37: 0 | H37: 0 | I37: 0 | J37: 0 | K37: 0 | L37: 2 | M37: 0 | N37: 0 | O37: 0 | P37: 0 | Q37: 3 | R37: 1 | S37: 0 | T37: 0 | U37: 0 | V37: 0 | W37: 0 | X37: 幸町4丁目
A38: 柏陽町１ 丁目 | B38: 718 | C38: 25 | D38: 23 | E38: 20 | F38: 31 | G38: 19 | H38: 13 | I38: 22 | J38: 28 | K38: 49 | L38: 47 | M38: 38 | N38: 32 | O38: 30 | P38: 100 | Q38: 74 | R38: 61 | S38: 53 | T38: 30 | U38: 18 | V38: 4 | W38: 1 | X38: 柏陽町１ 丁目
A39: 柏陽町３ 丁目 | B39: 1681 | C39: 114 | D39: 164 | E39: 120 | F39: 56 | G39: 47 | H39: 42 | I39: 121 | J39: 157 | K39: 187 | L39: 105 | M39: 73 | N39: 75 | O39: 95 | P39: 124 | Q39: 96 | R39: 48 | S39: 32 | T39: 17 | U39: 5 | V39: 3 | W39: 0 | X39: 柏陽町３ 丁目
A40: 柏陽町４ 丁目 | B40: 523 | C40: 6 | D40: 6 | E40: 11 | F40: 14 | G40: 19 | H40: 16 | I40: 17 | J40: 10 | K40: 32 | L40: 25 | M40: 29 | N40: 27 | O40: 29 | P40: 71 | Q40: 61 | R40: 67 | S40: 42 | T40: 27 | U40: 9 | V40: 5 | W40: 0 | X40: 柏陽町４ 丁目
A41: 柏木町 | B41: 315 | C41: 2 | D41: 2 | E41: 4 | F41: 28 | G41: 69 | H41: 42 | I41: 23 | J41: 11 | K41: 12 | L41: 10 | M41: 1 | N41: 8 | O41: 9 | P41: 15 | Q41: 18 | R41: 12 | S41: 13 | T41: 11 | U41: 15 | V41: 10 | W41: 0 | X41: 柏木町
A42: 柏木町１ 丁目 | B42: 408 | C42: 11 | D42: 11 | E42: 10 | F42: 12 | G42: 21 | H42: 16 | I42: 15 | J42: 27 | K42: 37 | L42: 35 | M42: 27 | N42: 40 | O42: 24 | P42: 36 | Q42: 26 | R42: 25 | S42: 19 | T42: 11 | U42: 4 | V42: 1 | W42: 0 | X42: 柏木町１ 丁目
A43: 柏木町２ 丁目 | B43: 261 | C43: 15 | D43: 23 | E43: 12 | F43: 8 | G43: 11 | H43: 22 | I43: 20 | J43: 14 | K43: 12 | L43: 18 | M43: 19 | N43: 13 | O43: 14 | P43: 20 | Q43: 13 | R43: 10 | S43: 11 | T43: 6 | U43: 0 | V43: 0 | W43: 0 | X43: 柏木町２ 丁目
A44: 柏木町３ 丁目 | B44: 606 | C44: 29 | D44: 21 | E44: 24 | F44: 19 | G44: 35 | H44: 25 | I44: 32 | J44: 37 | K44: 48 | L44: 64 | M44: 37 | N44: 35 | O44: 44 | P44: 53 | Q44: 22 | R44: 30 | S44: 29 | T44: 14 | U44: 6 | V44: 2 | W44: 0 | X44: 柏木町３ 丁目
A45: 柏木町４ 丁目 | B45: 362 | C45: 15 | D45: 7 | E45: 10 | F45: 9 | G45: 18 | H45: 17 | I45: 31 | J45: 26 | K45: 20 | L45: 32 | M45: 24 | N45: 22 | O45: 12 | P45: 40 | Q45: 27 | R45: 26 | S45: 14 | T45: 8 | U45: 3 | V45: 1 | W45: 0 | X45: 柏木町４ 丁目
A46: 柏木町５ 丁目 | B46: 568 | C46: 25 | D46: 22 | E46: 31 | F46: 23 | G46: 23 | H46: 27 | I46: 26 | J46: 28 | K46: 50 | L46: 63 | M46: 49 | N46: 36 | O46: 44 | P46: 36 | Q46: 27 | R46: 21 | S46: 28 | T46: 9 | U46: 0 | V46: 0 | W46: 0 | X46: 柏木町５ 丁目
A47: 北柏木町１ 丁目 | B47: 736 | C47: 28 | D47: 29 | E47: 18 | F47: 31 | G47: 43 | H47: 31 | I47: 37 | J47: 49 | K47: 46 | L47: 50 | M47: 46 | N47: 66 | O47: 79 | P47: 70 | Q47: 31 | R47: 31 | S47: 20 | T47: 15 | U47: 15 | V47: 1 | W47: 0 | X47: 北柏木町１ 丁目
A48: 北柏木町２ 丁目 | B48: 618 | C48: 25 | D48: 30 | E48: 13 | F48: 21 | G48: 36 | H48: 32 | I48: 36 | J48: 40 | K48: 35 | L48: 38 | M48: 39 | N48: 35 | O48: 31 | P48: 71 | Q48: 62 | R48: 32 | S48: 24 | T48: 9 | U48: 4 | V48: 5 | W48: 0 | X48: 北柏木町２ 丁目
A49: 北柏木町３ 丁目 | B49: 29 | C49: 1 | D49: 0 | E49: 3 | F49: 0 | G49: 2 | H49: 1 | I49: 1 | J49: 2 | K49: 1 | L49: 2 | M49: 0 | N49: 1 | O49: 3 | P49: 4 | Q49: 2 | R49: 3 | S49: 1 | T49: 2 | U49: 0 | V49: 0 | W49: 0 | X49: 北柏木町３ 丁目
A50: 北柏木町４ 丁目 | B50: 8 | C50: 0 | D50: 2 | E50: 1 | F50: 0 | G50: 0 | H50: 0 | I50: 0 | J50: 0 | K50: 2 | L50: 1 | M50: 0 | N50: 0 | O50: 0 | P50: 0 | Q50: 1 | R50: 1 | S50: 0 | T50: 0 | U50: 0 | V50: 0 | W50: 0 | X50: 北柏木町４ 丁目
A51: 北柏木町５ 丁目 | B51: 4 | C51: 0 | D51: 0 | E51: 0 | F51: 1 | G51: 1 | H51: 0 | I51: 0 | J51: 0 | K51: 1 | L51: 1 | M51: 0 | N51: 0 | O51: 0 | P51: 0 | Q51: 0 | R51: 0 | S51: 0 | T51: 0 | U51: 0 | V51: 0 | W51: 0 | X51: 北柏木町５ 丁目
A52: 島松沢 | B52: 15 | C52: 0 | D52: 0 | E52: 0 | F52: 0 | G52: 1 | H52: 1 | I52: 0 | J52: 1 | K52: 0 | L52: 0 | M52: 1 | N52: 1 | O52: 3 | P52: 1 | Q52: 2 | R52: 0 | S52: 2 | T52: 2 | U52: 0 | V52: 0 | W52: 0 | X52: 島松沢
A53: 美咲野１ 丁目 | B53: 594 | C53: 13 | D53: 22 | E53: 25 | F53: 55 | G53: 60 | H53: 18 | I53: 22 | J53: 15 | K53: 45 | L53: 80 | M53: 87 | N53: 73 | O53: 25 | P53: 12 | Q53: 18 | R53: 11 | S53: 6 | T53: 6 | U53: 0 | V53: 1 | W53: 0 | X53: 美咲野１ 丁目
A54: 美咲野２ 丁目 | B54: 364 | C54: 3 | D54: 10 | E54: 25 | F54: 56 | G54: 36 | H54: 9 | I54: 4 | J54: 11 | K54: 30 | L54: 58 | M54: 54 | N54: 20 | O54: 16 | P54: 10 | Q54: 8 | R54: 4 | S54: 4 | T54: 3 | U54: 3 | V54: 0 | W54: 0 | X54: 美咲野２ 丁目
A55: 美咲野３ 丁目 | B55: 353 | C55: 6 | D55: 6 | E55: 18 | F55: 33 | G55: 39 | H55: 10 | I55: 16 | J55: 10 | K55: 24 | L55: 38 | M55: 59 | N55: 43 | O55: 19 | P55: 10 | Q55: 4 | R55: 6 | S55: 5 | T55: 5 | U55: 1 | V55: 1 | W55: 0 | X55: 美咲野３ 丁目
A56: 美咲野４ 丁目 | B56: =SUM(C56:W56) -> 288 | C56: 2 | D56: 5 | E56: 24 | F56: 38 | G56: 28 | H56: 11 | I56: 2 | J56: 3 | K56: 31 | L56: 44 | M56: 37 | N56: 18 | O56: 12 | P56: 5 | Q56: 5 | R56: 4 | S56: 8 | T56: 9 | U56: 2 | V56: 0 | W56: 0 | X56: 美咲野４ 丁目
A57: 〈資料〉生活環境部市民課

Sheet 町内別年齢別人口③
X2: 平成30年9月末現在
A3: 町 名 | B3: 総数 | C3: 0歳～ 4歳 | D3: 5歳～ 9歳 | E3: 10歳～ 14歳 | F3: 15歳～ 19歳 | G3: 20歳～ 24歳 | H3: 25歳～ 29歳 | I3: 30歳～ 34歳 | J3: 35歳～ 39歳 | K3: 40歳～ 44歳 | L3: 45歳～ 49歳 | M3: 50歳～ 54歳 | N3: 55歳～59歳 | O3: 60歳～64歳 | P3: 65歳～69歳 | Q3: 70歳～74歳 | R3: 75歳～79歳 | S3: 80歳～84歳 | T3: 85歳～89歳 | U3: 90歳～94歳 | V3: 95歳～99歳 | W3: 100歳以上 | X3: 町 名
A4: 美咲野５ 丁目 | B4: =SUM(C4:W4) -> 248 | C4: 5 | D4: 7 | E4: 25 | F4: 25 | G4: 10 | H4: 4 | I4: 4 | J4: 8 | K4: 21 | L4: 26 | M4: 17 | N4: 15 | O4: 16 | P4: 17 | Q4: 9 | R4: 13 | S4: 17 | T4: 5 | U4: 3 | V4: 1 | W4: 0 | X4: 美咲野５ 丁目
A5: 美咲野６ 丁目 | B5: =SUM(C5:W5) -> 387 | C5: 6 | D5: 26 | E5: 42 | F5: 43 | G5: 17 | H5: 5 | I5: 4 | J5: 19 | K5: 46 | L5: 52 | M5: 33 | N5: 25 | O5: 12 | P5: 10 | Q5: 13 | R5: 15 | S5: 10 | T5: 4 | U5: 2 | V5: 3 | W5: 0 | X5: 美咲野６ 丁目
A6: 恵み野東１ 丁目 | B6: =SUM(C6:W6) -> 301 | C6: 11 | D6: 11 | E6: 13 | F6: 8 | G6: 6 | H6: 5 | I6: 14 | J6: 14 | K6: 9 | L6: 10 | M6: 15 | N6: 20 | O6: 44 | P6: 45 | Q6: 30 | R6: 12 | S6: 17 | T6: 7 | U6: 9 | V6: 1 | W6: 0 | X6: 恵み野東１ 丁目
A7: 恵み野東２ 丁目 | B7: 554 | C7: 15 | D7: 28 | E7: 23 | F7: 22 | G7: 25 | H7: 17 | I7: 24 | J7: 24 | K7: 32 | L7: 41 | M7: 20 | N7: 56 | O7: 58 | P7: 69 | Q7: 42 | R7: 20 | S7: 16 | T7: 16 | U7: 5 | V7: 1 | W7: 0 | X7: 恵み野東２ 丁目
A8: 恵み野東３ 丁目 | B8: 392 | C8: 7 | D8: 14 | E8: 12 | F8: 19 | G8: 14 | H8: 13 | I8: 9 | J8: 24 | K8: 21 | L8: 24 | M8: 23 | N8: 27 | O8: 52 | P8: 49 | Q8: 29 | R8: 19 | S8: 24 | T8: 9 | U8: 2 | V8: 1 | W8: 0 | X8: 恵み野東３ 丁目
A9: 恵み野東４ 丁目 | B9: 885 | C9: 107 | D9: 106 | E9: 55 | F9: 25 | G9: 11 | H9: 30 | I9: 90 | J9: 112 | K9: 85 | L9: 34 | M9: 24 | N9: 36 | O9: 56 | P9: 51 | Q9: 22 | R9: 17 | S9: 10 | T9: 8 | U9: 4 | V9: 2 | W9: 0 | X9: 恵み野東４ 丁目
A10: 恵み野東５ 丁目 | B10: 582 | C10: 15 | D10: 28 | E10: 24 | F10: 31 | G10: 19 | H10: 14 | I10: 31 | J10: 29 | K10: 37 | L10: 38 | M10: 39 | N10: 43 | O10: 76 | P10: 64 | Q10: 38 | R10: 20 | S10: 22 | T10: 9 | U10: 4 | V10: 1 | W10: 0 | X10: 恵み野東５ 丁目
A11: 恵み野東６ 丁目 | B11: 477 | C11: 14 | D11: 12 | E11: 25 | F11: 15 | G11: 21 | H11: 13 | I11: 20 | J11: 26 | K11: 30 | L11: 20 | M11: 36 | N11: 41 | O11: 65 | P11: 52 | Q11: 28 | R11: 26 | S11: 15 | T11: 13 | U11: 2 | V11: 1 | W11: 2 | X11: 恵み野東６ 丁目
A12: 恵み野東７ 丁目 | B12: 556 | C12: 23 | D12: 25 | E12: 23 | F12: 27 | G12: 41 | H12: 23 | I12: 23 | J12: 25 | K12: 32 | L12: 38 | M12: 50 | N12: 73 | O12: 53 | P12: 35 | Q12: 21 | R12: 13 | S12: 18 | T12: 9 | U12: 1 | V12: 1 | W12: 2 | X12: 恵み野東７ 丁目
A13: 恵み野西１ 丁目 | B13: 697 | C13: 12 | D13: 31 | E13: 33 | F13: 28 | G13: 18 | H13: 16 | I13: 28 | J13: 33 | K13: 48 | L13: 39 | M13: 33 | N13: 35 | O13: 45 | P13: 84 | Q13: 77 | R13: 50 | S13: 39 | T13: 24 | U13: 19 | V13: 5 | W13: 0 | X13: 恵み野西１ 丁目
A14: 恵み野西２ 丁目 | B14: 264 | C14: 7 | D14: 4 | E14: 2 | F14: 11 | G14: 14 | H14: 7 | I14: 13 | J14: 15 | K14: 10 | L14: 17 | M14: 11 | N14: 16 | O14: 20 | P14: 22 | Q14: 23 | R14: 11 | S14: 23 | T14: 27 | U14: 9 | V14: 2 | W14: 0 | X14: 恵み野西２ 丁目
A15: 恵み野西３ 丁目 | B15: 338 | C15: 4 | D15: 8 | E15: 8 | F15: 15 | G15: 6 | H15: 6 | I15: 15 | J15: 11 | K15: 13 | L15: 18 | M15: 20 | N15: 17 | O15: 26 | P15: 51 | Q15: 42 | R15: 30 | S15: 17 | T15: 18 | U15: 9 | V15: 3 | W15: 1 | X15: 恵み野西３ 丁目
A16: 恵み野西４ 丁目 | B16: 465 | C16: 9 | D16: 19 | E16: 21 | F16: 19 | G16: 11 | H16: 6 | I16: 12 | J16: 21 | K16: 34 | L16: 18 | M16: 26 | N16: 20 | O16: 27 | P16: 77 | Q16: 70 | R16: 28 | S16: 22 | T16: 16 | U16: 6 | V16: 2 | W16: 1 | X16: 恵み野西４ 丁目
A17: 恵み野西５ 丁目 | B17: 281 | C17: 2 | D17: 4 | E17: 7 | F17: 15 | G17: 5 | H17: 1 | I17: 6 | J17: 11 | K17: 7 | L17: 10 | M17: 7 | N17: 17 | O17: 27 | P17: 47 | Q17: 25 | R17: 17 | S17: 16 | T17: 26 | U17: 20 | V17: 11 | W17: 0 | X17: 恵み野西５ 丁目
A18: 恵み野西６ 丁目 | B18: 820 | C18: 10 | D18: 19 | E18: 23 | F18: 35 | G18: 40 | H18: 28 | I18: 23 | J18: 38 | K18: 35 | L18: 34 | M18: 45 | N18: 59 | O18: 86 | P18: 110 | Q18: 86 | R18: 47 | S18: 49 | T18: 35 | U18: 13 | V18: 5 | W18: 0 | X18: 恵み野西６ 丁目
A19: 恵み野南１ 丁目 | B19: 263 | C19: 3 | D19: 11 | E19: 16 | F19: 20 | G19: 12 | H19: 4 | I19: 7 | J19: 12 | K19: 20 | L19: 19 | M19: 22 | N19: 16 | O19: 5 | P19: 20 | Q19: 20 | R19: 30 | S19: 11 | T19: 11 | U19: 3 | V19: 1 | W19: 0 | X19: 恵み野南１ 丁目
A20: 恵み野南２ 丁目 | B20: 501 | C20: 3 | D20: 12 | E20: 22 | F20: 22 | G20: 17 | H20: 12 | I20: 9 | J20: 24 | K20: 32 | L20: 28 | M20: 23 | N20: 24 | O20: 29 | P20: 66 | Q20: 81 | R20: 60 | S20: 19 | T20: 13 | U20: 3 | V20: 2 | W20: 0 | X20: 恵み野南２ 丁目
A21: 恵み野南３ 丁目 | B21: 599 | C21: 6 | D21: 16 | E21: 20 | F21: 20 | G21: 17 | H21: 16 | I21: 11 | J21: 25 | K21: 45 | L21: 40 | M21: 20 | N21: 22 | O21: 52 | P21: 105 | Q21: 70 | R21: 51 | S21: 36 | T21: 16 | U21: 4 | V21: 4 | W21: 3 | X21: 恵み野南３ 丁目
A22: 恵み野南４ 丁目 | B22: 715 | C22: 12 | D22: 14 | E22: 39 | F22: 35 | G22: 16 | H22: 8 | I22: 19 | J22: 38 | K22: 46 | L22: 45 | M22: 30 | N22: 45 | O22: 64 | P22: 96 | Q22: 82 | R22: 44 | S22: 30 | T22: 33 | U22: 15 | V22: 4 | W22: 0 | X22: 恵み野南４ 丁目
A23: 恵み野南５ 丁目 | B23: =SUM(C23:W23) -> 13 | C23: 0 | D23: 0 | E23: 1 | F23: 0 | G23: 0 | H23: 2 | I23: 0 | J23: 0 | K23: 1 | L23: 1 | M23: 0 | N23: 1 | O23: 1 | P23: 2 | Q23: 3 | R23: 0 | S23: 0 | T23: 0 | U23: 0 | V23: 1 | W23: 0 | X23: 恵み野南５ 丁目
A24: 恵み野北１ 丁目 | B24: 459 | C24: 10 | D24: 7 | E24: 10 | F24: 15 | G24: 12 | H24: 14 | I24: 17 | J24: 20 | K24: 18 | L24: 15 | M24: 24 | N24: 46 | O24: 57 | P24: 65 | Q24: 54 | R24: 24 | S24: 26 | T24: 17 | U24: 6 | V24: 2 | W24: 0 | X24: 恵み野北１ 丁目
A25: 恵み野北２ 丁目 | B25: 496 | C25: 8 | D25: 24 | E25: 11 | F25: 24 | G25: 12 | H25: 8 | I25: 18 | J25: 26 | K25: 24 | L25: 24 | M25: 30 | N25: 42 | O25: 59 | P25: 61 | Q25: 44 | R25: 25 | S25: 28 | T25: 18 | U25: 8 | V25: 2 | W25: 0 | X25: 恵み野北２ 丁目
A26: 恵み野北３ 丁目 | B26: 311 | C26: 6 | D26: 7 | E26: 9 | F26: 30 | G26: 31 | H26: 15 | I26: 11 | J26: 12 | K26: 16 | L26: 12 | M26: 14 | N26: 12 | O26: 29 | P26: 38 | Q26: 31 | R26: 14 | S26: 10 | T26: 7 | U26: 6 | V26: 1 | W26: 0 | X26: 恵み野北３ 丁目
A27: 恵み野北４ 丁目 | B27: 328 | C27: 9 | D27: 16 | E27: 14 | F27: 17 | G27: 17 | H27: 16 | I27: 14 | J27: 14 | K27: 19 | L27: 20 | M27: 17 | N27: 19 | O27: 35 | P27: 40 | Q27: 30 | R27: 11 | S27: 12 | T27: 6 | U27: 2 | V27: 0 | W27: 0 | X27: 恵み野北４ 丁目
A28: 恵み野北５ 丁目 | B28: 586 | C28: 74 | D28: 51 | E28: 21 | F28: 13 | G28: 8 | H28: 37 | I28: 67 | J28: 61 | K28: 28 | L28: 25 | M28: 16 | N28: 26 | O28: 29 | P28: 44 | Q28: 39 | R28: 16 | S28: 16 | T28: 10 | U28: 4 | V28: 1 | W28: 0 | X28: 恵み野北５ 丁目
A29: 恵み野北６ 丁目 | B29: 642 | C29: 16 | D29: 26 | E29: 41 | F29: 54 | G29: 56 | H29: 21 | I29: 25 | J29: 30 | K29: 36 | L29: 55 | M29: 80 | N29: 50 | O29: 42 | P29: 40 | Q29: 21 | R29: 13 | S29: 20 | T29: 9 | U29: 5 | V29: 2 | W29: 0 | X29: 恵み野北６ 丁目
A30: 恵み野北７ 丁目 | B30: 791 | C30: 6 | D30: 13 | E30: 44 | F30: 76 | G30: 64 | H30: 35 | I30: 18 | J30: 21 | K30: 43 | L30: 77 | M30: 91 | N30: 125 | O30: 68 | P30: 47 | Q30: 26 | R30: 14 | S30: 9 | T30: 10 | U30: 4 | V30: 0 | W30: 0 | X30: 恵み野北７ 丁目
A31: 恵み野里美１丁目 | B31: 183 | C31: 5 | D31: 3 | E31: 1 | F31: 7 | G31: 29 | H31: 17 | I31: 23 | J31: 6 | K31: 11 | L31: 4 | M31: 8 | N31: 3 | O31: 4 | P31: 5 | Q31: 4 | R31: 16 | S31: 13 | T31: 15 | U31: 8 | V31: 0 | W31: 1 | X31: 恵み野里美１丁目
A32: 恵み野里美２丁目 | B32: 464 | C32: 97 | D32: 74 | E32: 20 | F32: 9 | G32: 3 | H32: 7 | I32: 76 | J32: 68 | K32: 45 | L32: 28 | M32: 10 | N32: 6 | O32: 6 | P32: 10 | Q32: 1 | R32: 0 | S32: 1 | T32: 1 | U32: 2 | V32: 0 | W32: 0 | X32: 恵み野里美２丁目
A33: 島松寿町１ 丁目 | B33: 637 | C33: 13 | D33: 20 | E33: 20 | F33: 21 | G33: 23 | H33: 23 | I33: 24 | J33: 37 | K33: 35 | L33: 39 | M33: 47 | N33: 39 | O33: 39 | P33: 69 | Q33: 40 | R33: 41 | S33: 53 | T33: 35 | U33: 18 | V33: 0 | W33: 1 | X33: 島松寿町１ 丁目
A34: 島松寿町２ 丁目 | B34: 968 | C34: 31 | D34: 19 | E34: 26 | F34: 48 | G34: 35 | H34: 33 | I34: 41 | J34: 35 | K34: 54 | L34: 70 | M34: 63 | N34: 70 | O34: 57 | P34: 89 | Q34: 88 | R34: 87 | S34: 65 | T34: 40 | U34: 10 | V34: 7 | W34: 0 | X34: 島松寿町２ 丁目
A35: 島松仲町１ 丁目 | B35: 259 | C35: 6 | D35: 8 | E35: 5 | F35: 19 | G35: 11 | H35: 12 | I35: 10 | J35: 12 | K35: 18 | L35: 18 | M35: 9 | N35: 22 | O35: 19 | P35: 27 | Q35: 16 | R35: 18 | S35: 8 | T35: 14 | U35: 6 | V35: 1 | W35: 0 | X35: 島松仲町１ 丁目
A36: 島松仲町２ 丁目 | B36: 203 | C36: 4 | D36: 7 | E36: 1 | F36: 7 | G36: 6 | H36: 7 | I36: 9 | J36: 6 | K36: 8 | L36: 11 | M36: 20 | N36: 19 | O36: 9 | P36: 9 | Q36: 20 | R36: 17 | S36: 23 | T36: 16 | U36: 3 | V36: 0 | W36: 1 | X36: 島松仲町２ 丁目
A37: 島松仲町３ 丁目 | B37: 158 | C37: 3 | D37: 3 | E37: 3 | F37: 4 | G37: 8 | H37: 9 | I37: 5 | J37: 6 | K37: 7 | L37: 16 | M37: 12 | N37: 9 | O37: 12 | P37: 11 | Q37: 10 | R37: 13 | S37: 13 | T37: 12 | U37: 2 | V37: 0 | W37: 0 | X37: 島松仲町３ 丁目
A38: 島松東町１ 丁目 | B38: 287 | C38: 11 | D38: 15 | E38: 9 | F38: 12 | G38: 9 | H38: 13 | I38: 17 | J38: 14 | K38: 16 | L38: 31 | M38: 15 | N38: 20 | O38: 16 | P38: 20 | Q38: 17 | R38: 18 | S38: 20 | T38: 11 | U38: 3 | V38: 0 | W38: 0 | X38: 島松東町１ 丁目
A39: 島松東町２ 丁目 | B39: 341 | C39: 9 | D39: 16 | E39: 6 | F39: 13 | G39: 5 | H39: 10 | I39: 17 | J39: 15 | K39: 18 | L39: 19 | M39: 20 | N39: 28 | O39: 25 | P39: 41 | Q39: 31 | R39: 26 | S39: 24 | T39: 14 | U39: 3 | V39: 0 | W39: 1 | X39: 島松東町２ 丁目
A40: 島松東町３ 丁目 | B40: 421 | C40: 31 | D40: 22 | E40: 20 | F40: 19 | G40: 13 | H40: 23 | I40: 27 | J40: 21 | K40: 22 | L40: 29 | M40: 32 | N40: 20 | O40: 26 | P40: 26 | Q40: 17 | R40: 29 | S40: 21 | T40: 18 | U40: 5 | V40: 0 | W40: 0 | X40: 島松東町３ 丁目
A41: 島松東町４ 丁目 | B41: 202 | C41: 4 | D41: 6 | E41: 12 | F41: 10 | G41: 6 | H41: 7 | I41: 6 | J41: 9 | K41: 15 | L41: 11 | M41: 15 | N41: 11 | O41: 15 | P41: 25 | Q41: 18 | R41: 15 | S41: 12 | T41: 3 | U41: 2 | V41: 0 | W41: 0 | X41: 島松東町４ 丁目
A42: 島松本町１ 丁目 | B42: 472 | C42: 12 | D42: 15 | E42: 15 | F42: 33 | G42: 24 | H42: 21 | I42: 22 | J42: 20 | K42: 24 | L42: 28 | M42: 40 | N42: 44 | O42: 37 | P42: 29 | Q42: 31 | R42: 23 | S42: 20 | T42: 25 | U42: 8 | V42: 1 | W42: 0 | X42: 島松本町１ 丁目
A43: 島松本町２ 丁目 | B43: 591 | C43: 21 | D43: 21 | E43: 20 | F43: 35 | G43: 31 | H43: 31 | I43: 31 | J43: 35 | K43: 38 | L43: 46 | M43: 37 | N43: 39 | O43: 37 | P43: 39 | Q43: 28 | R43: 23 | S43: 40 | T43: 27 | U43: 9 | V43: 3 | W43: 0 | X43: 島松本町２ 丁目
A44: 島松本町３ 丁目 | B44: 715 | C44: 22 | D44: 21 | E44: 31 | F44: 31 | G44: 25 | H44: 34 | I44: 38 | J44: 46 | K44: 52 | L44: 41 | M44: 56 | N44: 54 | O44: 39 | P44: 57 | Q44: 60 | R44: 46 | S44: 36 | T44: 15 | U44: 7 | V44: 4 | W44: 0 | X44: 島松本町３ 丁目
A45: 島松本町４ 丁目 | B45: 513 | C45: 15 | D45: 17 | E45: 25 | F45: 25 | G45: 16 | H45: 16 | I45: 17 | J45: 26 | K45: 31 | L45: 43 | M45: 29 | N45: 38 | O45: 31 | P45: 42 | Q45: 62 | R45: 34 | S45: 27 | T45: 14 | U45: 3 | V45: 2 | W45: 0 | X45: 島松本町４ 丁目
A46: 島松旭町１ 丁目 | B46: 330 | C46: 9 | D46: 11 | E46: 14 | F46: 13 | G46: 21 | H46: 10 | I46: 11 | J46: 24 | K46: 14 | L46: 14 | M46: 30 | N46: 32 | O46: 30 | P46: 28 | Q46: 32 | R46: 14 | S46: 14 | T46: 6 | U46: 3 | V46: 0 | W46: 0 | X46: 島松旭町１ 丁目
A47: 島松旭町２ 丁目 | B47: 364 | C47: 20 | D47: 14 | E47: 18 | F47: 20 | G47: 8 | H47: 17 | I47: 20 | J47: 30 | K47: 16 | L47: 29 | M47: 25 | N47: 13 | O47: 29 | P47: 40 | Q47: 16 | R47: 15 | S47: 16 | T47: 12 | U47: 5 | V47: 1 | W47: 0 | X47: 島松旭町２ 丁目
A48: 島松旭町３ 丁目 | B48: 313 | C48: 12 | D48: 13 | E48: 25 | F48: 44 | G48: 27 | H48: 8 | I48: 7 | J48: 18 | K48: 25 | L48: 44 | M48: 34 | N48: 24 | O48: 5 | P48: 17 | Q48: 5 | R48: 0 | S48: 4 | T48: 1 | U48: 0 | V48: 0 | W48: 0 | X48: 島松旭町３ 丁目
A49: 島松旭町４ 丁目 | B49: 381 | C49: 10 | D49: 11 | E49: 20 | F49: 16 | G49: 11 | H49: 13 | I49: 18 | J49: 24 | K49: 23 | L49: 25 | M49: 13 | N49: 32 | O49: 13 | P49: 42 | Q49: 38 | R49: 35 | S49: 22 | T49: 9 | U49: 4 | V49: 2 | W49: 0 | X49: 島松旭町４ 丁目
A50: 西島松 | B50: 729 | C50: 27 | D50: 16 | E50: 12 | F50: 60 | G50: 124 | H50: 76 | I50: 49 | J50: 43 | K50: 45 | L50: 41 | M50: 21 | N50: 19 | O50: 24 | P50: 32 | Q50: 40 | R50: 46 | S50: 24 | T50: 16 | U50: 12 | V50: 2 | W50: 0 | X50: 西島松
A51: 南島松 | B51: 198 | C51: 2 | D51: 2 | E51: 4 | F51: 5 | G51: 2 | H51: 3 | I51: 6 | J51: 6 | K51: 8 | L51: 3 | M51: 6 | N51: 17 | O51: 17 | P51: 26 | Q51: 6 | R51: 12 | S51: 14 | T51: 29 | U51: 23 | V51: 7 | W51: 0 | X51: 南島松
A52: 中島松 | B52: 152 | C52: 2 | D52: 4 | E52: 4 | F52: 3 | G52: 5 | H52: 10 | I52: 7 | J52: 4 | K52: 7 | L52: 7 | M52: 7 | N52: 14 | O52: 10 | P52: 25 | Q52: 11 | R52: 8 | S52: 9 | T52: 9 | U52: 6 | V52: 0 | W52: 0 | X52: 中島松
A53: 下 島 松 | B53: 293 | C53: 6 | D53: 4 | E53: 14 | F53: 9 | G53: 15 | H53: 7 | I53: 8 | J53: 7 | K53: 9 | L53: 20 | M53: 14 | N53: 24 | O53: 32 | P53: 23 | Q53: 28 | R53: 18 | S53: 27 | T53: 22 | U53: 6 | V53: 0 | W53: 0 | X53: 下 島 松
A54: 穂 栄 | B54: 98 | C54: 3 | D54: 5 | E54: 2 | F54: 1 | G54: 6 | H54: 4 | I54: 2 | J54: 7 | K54: 6 | L54: 3 | M54: 6 | N54: 2 | O54: 2 | P54: 9 | Q54: 12 | R54: 16 | S54: 7 | T54: 2 | U54: 2 | V54: 1 | W54: 0 | X54: 穂 栄
A55: 北 島 | B55: 85 | C55: 0 | D55: 2 | E55: 7 | F55: 7 | G55: 3 | H55: 1 | I55: 3 | J55: 0 | K55: 7 | L55: 2 | M55: 6 | N55: 9 | O55: 5 | P55: 7 | Q55: 6 | R55: 4 | S55: 9 | T55: 5 | U55: 2 | V55: 0 | W55: 0 | X55: 北 島
A56: 合計 | B56: 69794 | C56: 2630 | D56: 3051 | E56: 3316 | F56: 3612 | G56: 3660 | H56: 3211 | I56: 3692 | J56: 4233 | K56: 5158 | L56: 5182 | M56: 4538 | N56: 4313 | O56: 4359 | P56: 5456 | Q56: 4257 | R56: 3460 | S56: 2873 | T56: 1789 | U56: 756 | V56: 227 | W56: 21 | X56: 合 計
A57: 〈資料〉生活環境部市民課

Sheet 人口動態、外国人登録人口
A1: ５）人口動態(届出数)
K2: (各年･月中)
A3: 年 月 | B3: 増 減 | C3: 自 然 動 態 | F3: 社 会 動 態 | I3: 職権による | L3: 婚 姻 | M3: 離 婚
B4: 人 口 | C4: 出 生 | D4: 死 亡 | E4: 増 減 | F4: 転 入 | G4: 転 出 | H4: 増 減 | I4: 増 加 | J4: 減 少 | K4: 増 減
A5: 20年 | B5: 167 | C5: 576 | D5: 496 | E5: 80 | F5: 3481 | G5: 3417 | H5: 64 | I5: 32 | J5: 9 | K5: 23 | L5: 813 | M5: 230
A6: 21年 | B6: △ 31 | C6: 552 | D6: 501 | E6: 51 | F6: 3178 | G6: 3278 | H6: △ 100 | I6: 28 | J6: 10 | K6: 18 | L6: 773 | M6: 227
A7: 22年 | B7: 143 | C7: 551 | D7: 499 | E7: 52 | F7: 3046 | G7: 2976 | H7: 70 | I7: 23 | J7: 2 | K7: 21 | L7: 843 | M7: 245
A8: 23年 | B8: 64 | C8: 523 | D8: 500 | E8: 23 | F8: 3012 | G8: 2996 | H8: 16 | I8: 29 | J8: 4 | K8: 25 | L8: 744 | M8: 213
A9: 24年 | B9: 242 | C9: 508 | D9: 590 | E9: -82 | F9: 2945 | G9: 2871 | H9: 74 | I9: 264 | J9: 14 | K9: 250 | L9: 775 | M9: 224
A10: 25年 | B10: -294 | C10: 510 | D10: 583 | E10: -73 | F10: 2956 | G10: 3159 | H10: -203 | I10: 17 | J10: 35 | K10: -18 | L10: 744 | M10: 203
A11: 26年 | B11: 63 | C11: 498 | D11: 607 | E11: -109 | F11: 3194 | G11: 3014 | H11: 180 | I11: 19 | J11: 27 | K11: -8 | L11: 698 | M11: 205
A12: 27年 | B12: 117 | C12: 495 | D12: 667 | E12: -172 | F12: 3286 | G12: 2990 | H12: 296 | I12: 26 | J12: 33 | K12: -7 | L12: 698 | M12: 203
A13: 28年 | B13: 154 | C13: 462 | D13: 630 | E13: -168 | F13: 3393 | G13: 3072 | H13: 321 | I13: 27 | J13: 26 | K13: 1 | L13: 731 | M13: 187
A14: 29年 | B14: 294 | C14: 489 | D14: 667 | E14: -178 | F14: 3602 | G14: 3127 | H14: 475 | I14: 20 | J14: 23 | K14: -3 | L14: 747 | M14: 204
A15: 30年 | B15: 329 | C15: 430 | D15: 664 | E15: -234 | F15: 3511 | G15: 2949 | H15: 562 | I15: 24 | J15: 23 | K15: 1 | L15: 723 | M15: 192
A16: 1月 | B16: 43 | C16: 47 | D16: 62 | E16: -15 | F16: 169 | G16: 110 | H16: 59 | I16: 0 | J16: 1 | K16: -1 | L16: 52 | M16: 12
A17: 2月 | B17: -29 | C17: 20 | D17: 62 | E17: -42 | F17: 170 | G17: 158 | H17: 12 | I17: 1 | J17: 0 | K17: 1 | L17: 69 | M17: 18
A18: 3月 | B18: -88 | C18: 40 | D18: 54 | E18: -14 | F18: 738 | G18: 816 | H18: -78 | I18: 7 | J18: 3 | K18: 4 | L18: 69 | M18: 18
A19: 4月 | B19: 133 | C19: 34 | D19: 38 | E19: -4 | F19: 509 | G19: 368 | H19: 141 | I19: 2 | J19: 6 | K19: -4 | L19: 54 | M19: 18
A20: 5月 | B20: 33 | C20: 46 | D20: 69 | E20: -23 | F20: 220 | G20: 161 | H20: 59 | I20: 1 | J20: 4 | K20: -3 | L20: 52 | M20: 17
A21: 6月 | B21: 21 | C21: 36 | D21: 43 | E21: -7 | F21: 187 | G21: 159 | H21: 28 | I21: 1 | J21: 1 | K21: 0 | L21: 53 | M21: 15
A22: 7月 | B22: 84 | C22: 29 | D22: 62 | E22: -33 | F22: 309 | G22: 194 | H22: 115 | I22: 4 | J22: 2 | K22: 2 | L22: 59 | M22: 16
A23: 8月 | B23: 65 | C23: 37 | D23: 44 | E23: -7 | F23: 322 | G23: 249 | H23: 73 | I23: 2 | J23: 3 | K23: -1 | L23: 57 | M23: 8
A24: 9月 | B24: 11 | C24: 44 | D24: 58 | E24: -14 | F24: 255 | G24: 233 | H24: 22 | I24: 3 | J24: 0 | K24: 3 | L24: 70 | M24: 14
A25: 10月 | B25: 40 | C25: 38 | D25: 55 | E25: -17 | F25: 240 | G25: 183 | H25: 57 | I25: 0 | J25: 0 | K25: 0 | L25: 51 | M25: 25
A26: 11月 | B26: 32 | C26: 32 | D26: 59 | E26: -27 | F26: 213 | G26: 153 | H26: 60 | I26: 1 | J26: 2 | K26: -1 | L26: 77 | M26: 16
A27: 12月 | B27: -16 | C27: 27 | D27: 58 | E27: -31 | F27: 179 | G27: 165 | H27: 14 | I27: 2 | J27: 1 | K27: 1 | L27: 60 | M27: 15
A28: 〈資料〉生活環境部市民課
A29: 注) 婚姻､離婚の件数は､恵庭市で受理した分と他市町村で受理して恵庭市に送付された分との 合算である。
A33: ６）外国人住民の人口
I34: (各年度３月)
A35: 区 分 | C35: 平成25年度 | F35: 平成26年度 | I35: 平成27年度
C36: 計 | D36: 男 | E36: 女 | F36: 計 | G36: 男 | H36: 女 | I36: 計 | J36: 男 | K36: 女
A37: 韓国、朝鮮 | C37: 47 | D37: 24 | E37: 23 | F37: 47 | G37: 24 | H37: 23 | I37: 50 | J37: 27 | K37: 23
A38: 中国 | C38: 135 | D38: 48 | E38: 87 | F38: 101 | G38: 41 | H38: 60 | I38: 102 | J38: 37 | K38: 65
A39: フィリピン | C39: 13 | D39: 2 | E39: 11 | F39: 14 | G39: 3 | H39: 11 | I39: 30 | J39: 7 | K39: 23
A40: アメリカ | C40: 4 | D40: 3 | E40: 1 | F40: 6 | G40: 6 | H40: - | I40: 6 | J40: 6 | K40: -
A41: ロシア | C41: 1 | D41: - | E41: 1 | F41: 1 | G41: - | H41: 1 | I41: 1 | J41: - | K41: 1
A42: その他 | C42: 35 | D42: 15 | E42: 20 | F42: 38 | G42: 21 | H42: 17 | I42: 54 | J42: 33 | K42: 21
A43: 合計 | C43: 235 | D43: 92 | E43: 143 | F43: 207 | G43: 95 | H43: 112 | I43: 243 | J43: 110 | K43: 133
A45: 区 分 | C45: 平成28年度 | F45: 平成29年度 | I45: 平成30年度
C46: 計 | D46: 男 | E46: 女 | F46: 計 | G46: 男 | H46: 女 | I46: 計 | J46: 男 | K46: 女
A47: 韓国、朝鮮 | C47: 52 | D47: 25 | E47: 27 | F47: 43 | G47: 23 | H47: 20 | I47: 47 | J47: 24 | K47: 23
A48: 中国 | C48: 94 | D48: 30 | E48: 64 | F48: 94 | G48: 38 | H48: 56 | I48: 100 | J48: 40 | K48: 60
A49: フィリピン | C49: 49 | D49: 19 | E49: 30 | F49: 70 | G49: 30 | H49: 40 | I49: 87 | J49: 43 | K49: 44
A50: アメリカ | C50: 6 | D50: 6 | E50: - | F50: 8 | G50: 7 | H50: 1 | I50: 5 | J50: 3 | K50: 2
A51: ロシア | C51: 2 | D51: - | E51: 2 | F51: 2 | G51: - | H51: 2 | I51: 2 | J51: - | K51: 2
A52: その他 | C52: 74 | D52: 39 | E52: 35 | F52: 110 | G52: 64 | H52: 46 | I52: 151 | J52: 91 | K52: 60
A53: 合計 | C53: 277 | D53: 119 | E53: 158 | F53: 327 | G53: 162 | H53: 165 | I53: 392 | J53: 201 | K53: 191
A54: 〈資料〉生活環境部市民課
A55: 注）平成２４年７月９日から外国人の方も住民基本台帳法の対象となり、 平成２４年７月末からの「町名別人口調べ」が外国人住民を含む集計となりました。

Sheet 社会動態（道内）
A1: ７）社会動態（道内）
L2: （各年中）
A3: 区 分 | C3: 26 年 | E3: 27年 | G3: 28年 | I3: 29年 | K3: 30年
C4: 転 入 | D4: 転 出 | E4: 転 入 | F4: 転 出 | G4: 転 入 | H4: 転 出 | I4: 転 入 | J4: 転 出 | K4: 転 入 | L4: 転 出
A5: 全道計 | C5: 2536 | D5: 2186 | E5: 2516 | F5: 2138 | G5: 2562 | H5: 2196 | I5: 2694 | J5: 2326 | K5: 2550 | L5: 2073
A7: 市部計 | C7: 2137 | D7: 1897 | E7: 2107 | F7: 1894 | G7: 2166 | H7: 1945 | I7: 2248 | J7: 1982 | K7: 2099 | L7: 1811
A9: 札幌 | C9: 804 | D9: 906 | E9: 763 | F9: 908 | G9: 839 | H9: 983 | I9: 831 | J9: 964 | K9: 765 | L9: 901
B10: 中央区 | C10: 79 | D10: 118 | E10: 67 | F10: 147 | G10: 92 | H10: 140 | I10: 113 | J10: 124 | K10: 81 | L10: 121
B11: 北区 | C11: 76 | D11: 89 | E11: 77 | F11: 90 | G11: 93 | H11: 87 | I11: 82 | J11: 66 | K11: 68 | L11: 85
B12: 東区 | C12: 78 | D12: 97 | E12: 73 | F12: 120 | G12: 99 | H12: 103 | I12: 84 | J12: 105 | K12: 77 | L12: 91
B13: 白石区 | C13: 106 | D13: 121 | E13: 115 | F13: 123 | G13: 124 | H13: 164 | I13: 119 | J13: 158 | K13: 112 | L13: 150
B14: 豊平区 | C14: 86 | D14: 116 | E14: 90 | F14: 129 | G14: 98 | H14: 134 | I14: 127 | J14: 138 | K14: 138 | L14: 125
B15: 南区 | C15: 175 | D15: 96 | E15: 108 | F15: 92 | G15: 93 | H15: 87 | I15: 99 | J15: 91 | K15: 84 | L15: 78
B16: 西区 | C16: 45 | D16: 62 | E16: 60 | F16: 45 | G16: 63 | H16: 88 | I16: 58 | J16: 77 | K16: 51 | L16: 85
B17: 厚別区 | C17: 68 | D17: 96 | E17: 81 | F17: 87 | G17: 84 | H17: 80 | I17: 77 | J17: 111 | K17: 89 | L17: 74
B18: 手稲区 | C18: 23 | D18: 43 | E18: 42 | F18: 29 | G18: 30 | H18: 33 | I18: 18 | J18: 34 | K18: 24 | L18: 36
B19: 清田区 | C19: 68 | D19: 68 | E19: 50 | F19: 46 | G19: 63 | H19: 67 | I19: 54 | J19: 60 | K19: 41 | L19: 56
A20: 函館 | C20: 55 | D20: 40 | E20: 57 | F20: 56 | G20: 55 | H20: 33 | I20: 52 | J20: 45 | K20: 69 | L20: 41
A21: 小樽 | C21: 26 | D21: 16 | E21: 30 | F21: 13 | G21: 30 | H21: 26 | I21: 19 | J21: 25 | K21: 25 | L21: 15
A22: 旭川 | C22: 97 | D22: 67 | E22: 107 | F22: 75 | G22: 82 | H22: 62 | I22: 92 | J22: 45 | K22: 74 | L22: 53
A23: 室蘭 | C23: 34 | D23: 19 | E23: 24 | F23: 24 | G23: 13 | H23: 20 | I23: 34 | J23: 21 | K23: 15 | L23: 17
A24: 釧路 | C24: 43 | D24: 21 | E24: 41 | F24: 17 | G24: 30 | H24: 26 | I24: 49 | J24: 21 | K24: 30 | L24: 31
A25: 帯広 | C25: 40 | D25: 41 | E25: 80 | F25: 53 | G25: 47 | H25: 51 | I25: 57 | J25: 46 | K25: 57 | L25: 42
A26: 北見 | C26: 27 | D26: 23 | E26: 20 | F26: 19 | G26: 30 | H26: 10 | I26: 21 | J26: 23 | K26: 22 | L26: 17
A27: 夕張 | C27: 5 | D27: 5 | E27: 17 | F27: - | G27: 9 | H27: 4 | I27: 7 | J27: 2 | K27: 7 | L27: 4
A28: 岩見沢 | C28: 43 | D28: 34 | E28: 38 | F28: 22 | G28: 39 | H28: 22 | I28: 45 | J28: 18 | K28: 46 | L28: 28
A29: 網走 | C29: 19 | D29: 6 | E29: 17 | F29: 6 | G29: 26 | H29: 12 | I29: 14 | J29: 8 | K29: 14 | L29: 5
A30: 留萌 | C30: 26 | D30: 7 | E30: 16 | F30: 5 | G30: 11 | H30: 8 | I30: 11 | J30: 11 | K30: 8 | L30: 9
A31: 苫小牧 | C31: 121 | D31: 87 | E31: 104 | F31: 93 | G31: 123 | H31: 102 | I31: 121 | J31: 95 | K31: 129 | L31: 89
A32: 稚内 | C32: 8 | D32: 8 | E32: 14 | F32: 6 | G32: 22 | H32: 7 | I32: 10 | J32: 4 | K32: 9 | L32: 7
A33: 美唄 | C33: 17 | D33: 12 | E33: 13 | F33: 7 | G33: 10 | H33: 10 | I33: 14 | J33: 3 | K33: 12 | L33: 4
A34: 芦別 | C34: 2 | D34: 0 | E34: 6 | F34: 1 | G34: 3 | H34: 1 | I34: 3 | J34: 3 | K34: 2 | L34: 1
A35: 江別 | C35: 43 | D35: 50 | E35: 57 | F35: 57 | G35: 74 | H35: 68 | I35: 56 | J35: 49 | K35: 41 | L35: 34
A36: 赤平 | C36: 4 | D36: 1 | E36: 3 | F36: 3 | G36: 3 | H36: 3 | I36: - | J36: 2 | K36: 1 | L36: 2
A37: 紋別 | C37: 8 | D37: 5 | E37: 10 | F37: 1 | G37: 6 | H37: 4 | I37: 12 | J37: 5 | K37: 9 | L37: 6
A38: 士別 | C38: 8 | D38: 2 | E38: 5 | F38: 3 | G38: 6 | H38: 1 | I38: 4 | J38: 5 | K38: 2 | L38: 1
A39: 名寄 | C39: 31 | D39: 30 | E39: 23 | F39: 14 | G39: 52 | H39: 25 | I39: 36 | J39: 13 | K39: 39 | L39: 20
A40: 三笠 | C40: 1 | D40: 1 | E40: 5 | F40: 3 | G40: 6 | H40: 3 | I40: 6 | J40: 4 | K40: 5 | L40: 3
A41: 根室 | C41: 11 | D41: 4 | E41: 8 | F41: 2 | G41: 7 | H41: 5 | I41: 28 | J41: 4 | K41: 12 | L41: 5
A42: 千歳 | C42: 486 | D42: 362 | E42: 440 | F42: 318 | G42: 406 | H42: 303 | I42: 509 | J42: 387 | K42: 494 | L42: 335
A43: 滝川 | C43: 20 | D43: 12 | E43: 21 | F43: 10 | G43: 15 | H43: 5 | I43: 16 | J43: 29 | K43: 14 | L43: 21
A44: 砂川 | C44: 5 | D44: 2 | E44: 6 | F44: 1 | G44: 5 | H44: 1 | I44: 8 | J44: 1 | K44: 2 | L44: 3
A45: 歌志内 | C45: 1 | D45: 0 | E45: - | F45: 1 | G45: - | H45: - | I45: 1 | J45: - | K45: - | L45: 1
A46: 深川 | C46: 5 | D46: 4 | E46: 4 | F46: 7 | G46: 17 | H46: 5 | I46: 2 | J46: 4 | K46: 7 | L46: 4
A47: 富良野 | C47: 2 | D47: 4 | E47: 15 | F47: 15 | G47: 4 | H47: 8 | I47: 11 | J47: 9 | K47: 3 | L47: 4
A48: 登別 | C48: 33 | D48: 24 | E48: 17 | F48: 33 | G48: 50 | H48: 19 | I48: 35 | J48: 25 | K48: 42 | L48: 12
A49: 伊達 | C49: 8 | D49: 12 | E49: 13 | F49: 4 | G49: 18 | H49: 10 | I49: 12 | J49: 6 | K49: 18 | L49: 14
A50: 北広島 | C50: 90 | D50: 75 | E50: 106 | F50: 85 | G50: 105 | H50: 88 | I50: 92 | J50: 90 | K50: 109 | L50: 69
A51: 石狩 | C51: 11 | D51: 8 | E51: 19 | F51: 22 | G51: 18 | H51: 11 | I51: 26 | J51: 10 | K51: 8 | L51: 8
A52: 北斗 | C52: 3 | D52: 9 | E52: 7 | F52: 9 | G52: 5 | H52: 9 | I52: 14 | J52: 5 | K52: 9 | L52: 5
A54: 郡部計 | C54: 399 | D54: 289 | E54: 409 | F54: 244 | G54: 396 | H54: 251 | I54: 446 | J54: 344 | K54: 451 | L54: 262
A55: 〈資料〉北海道統計 | K55: （単位：人）
A56: 注）北海道による住民基本台帳移動報告については「外国人住民」を含めていない。

Sheet 社会動態（道外）
A1: ８）社会動態（道外）
J2: （各年中）
A3: 区 分 | B3: 26 年 | D3: 27 年 | F3: 28 年 | H3: 29 年 | J3: 30 年
B4: 転 入 | C4: 転 出 | D4: 転 入 | E4: 転 出 | F4: 転 入 | G4: 転 出 | H4: 転 入 | I4: 転 出 | J4: 転 入 | K4: 転 出
A5: 総数 | B5: 3121 | C5: 2946 | D5: 3189 | E5: 2941 | F5: 3308 | G5: 3039 | H5: 3503 | I5: 3102 | J5: =SUM(J7:J9) -> 3313 | K5: =SUM(K7:K9) -> 2867
A7: 道内 | B7: 2536 | C7: 2186 | D7: 2516 | E7: 2138 | F7: 2562 | G7: 2196 | H7: 2694 | I7: 2326 | J7: 2550 | K7: 2073
A8: 道外 | B8: 536 | C8: 701 | D8: 609 | E8: 740 | F8: 684 | G8: 754 | H8: 737 | I8: 675 | J8: 711 | K8: 723
A9: 国外 | B9: 49 | C9: 59 | D9: 64 | E9: 63 | F9: 62 | G9: 89 | H9: 72 | I9: 101 | J9: 52 | K9: 71
A11: 東北 | B11: 90 | C11: 97 | D11: 94 | E11: 79 | F11: 110 | G11: 102 | H11: 114 | I11: 65 | J11: 126 | K11: 86
A12: 関東 | B12: 257 | C12: 346 | D12: 278 | E12: 404 | F12: 299 | G12: 385 | H12: 286 | I12: 368 | J12: 316 | K12: 358
A13: （うち東京都） | B13: -93 | C13: -106 | D13: -90 | E13: -149 | F13: -100 | G13: -158 | H13: -89 | I13: -141 | J13: -91 | K13: -134
A14: （うち神奈川県） | B14: -71 | C14: -100 | D14: -55 | E14: -84 | F14: -66 | G14: -92 | H14: -66 | I14: -77 | J14: -75 | K14: -70
A15: 北陸 | B15: 9 | C15: 8 | D15: 20 | E15: 10 | F15: 6 | G15: 14 | H15: 20 | I15: 14 | J15: 20 | K15: 8
A16: 中部 | B16: 91 | C16: 106 | D16: 81 | E16: 94 | F16: 87 | G16: 91 | H16: 122 | I16: 84 | J16: 84 | K16: 80
A17: 近畿 | B17: 42 | C17: 63 | D17: 66 | E17: 65 | F17: 68 | G17: 85 | H17: 89 | I17: 62 | J17: 79 | K17: 81
A18: 中国 | B18: 9 | C18: 18 | D18: 17 | E18: 30 | F18: 12 | G18: 25 | H18: 20 | I18: 13 | J18: 7 | K18: 11
A19: 四国 | B19: 6 | C19: 8 | D19: 11 | E19: 11 | F19: 16 | G19: 4 | H19: 7 | I19: 6 | J19: 4 | K19: 9
A20: 九州 | B20: 24 | C20: 39 | D20: 41 | E20: 42 | F20: 68 | G20: 44 | H20: 62 | I20: 52 | J20: 60 | K20: 78
A21: 沖縄 | B21: 8 | C21: 16 | D21: 1 | E21: 5 | F21: 18 | G21: 4 | H21: 17 | I21: 11 | J21: 15 | K21: 12
A22: 〈資料〉北海道統計 | J22: （単位：人）
A23: 注）住所設定（従前の住所無）により転入したものを除く。
A24: 注）北陸は新潟･富山･石川･福井の４県、中部は山梨･長野･岐阜･静岡･愛知の５県、近畿は滋賀・京都・ 大阪･兵庫･奈良･和歌山･三重の２府５県として集計した｡
A26: 注）北海道による住民基本台帳移動報告については「外国人住民」を含めていない。

Sheet 全道各市の人口
A1: ９）全道各市の人口（人口順）
J3: （各年1月1日）
A4: 順 位 | B4: 区 分 | C4: 平 成 30 年 | G4: 区 分 | H4: 平 成 31 年 | L4: 総数比較
C5: 人 口 | F5: 世帯数 | H5: 人 口 | K5: 世帯数
C6: 総 数 | D6: 男 | E6: 女 | H6: 総 数 | I6: 男 | J6: 女
B7: 全道 | C7: 5307813 | D7: 2508580 | E7: 2799233 | F7: 2750340 | G7: 全道 | H7: 5268352 | I7: 2489549 | J7: 2778803 | K7: 2754916 | L7: =IF(H7-C7>0,"↗","↘") -> ↘
B8: 市部 | C8: 4342874 | D8: 2043667 | E8: 2299207 | F8: 467344 | G8: 市部 | H8: 4320152 | I8: 2032130 | J8: 2288022 | K8: 2290770 | L8: =IF(H8-C8>0,"↗","↘") -> ↘
B9: 郡部 | C9: 964939 | D9: 464913 | E9: 500026 | F9: 467344 | G9: 郡部 | H9: 948200 | I9: 457419 | J9: 490781 | K9: 464146 | L9: ↘
A11: 1 | B11: 札幌市 | C11: 1940035 | D11: 907013 | E11: 1033022 | F11: 1040910 | G11: 札幌市 | H11: 1941969 | I11: 907133 | J11: 1034836 | K11: 1049878 | L11: ↗
B12: 中央区 | C12: 231394 | D12: 104586 | E12: 126808 | F12: 138435 | G12: 中央区 | H12: 232762 | I12: 105094 | J12: 127668 | K12: 140063 | L12: ↗
B13: 北区 | C13: 282525 | D13: 133948 | E13: 148577 | F13: 148511 | G13: 北区 | H13: 282841 | I13: 134147 | J13: 148694 | K13: 149433 | L13: ↗
B14: 東区 | C14: 260507 | D14: 123840 | E14: 136667 | F14: 140378 | G14: 東区 | H14: 260056 | I14: 123497 | J14: 136559 | K14: 141024 | L14: ↘
B15: 白石区 | C15: 210840 | D15: 100391 | E15: 110449 | F15: 119943 | G15: 白石区 | H15: 211605 | I15: 100579 | J15: 111026 | K15: 121355 | L15: ↗
B16: 豊平区 | C16: 220014 | D16: 101928 | E16: 118086 | F16: 124024 | G16: 豊平区 | H16: 220971 | I16: 102321 | J16: 118650 | K16: 125621 | L16: ↗
B17: 南区 | C17: 138131 | D17: 64231 | E17: 73900 | F17: 72191 | G17: 南区 | H17: 136898 | I17: 63537 | J17: 73361 | K17: 72193 | L17: ↘
B18: 西区 | C18: 213268 | D18: 98488 | E18: 114780 | F18: 112067 | G18: 西区 | H18: 214267 | I18: 98905 | J18: 115362 | K18: 113501 | L18: ↗
B19: 厚別区 | C19: 127174 | D19: 58367 | E19: 68807 | F19: 64164 | G19: 厚別区 | H19: 126997 | I19: 58260 | J19: 68737 | K19: 64772 | L19: ↘
B20: 手稲区 | C20: 141723 | D20: 66884 | E20: 74839 | F20: 68455 | G20: 手稲区 | H20: 141660 | I20: 66734 | J20: 74926 | K20: 68988 | L20: ↘
B21: 清田区 | C21: 114459 | D21: 54350 | E21: 60109 | F21: 52742 | G21: 清田区 | H21: 113912 | I21: 54059 | J21: 59853 | K21: 52928 | L21: ↘
A22: 2 | B22: 旭川市 | C22: 339278 | D22: 157727 | E22: 181551 | F22: 177228 | G22: 旭川市 | H22: 336318 | I22: 156284 | J22: 180034 | K22: 177055 | L22: ↘
A23: 3 | B23: 函館市 | C23: 261572 | D23: 119166 | E23: 142406 | F23: 142591 | G23: 函館市 | H23: 257893 | I23: 117546 | J23: 140347 | K23: 141802 | L23: ↘
A24: 4 | B24: 釧路市 | C24: 171846 | D24: 83801 | E24: 88045 | F24: 87402 | G24: 苫小牧市 | H24: 171216 | I24: 83540 | J24: 87676 | K24: 88165 | L24: ↘
A25: 5 | B25: 苫小牧市 | C25: 171644 | D25: 80916 | E25: 90728 | F25: 94091 | G25: 釧路市 | H25: 169505 | I25: 79870 | J25: 89635 | K25: 93958 | L25: ↘
A26: 6 | B26: 帯広市 | C26: 166978 | D26: 79658 | E26: 87320 | F26: 86782 | G26: 帯広市 | H26: 166131 | I26: 79174 | J26: 86957 | K26: 87219 | L26: ↘
A27: 7 | B27: 小樽市 | C27: 118467 | D27: 56319 | E27: 62148 | F27: 56220 | G27: 江別市 | H27: 118379 | I27: 56271 | J27: 62108 | K27: 56808 | L27: ↘
A28: 8 | B28: 北見市 | C28: 118401 | D28: 56288 | E28: 62113 | F28: 61245 | G28: 北見市 | H28: 117352 | I28: 55739 | J28: 61613 | K28: 61318 | L28: ↘
A29: 9 | B29: 江別市 | C29: 118354 | D29: 53393 | E29: 64961 | F29: 64114 | G29: 小樽市 | H29: 115898 | I29: 52269 | J29: 63629 | K29: 63322 | L29: ↘
A30: 10 | B30: 千歳市 | C30: 96273 | D30: 48817 | E30: 47456 | F30: 48277 | G30: 千歳市 | H30: 96382 | I30: 48914 | J30: 47468 | K30: 48771 | L30: ↗
A31: 11 | B31: 室蘭市 | C31: 85448 | D31: 40927 | E31: 44521 | F31: 46039 | G31: 室蘭市 | H31: 84016 | I31: 40276 | J31: 43740 | K31: 45648 | L31: ↘
A32: 12 | B32: 岩見沢市 | C32: 82681 | D32: 38636 | E32: 44045 | F32: 41724 | G32: 岩見沢市 | H32: 81608 | I32: 38117 | J32: 43491 | K32: 41665 | L32: ↘
A33: 13 | B33: 恵庭市 | C33: 69190 | D33: 33655 | E33: 35535 | F33: 32577 | G33: 恵庭市 | H33: 69432 | I33: 33751 | J33: 35681 | K33: 32995 | L33: ↗
A34: 14 | B34: 北広島市 | C34: 58603 | D34: 28177 | E34: 30426 | F34: 27175 | G34: 北広島市 | H34: 58326 | I34: 28002 | J34: 30324 | K34: 27335 | L34: ↘
A35: 15 | B35: 石狩市 | C35: 58166 | D35: 28121 | E35: 30045 | F35: 27137 | G35: 石狩市 | H35: 57951 | I35: 28022 | J35: 29929 | K35: 27247 | L35: ↘
A36: 16 | B36: 登別市 | C36: 48691 | D36: 23233 | E36: 25458 | F36: 24771 | G36: 登別市 | H36: 48178 | I36: 23035 | J36: 25143 | K36: 24703 | L36: ↘
A37: 17 | B37: 北斗市 | C37: 46648 | D37: 21974 | E37: 24674 | F37: 21992 | G37: 北斗市 | H37: 46265 | I37: 21789 | J37: 24476 | K37: 22060 | L37: ↘
A38: 18 | B38: 滝川市 | C38: 40756 | D38: 19310 | E38: 21446 | F38: 21501 | G38: 滝川市 | H38: 40252 | I38: 19071 | J38: 21181 | K38: 21418 | L38: ↘
A39: 19 | B39: 網走市 | C39: 36107 | D39: 17761 | E39: 18346 | F39: 18147 | G39: 網走市 | H39: 35450 | I39: 17431 | J39: 18019 | K39: 18030 | L39: ↘
A40: 20 | B40: 稚内市 | C40: 34606 | D40: 16133 | E40: 18473 | F40: 17790 | G40: 伊達市 | H40: 34153 | I40: 15926 | J40: 18227 | K40: 17748 | L40: ↘
A41: 21 | B41: 伊達市 | C41: 34472 | D41: 17002 | E41: 17470 | F41: 17807 | G41: 稚内市 | H41: 33887 | I41: 16723 | J41: 17164 | K41: 17573 | L41: ↘
A42: 22 | B42: 名寄市 | C42: 27841 | D42: 13590 | E42: 14251 | F42: 14255 | G42: 名寄市 | H42: 27516 | I42: 13420 | J42: 14096 | K42: 14241 | L42: ↘
A43: 23 | B43: 根室市 | C43: 26111 | D43: 12590 | E43: 13521 | F43: 12482 | G43: 根室市 | H43: 25664 | I43: 12363 | J43: 13301 | K43: 12414 | L43: ↘
A44: 24 | B44: 美唄市 | C44: 22192 | D44: 10541 | E44: 11651 | F44: 11730 | G44: 紋別市 | H44: 21714 | I44: 10293 | J44: 11421 | K44: 11627 | L44: ↘
A45: 25 | B45: 紋別市 | C45: 22160 | D45: 10522 | E45: 11638 | F45: 11801 | G45: 美唄市 | H45: 21552 | I45: 10254 | J45: 11298 | K45: 11587 | L45: ↘
A46: 26 | B46: 富良野市 | C46: 22090 | D46: 10450 | E46: 11640 | F46: 10816 | G46: 富良野市 | H46: 21687 | I46: 10260 | J46: 11427 | K46: 10709 | L46: ↘
A47: 27 | B47: 留萌市 | C47: 21628 | D47: 10366 | E47: 11262 | F47: 11652 | G47: 留萌市 | H47: 21179 | I47: 10144 | J47: 11035 | K47: 11501 | L47: ↘
A48: 28 | B48: 深川市 | C48: 21156 | D48: 9899 | E48: 11257 | F48: 10944 | G48: 深川市 | H48: 20713 | I48: 9692 | J48: 11021 | K48: 10833 | L48: ↘
A49: 29 | B49: 士別市 | C49: 19268 | D49: 9073 | E49: 10195 | F49: 9393 | G49: 士別市 | H49: 18886 | I49: 8916 | J49: 9970 | K49: 9315 | L49: ↘
A50: 30 | B50: 砂川市 | C50: 17340 | D50: 8050 | E50: 9290 | F50: 8920 | G50: 砂川市 | H50: 17106 | I50: 7949 | J50: 9157 | K50: 8901 | L50: ↘
A51: 31 | B51: 芦別市 | C51: 13980 | D51: 6384 | E51: 7596 | F51: 7700 | G51: 芦別市 | H51: 13608 | I51: 6216 | J51: 7392 | K51: 7575 | L51: ↘
A52: 32 | B52: 赤平市 | C52: 10408 | D52: 4751 | E52: 5657 | F52: 5945 | G52: 赤平市 | H52: 10121 | I52: 4602 | J52: 5519 | K52: 5827 | L52: ↘
A53: 33 | B53: 三笠市 | C53: 8765 | D53: 3962 | E53: 4803 | F53: 5025 | G53: 三笠市 | H53: 8541 | I53: 3858 | J53: 4683 | K53: 4906 | L53: ↘
A54: 34 | B54: 夕張市 | C54: 8316 | D54: 3881 | E54: 4435 | F54: 4835 | G54: 夕張市 | H54: 8033 | I54: 3748 | J54: 4285 | K54: 4710 | L54: ↘
A55: 35 | B55: 歌志内市 | C55: 3403 | D55: 1581 | E55: 1822 | F55: 1978 | G55: 歌志内市 | H55: 3271 | I55: 1532 | J55: 1739 | K55: 1906 | L55: ↘
A56: 〈資料〉北海道統計 | J56: （単位：人）
A57: 注）北海道による住民基本台帳移動報告については「外国人住民」を含めていない。

Sheet 国調人口推移
A1: ２．国勢調査人口
A3: １) 人口の推移（年次別）
F4: （各年10月1日）
A5: 年 | C5: 世帯数 | D5: 人 口 | G5: 前回比
D6: 男 | E6: 女 | F6: 総 数
A7: 大正 | B7: 9年 | C7: 1227 | D7: 3522 | E7: 3443 | F7: 6965 | G7: -
A8: 大正 | B8: 14年 | C8: 1269 | D8: 3711 | E8: 3645 | F8: 7356 | G8: 5.6
A9: 昭和 | B9: 5年 | C9: 1391 | D9: 4203 | E9: 4005 | F9: 8208 | G9: 11.6
B10: 10年 | C10: 1467 | D10: 4329 | E10: 4250 | F10: 8579 | G10: 4.5
B11: 15年 | C11: 1590 | D11: 4806 | E11: 4623 | F11: 9429 | G11: 9.9
B12: 22年 | C12: 2321 | D12: 6717 | E12: 6305 | F12: 13022 | G12: 38.1
B13: 25年 | C13: 2311 | D13: 7923 | E13: 6533 | F13: 14456 | G13: 11
B14: 30年 | C14: 3765 | D14: 13850 | E14: 9530 | F14: 23380 | G14: 61.7
B15: 35年 | C15: 5085 | D15: 15244 | E15: 11398 | F15: 26642 | G15: 14
B16: 40年 | C16: 6863 | D16: 16459 | E16: 13850 | F16: 30309 | G16: 13.8
B17: 45年 | C17: 8710 | D17: 18139 | E17: 16310 | F17: 34449 | G17: 13.7
B18: 50年 | C18: 10806 | D18: 20836 | E18: 19048 | F18: 39884 | G18: 15.8
B19: 55年 | C19: 12321 | D19: 22072 | E19: 20839 | F19: 42911 | G19: 7.6
B20: 60年 | C20: 14220 | D20: 24474 | E20: 23831 | F20: 48305 | G20: 12.6
A21: 平成 | B21: 2年 | C21: 17528 | D21: 27980 | E21: 27635 | F21: 55615 | G21: 15.1
B22: 7年 | C22: 21383 | D22: 31376 | E22: 30975 | F22: 62351 | G22: 12.1
B23: 12年 | C23: 23660 | D23: =32503 -> 32503 | E23: 32736 | F23: =D23+E23 -> 65239 | G23: 4.6
B24: 17年 | C24: 25662 | D24: 33317 | E24: 34297 | F24: 67614 | G24: 3.6
B25: 22年 | C25: 27634 | D25: 33945 | E25: 35439 | F25: 69384 | G25: 2.6
B26: 27年 | C26: 28846 | D26: 33781 | E26: 35921 | F26: 69702 | G26: 0.46
A27: 〈資料〉総務省 国勢調査 | F27: （単位：人）

Sheet 地域の人口①
A1: ２）地域の人口
J2: （各年10月1日）
A3: 町名 | B3: 平成22年国勢調査 | F3: 平成27年国勢調査 | J3: 比較
B4: 世帯数 | C4: 男 | D4: 女 | E4: 計 | F4: 世帯数 | G4: 男 | H4: 女 | I4: 計 | J4: 世帯数 | K4: 人口
A5: 合計 | B5: 27634 | C5: 33945 | D5: 35439 | E5: 69384 | F5: 28846 | G5: 33781 | H5: 35921 | I5: 69702 | J5: =F5-B5 -> 1212 | K5: =I5-E5 -> 318
A6: 漁太 | B6: 54 | C6: 79 | D6: 80 | E6: 159 | F6: 51 | G6: 64 | H6: 72 | I6: 136 | J6: =F6-B6 -> -3 | K6: =I6-E6 -> -23
A7: 林田 | B7: 16 | C7: 25 | D7: 21 | E7: 46 | F7: 16 | G7: 15 | H7: 21 | I7: 36 | J7: =F7-B7 -> 0 | K7: -10
A8: 春日 | B8: 52 | C8: 79 | D8: 69 | E8: 148 | F8: 44 | G8: 65 | H8: 59 | I8: 124 | J8: -8 | K8: -24
A9: 中央 | B9: 60 | C9: 91 | D9: 86 | E9: 177 | F9: 74 | G9: 112 | H9: 105 | I9: 217 | J9: 14 | K9: 40
A10: 上山口 | B10: 67 | C10: 92 | D10: 106 | E10: 198 | F10: 65 | G10: 85 | H10: 99 | I10: 184 | J10: -2 | K10: -14
A11: 戸磯 | B11: 52 | C11: 58 | D11: 81 | E11: 139 | F11: 50 | G11: 57 | H11: 72 | I11: 129 | J11: -2 | K11: -10
A12: 恵南 | B12: 229 | C12: 422 | D12: 296 | E12: 718 | F12: 233 | G12: 483 | H12: 274 | I12: 757 | J12: 4 | K12: 39
A13: 和光町１丁目 | B13: 173 | C13: 200 | D13: 210 | E13: 410 | F13: 197 | G13: 216 | H13: 227 | I13: 443 | J13: 24 | K13: 33
A14: 和光町２丁目 | B14: 209 | C14: 303 | D14: 275 | E14: 578 | F14: 219 | G14: 279 | H14: 282 | I14: 561 | J14: 10 | K14: -17
A15: 和光町３丁目 | B15: 192 | C15: 229 | D15: 249 | E15: 478 | F15: 255 | G15: 303 | H15: 295 | I15: 598 | J15: 63 | K15: 120
A16: 和光町４丁目 | B16: 204 | C16: 231 | D16: 246 | E16: 477 | F16: 186 | G16: 222 | H16: 234 | I16: 456 | J16: -18 | K16: -21
A17: 和光町５丁目 | B17: 321 | C17: 367 | D17: 342 | E17: 709 | F17: 380 | G17: 449 | H17: 403 | I17: 852 | J17: =F17-B17 -> 59 | K17: 143
A18: 駒場町１丁目 | B18: 284 | C18: 315 | D18: 314 | E18: 629 | F18: 314 | G18: 328 | H18: 331 | I18: 659 | J18: 30 | K18: 30
A19: 駒場町２丁目 | B19: 140 | C19: 183 | D19: 189 | E19: 372 | F19: 145 | G19: 181 | H19: 200 | I19: 381 | J19: 5 | K19: 9
A20: 駒場町３丁目 | B20: 94 | C20: 117 | D20: 126 | E20: 243 | F20: 118 | G20: 135 | H20: 150 | I20: 285 | J20: 24 | K20: 42
A21: 駒場町４丁目 | B21: 134 | C21: 178 | D21: 173 | E21: 351 | F21: 144 | G21: 187 | H21: 183 | I21: 370 | J21: 10 | K21: 19
A22: 駒場町５丁目 | B22: 94 | C22: 110 | D22: 104 | E22: 214 | F22: 95 | G22: 111 | H22: 109 | I22: 220 | J22: 1 | K22: 6
A23: 駒場町６丁目 | B23: 112 | C23: 147 | D23: 148 | E23: 295 | F23: 132 | G23: 146 | H23: 155 | I23: 301 | J23: 20 | K23: =I23-E23 -> 6
A24: 白樺町１丁目 | B24: 152 | C24: 191 | D24: 198 | E24: 389 | F24: 153 | G24: 184 | H24: 189 | I24: 373 | J24: 1 | K24: -16
A25: 白樺町２丁目 | B25: 143 | C25: 178 | D25: 152 | E25: 330 | F25: 144 | G25: 177 | H25: 159 | I25: 336 | J25: 1 | K25: 6
A26: 白樺町３丁目 | B26: 220 | C26: 311 | D26: 338 | E26: 649 | F26: 230 | G26: 309 | H26: 337 | I26: 646 | J26: 10 | K26: -3
A27: 白樺町４丁目 | B27: 16 | C27: 40 | D27: 35 | E27: 75 | F27: 16 | G27: 53 | H27: 25 | I27: 78 | J27: 0 | K27: 3
A28: 黄金南１丁目 | B28: 290 | C28: 404 | D28: 427 | E28: 831 | F28: 339 | G28: 452 | H28: 492 | I28: 944 | J28: =F28-B28 -> 49 | K28: 113
A29: 黄金南２丁目 | B29: 241 | C29: 308 | D29: 318 | E29: 626 | F29: 269 | G29: 340 | H29: 367 | I29: 707 | J29: 28 | K29: 81
A30: 黄金南３丁目 | B30: 256 | C30: 353 | D30: 373 | E30: 726 | F30: 295 | G30: 415 | H30: 446 | I30: 861 | J30: 39 | K30: 135
A31: 黄金南４丁目 | B31: 263 | C31: 428 | D31: 400 | E31: 828 | F31: 288 | G31: 454 | H31: 445 | I31: 899 | J31: 25 | K31: 71
A32: 黄金南５丁目 | B32: 85 | C32: 104 | D32: 120 | E32: 224 | F32: 97 | G32: 128 | H32: 139 | I32: 267 | J32: 12 | K32: 43
A33: 黄金南６丁目 | B33: 91 | C33: 148 | D33: 142 | E33: 290 | F33: 100 | G33: 153 | H33: 155 | I33: 308 | J33: 9 | K33: =I33-E33 -> 18
A34: 黄金南７丁目 | B34: 266 | C34: 373 | D34: 390 | E34: 763 | F34: 282 | G34: 401 | H34: 421 | I34: 822 | J34: 16 | K34: 59
A35: 黄金中央１丁目 | B35: 207 | C35: 216 | D35: 207 | E35: 423 | F35: 247 | G35: 215 | H35: 261 | I35: 476 | J35: 40 | K35: 53
A36: 黄金中央２丁目 | B36: 224 | C36: 181 | D36: 203 | E36: 384 | F36: 246 | G36: 154 | H36: 231 | I36: 385 | J36: 22 | K36: 1
A37: 黄金中央３丁目 | B37: 333 | C37: 304 | D37: 310 | E37: 614 | F37: 465 | G37: 356 | H37: 424 | I37: 780 | J37: =F37-B37 -> 132 | K37: 166
A38: 黄金中央４丁目 | B38: 218 | C38: 277 | D38: 250 | E38: 527 | F38: 230 | G38: 272 | H38: 248 | I38: 520 | J38: 12 | K38: -7
A39: 黄金中央５丁目 | B39: - | C39: - | D39: - | E39: - | F39: - | G39: - | H39: - | I39: - | J39: - | K39: -
A40: 黄金北１丁目 | B40: 284 | C40: 313 | D40: 303 | E40: 616 | F40: 302 | G40: 295 | H40: 327 | I40: 622 | J40: 18 | K40: 6
A41: 黄金北２丁目 | B41: 226 | C41: 251 | D41: 285 | E41: 536 | F41: 253 | G41: 259 | H41: 313 | I41: 572 | J41: 27 | K41: 36
A42: 黄金北３丁目 | B42: 320 | C42: 383 | D42: 419 | E42: 802 | F42: 352 | G42: 385 | H42: 421 | I42: 806 | J42: 32 | K42: 4
A43: 黄金北４丁目 | B43: 345 | C43: 368 | D43: 403 | E43: 771 | F43: 343 | G43: 346 | H43: 405 | I43: 751 | J43: -2 | K43: -20
A44: 相生町 | B44: 940 | C44: 895 | D44: 906 | E44: 1801 | F44: 941 | G44: 908 | H44: 954 | I44: 1862 | J44: 1 | K44: 61
A45: 緑町１丁目 | B45: 98 | C45: 96 | D45: 78 | E45: 174 | F45: 111 | G45: 90 | H45: 90 | I45: 180 | J45: 13 | K45: 6
A46: 緑町２丁目 | B46: 319 | C46: 333 | D46: 398 | E46: 731 | F46: 303 | G46: 292 | H46: 378 | I46: 670 | J46: -16 | K46: -61
A47: 住吉町１丁目 | B47: 104 | C47: 118 | D47: 129 | E47: 247 | F47: 105 | G47: 121 | H47: 114 | I47: 235 | J47: 1 | K47: -12
A48: 住吉町２丁目 | B48: 268 | C48: 320 | D48: 336 | E48: 656 | F48: 262 | G48: 280 | H48: 352 | I48: 632 | J48: -6 | K48: -24
A49: 住吉町３丁目 | B49: 232 | C49: 259 | D49: 277 | E49: 536 | F49: 249 | G49: 277 | H49: 281 | I49: 558 | J49: 17 | K49: 22
A50: 住吉町４丁目 | B50: 154 | C50: 182 | D50: 219 | E50: 401 | F50: 170 | G50: 172 | H50: 226 | I50: 398 | J50: 16 | K50: -3
A51: 末広町 | B51: 273 | C51: 269 | D51: 308 | E51: 577 | F51: 299 | G51: 303 | H51: 327 | I51: 630 | J51: 26 | K51: 53
A52: 栄恵町 | B52: 95 | C52: 84 | D52: 85 | E52: 169 | F52: 97 | G52: 80 | H52: 77 | I52: 157 | J52: 2 | K52: -12
A53: 泉町 | B53: 340 | C53: 331 | D53: 290 | E53: 621 | F53: 359 | G53: 335 | H53: 294 | I53: 629 | J53: 19 | K53: 8
A54: 桜町１丁目 | B54: 161 | C54: 200 | D54: 156 | E54: 356 | F54: 137 | G54: 152 | H54: 114 | I54: 266 | J54: -24 | K54: -90
A55: 桜町２丁目 | B55: 374 | C55: 375 | D55: 468 | E55: 843 | F55: 357 | G55: 353 | H55: 429 | I55: 782 | J55: -17 | K55: -61
A56: 桜町３丁目 | B56: 147 | C56: 202 | D56: 178 | E56: 380 | F56: 136 | G56: 172 | H56: 159 | I56: 331 | J56: -11 | K56: -49
A57: 〈資料〉総務省 国勢調査 | J57: （単位：人）

Sheet 地域の人口②
J1: （各年10月1日）
A2: 町名 | B2: 平成22年国勢調査 | F2: 平成27年国勢調査 | J2: 比較
B3: 世帯数 | C3: 男 | D3: 女 | E3: 計 | F3: 世帯数 | G3: 男 | H3: 女 | I3: 計 | J3: 世帯数 | K3: 人口
A4: 桜町４丁目 | B4: - | C4: - | D4: - | E4: - | F4: - | G4: - | H4: - | I4: - | J4: - | K4: -
A5: 京町 | B5: 59 | C5: 56 | D5: 59 | E5: 115 | F5: 82 | G5: 80 | H5: 81 | I5: 161 | J5: =F5-B5 -> 23 | K5: =I5-E5 -> 46
A6: 漁町 | B6: 523 | C6: 519 | D6: 522 | E6: 1041 | F6: 540 | G6: 551 | H6: 515 | I6: 1066 | J6: =F6-B6 -> 17 | K6: =I6-E6 -> 25
A7: 福住町１丁目 | B7: 327 | C7: 398 | D7: 433 | E7: 831 | F7: 327 | G7: 398 | H7: 409 | I7: 807 | J7: 0 | K7: -24
A8: 福住町２丁目 | B8: 162 | C8: 165 | D8: 200 | E8: 365 | F8: 155 | G8: 168 | H8: 188 | I8: 356 | J8: -7 | K8: -9
A9: 福住町３丁目 | B9: 220 | C9: 239 | D9: 274 | E9: 513 | F9: 252 | G9: 257 | H9: 309 | I9: 566 | J9: 32 | K9: 53
A10: 新町 | B10: 55 | C10: 63 | D10: 38 | E10: 101 | F10: 29 | G10: 36 | H10: 38 | I10: 74 | J10: -26 | K10: -27
A11: 本町 | B11: 216 | C11: 257 | D11: 257 | E11: 514 | F11: 225 | G11: 239 | H11: 244 | I11: 483 | J11: 9 | K11: -31
A12: 有明町１丁目 | B12: 230 | C12: 234 | D12: 251 | E12: 485 | F12: 218 | G12: 213 | H12: 221 | I12: 434 | J12: -12 | K12: -51
A13: 有明町２丁目 | B13: 210 | C13: 251 | D13: 271 | E13: 522 | F13: 202 | G13: 250 | H13: 244 | I13: 494 | J13: -8 | K13: -28
A14: 有明町３丁目 | B14: 121 | C14: 129 | D14: 156 | E14: 285 | F14: 125 | G14: 117 | H14: 148 | I14: 265 | J14: 4 | K14: -20
A15: 有明町４丁目 | B15: 123 | C15: 147 | D15: 171 | E15: 318 | F15: 122 | G15: 143 | H15: 144 | I15: 287 | J15: -1 | K15: -31
A16: 有明町５丁目 | B16: 115 | C16: 133 | D16: 132 | E16: 265 | F16: 113 | G16: 137 | H16: 145 | I16: 282 | J16: -2 | K16: 17
A17: 有明町６丁目 | B17: 175 | C17: 207 | D17: 201 | E17: 408 | F17: 182 | G17: 199 | H17: 194 | I17: 393 | J17: 7 | K17: -15
A18: 大町１丁目 | B18: 87 | C18: 102 | D18: 111 | E18: 213 | F18: 83 | G18: 99 | H18: 102 | I18: 201 | J18: -4 | K18: -12
A19: 大町２丁目 | B19: 81 | C19: 85 | D19: 78 | E19: 163 | F19: 80 | G19: 88 | H19: 77 | I19: 165 | J19: -1 | K19: 2
A20: 大町３丁目 | B20: 92 | C20: 121 | D20: 117 | E20: 238 | F20: 101 | G20: 117 | H20: 119 | I20: 236 | J20: =F20-B20 -> 9 | K20: -2
A21: 大町４丁目 | B21: 89 | C21: 105 | D21: 111 | E21: 216 | F21: 77 | G21: 83 | H21: 82 | I21: 165 | J21: -12 | K21: -51
A22: 文京町１丁目 | B22: 217 | C22: 269 | D22: 297 | E22: 566 | F22: 223 | G22: 274 | H22: 299 | I22: 573 | J22: 6 | K22: 7
A23: 文京町２丁目 | B23: 170 | C23: 220 | D23: 255 | E23: 475 | F23: 188 | G23: 229 | H23: 257 | I23: 486 | J23: 18 | K23: 11
A24: 文京町３丁目 | B24: 74 | C24: 87 | D24: 77 | E24: 164 | F24: 79 | G24: 79 | H24: 81 | I24: 160 | J24: 5 | K24: -4
A25: 文京町４丁目 | B25: 212 | C25: 296 | D25: 303 | E25: 599 | F25: 239 | G25: 316 | H25: 318 | I25: 634 | J25: 27 | K25: 35
A26: 牧場 | B26: 100 | C26: 161 | D26: 156 | E26: 317 | F26: 99 | G26: 149 | H26: 149 | I26: 298 | J26: -1 | K26: -19
A27: 美咲野１丁目 | B27: 187 | C27: 296 | D27: 322 | E27: 618 | F27: 191 | G27: 279 | H27: 310 | I27: 589 | J27: 4 | K27: -29
A28: 美咲野２丁目 | B28: 116 | C28: 188 | D28: 201 | E28: 389 | F28: 120 | G28: 182 | H28: 190 | I28: 372 | J28: 4 | K28: -17
A29: 美咲野３丁目 | B29: 129 | C29: 203 | D29: 193 | E29: 396 | F29: 130 | G29: 201 | H29: 173 | I29: 374 | J29: 1 | K29: -22
A30: 美咲野４丁目 | B30: 93 | C30: 158 | D30: 156 | E30: 314 | F30: 93 | G30: 145 | H30: 140 | I30: 285 | J30: 0 | K30: -29
A31: 美咲野５丁目 | B31: 90 | C31: 116 | D31: 131 | E31: 247 | F31: 90 | G31: 114 | H31: 123 | I31: 237 | J31: 0 | K31: -10
A32: 美咲野６丁目 | B32: 120 | C32: 189 | D32: 194 | E32: 383 | F32: 125 | G32: 184 | H32: 201 | I32: 385 | J32: 5 | K32: 2
A33: 盤尻 | B33: 8 | C33: 9 | D33: 8 | E33: 17 | F33: 9 | G33: 9 | H33: 5 | I33: 14 | J33: =F33-B33 -> 1 | K33: -3
A34: 桜森 | B34: - | C34: - | D34: - | E34: - | F34: - | G34: - | H34: - | I34: - | J34: - | K34: -
A35: 中島町１丁目 | B35: 268 | C35: 330 | D35: 331 | E35: 661 | F35: 254 | G35: 309 | H35: 309 | I35: 618 | J35: -14 | K35: -43
A36: 中島町２丁目 | B36: 203 | C36: 286 | D36: 295 | E36: 581 | F36: 223 | G36: 256 | H36: 275 | I36: 531 | J36: 20 | K36: -50
A37: 中島町３丁目 | B37: 70 | C37: 100 | D37: 95 | E37: 195 | F37: 76 | G37: 100 | H37: 104 | I37: 204 | J37: 6 | K37: 9
A38: 中島町４丁目 | B38: 516 | C38: 558 | D38: 566 | E38: 1124 | F38: 523 | G38: 534 | H38: 534 | I38: 1068 | J38: 7 | K38: -56
A39: 中島町５丁目 | B39: 318 | C39: 283 | D39: 238 | E39: 521 | F39: 329 | G39: 289 | H39: 276 | I39: 565 | J39: 11 | K39: 44
A40: 中島町６丁目 | B40: 355 | C40: 353 | D40: 420 | E40: 773 | F40: 381 | G40: 375 | H40: 400 | I40: 775 | J40: 26 | K40: 2
A41: 恵央町 | B41: 321 | C41: 271 | D41: 352 | E41: 623 | F41: 352 | G41: 286 | H41: 411 | I41: 697 | J41: 31 | K41: 74
A42: 幸町１丁目 | B42: 85 | C42: 110 | D42: 108 | E42: 218 | F42: 95 | G42: 114 | H42: 124 | I42: 238 | J42: 10 | K42: 20
A43: 幸町２丁目 | B43: 152 | C43: 208 | D43: 208 | E43: 416 | F43: 147 | G43: 169 | H43: 202 | I43: 371 | J43: -5 | K43: -45
A44: 幸町３丁目 | B44: 177 | C44: 201 | D44: 247 | E44: 448 | F44: 172 | G44: 200 | H44: 217 | I44: 417 | J44: -5 | K44: -31
A45: 幸町４丁目 | B45: - | C45: - | D45: - | E45: - | F45: - | G45: - | H45: - | I45: - | J45: - | K45: -
A46: 柏陽町１丁目 | B46: 334 | C46: 362 | D46: 387 | E46: 749 | F46: 311 | G46: 343 | H46: 370 | I46: 713 | J46: -23 | K46: -36
A47: 柏陽町３丁目 | B47: 513 | C47: 602 | D47: 591 | E47: 1193 | F47: 634 | G47: 810 | H47: 799 | I47: 1609 | J47: 121 | K47: 416
A48: 柏陽町４丁目 | B48: 325 | C48: 298 | D48: 349 | E48: 647 | F48: 294 | G48: 256 | H48: 307 | I48: 563 | J48: -31 | K48: -84
A49: 柏木町 | B49: 997 | C49: 1441 | D49: 1232 | E49: 2673 | F49: 465 | G49: 708 | H49: 597 | I49: 1305 | J49: -532 | K49: -1368
A50: 柏木町１丁目 | B50: - | C50: - | D50: - | E50: - | F50: 181 | G50: 216 | H50: 195 | I50: 411 | J50: =F50 -> 181 | K50: =I50 -> 411
A51: 柏木町２丁目 | B51: - | C51: - | D51: - | E51: - | F51: 115 | G51: 134 | H51: 128 | I51: 262 | J51: =F51 -> 115 | K51: =I51 -> 262
A52: 柏木町３丁目 | B52: - | C52: - | D52: - | E52: - | F52: 252 | G52: 282 | H52: 289 | I52: 571 | J52: 252 | K52: 571
A53: 北柏木町１丁目 | B53: 492 | C53: 646 | D53: 686 | E53: 1332 | F53: 295 | G53: 391 | H53: 408 | I53: 799 | J53: -197 | K53: -533
A54: 北柏木町２丁目 | B54: - | C54: - | D54: - | E54: - | F54: 221 | G54: 269 | H54: 277 | I54: 546 | J54: =F54 -> 221 | K54: =I54 -> 546
K55: （単位：人）
A56: 注）柏木町1～3丁目は柏木町から一部分割した新住居表示、北柏木町2丁目は、北柏木町1丁目から分割した町名

Sheet 地域の人口③
J1: （各年10月1日）
A2: 町名 | B2: 平成22年国勢調査 | F2: 平成27年国勢調査 | J2: 比較
B3: 世帯数 | C3: 男 | D3: 女 | E3: 計 | F3: 世帯数 | G3: 男 | H3: 女 | I3: 計 | J3: 世帯数 | K3: 人口
A4: 北柏木町３丁目 | B4: 10 | C4: 14 | D4: 12 | E4: 26 | F4: 10 | G4: 12 | H4: 12 | I4: 24 | J4: =F4-B4 -> 0 | K4: =I4-E4 -> -2
A5: 北柏木町４丁目 | B5: - | C5: - | D5: - | E5: - | F5: - | G5: - | H5: - | I5: - | J5: - | K5: -
A6: 北柏木町５丁目 | B6: - | C6: - | D6: - | E6: - | F6: - | G6: - | H6: - | I6: - | J6: - | K6: -
A7: 島松沢 | B7: 11 | C7: 12 | D7: 11 | E7: 23 | F7: 7 | G7: 8 | H7: 6 | I7: 14 | J7: =F7-B7 -> -4 | K7: =I7-E7 -> -9
A8: 恵み野東１丁目 | B8: 109 | C8: 133 | D8: 159 | E8: 292 | F8: 117 | G8: 134 | H8: 160 | I8: 294 | J8: 8 | K8: =I8-E8 -> 2
A9: 恵み野東２丁目 | B9: 205 | C9: 272 | D9: 288 | E9: 560 | F9: 198 | G9: 231 | H9: 271 | I9: 502 | J9: -7 | K9: -58
A10: 恵み野東３丁目 | B10: 145 | C10: 182 | D10: 203 | E10: 385 | F10: 151 | G10: 186 | H10: 202 | I10: 388 | J10: 6 | K10: 3
A11: 恵み野東４丁目 | B11: 128 | C11: 182 | D11: 196 | E11: 378 | F11: 228 | G11: 331 | H11: 359 | I11: 690 | J11: 100 | K11: 312
A12: 恵み野東５丁目 | B12: 216 | C12: 297 | D12: 286 | E12: 583 | F12: 212 | G12: 263 | H12: 284 | I12: 547 | J12: -4 | K12: -36
A13: 恵み野東６丁目 | B13: 170 | C13: 235 | D13: 231 | E13: 466 | F13: 170 | G13: 224 | H13: 231 | I13: 455 | J13: 0 | K13: -11
A14: 恵み野東７丁目 | B14: 181 | C14: 281 | D14: 287 | E14: 568 | F14: 183 | G14: 258 | H14: 270 | I14: 528 | J14: 2 | K14: -40
A15: 恵み野西１丁目 | B15: 285 | C15: 303 | D15: 388 | E15: 691 | F15: 286 | G15: 307 | H15: 376 | I15: 683 | J15: 1 | K15: -8
A16: 恵み野西２丁目 | B16: 97 | C16: 116 | D16: 172 | E16: 288 | F16: 94 | G16: 115 | H16: 166 | I16: 281 | J16: -3 | K16: -7
A17: 恵み野西３丁目 | B17: 143 | C17: 168 | D17: 182 | E17: 350 | F17: 138 | G17: 159 | H17: 164 | I17: 323 | J17: -5 | K17: -27
A18: 恵み野西４丁目 | B18: 179 | C18: 206 | D18: 242 | E18: 448 | F18: 185 | G18: 218 | H18: 244 | I18: 462 | J18: 6 | K18: 14
A19: 恵み野西５丁目 | B19: 104 | C19: 157 | D19: 194 | E19: 351 | F19: 103 | G19: 133 | H19: 201 | I19: 334 | J19: -1 | K19: -17
A20: 恵み野西６丁目 | B20: 317 | C20: 472 | D20: 467 | E20: 939 | F20: 322 | G20: 459 | H20: 442 | I20: 901 | J20: 5 | K20: -38
A21: 恵み野南１丁目 | B21: 162 | C21: 190 | D21: 212 | E21: 402 | F21: 121 | G21: 122 | H21: 157 | I21: 279 | J21: -41 | K21: -123
A22: 恵み野南２丁目 | B22: 213 | C22: 261 | D22: 304 | E22: 565 | F22: 222 | G22: 251 | H22: 287 | I22: 538 | J22: 9 | K22: -27
A23: 恵み野南３丁目 | B23: 244 | C23: 300 | D23: 328 | E23: 628 | F23: 247 | G23: 270 | H23: 320 | I23: 590 | J23: 3 | K23: -38
A24: 恵み野南４丁目 | B24: 286 | C24: 332 | D24: 418 | E24: 750 | F24: 291 | G24: 335 | H24: 389 | I24: 724 | J24: 5 | K24: -26
A25: 恵み野北１丁目 | B25: 197 | C25: 239 | D25: 276 | E25: 515 | F25: 197 | G25: 223 | H25: 239 | I25: 462 | J25: 0 | K25: =I25-E25 -> -53
A26: 恵み野北２丁目 | B26: 185 | C26: 227 | D26: 268 | E26: 495 | F26: 199 | G26: 226 | H26: 264 | I26: 490 | J26: 14 | K26: -5
A27: 恵み野北３丁目 | B27: 114 | C27: 124 | D27: 216 | E27: 340 | F27: 116 | G27: 153 | H27: 253 | I27: 406 | J27: 2 | K27: 66
A28: 恵み野北４丁目 | B28: 124 | C28: 151 | D28: 163 | E28: 314 | F28: 135 | G28: 157 | H28: 157 | I28: 314 | J28: 11 | K28: 0
A29: 恵み野北５丁目 | B29: 123 | C29: 165 | D29: 174 | E29: 339 | F29: 131 | G29: 152 | H29: 174 | I29: 326 | J29: 8 | K29: -13
A30: 恵み野北６丁目 | B30: 257 | C30: 322 | D30: 328 | E30: 650 | F30: 275 | G30: 319 | H30: 347 | I30: 666 | J30: 18 | K30: 16
A31: 恵み野北７丁目 | B31: 274 | C31: 415 | D31: 471 | E31: 886 | F31: 272 | G31: 374 | H31: 430 | I31: 804 | J31: -2 | K31: -82
A32: 恵み野里美１丁目 | B32: - | C32: - | D32: - | E32: - | F32: 30 | G32: 20 | H32: 24 | I32: 44 | J32: =F32 -> 30 | K32: =I32 -> 44
A33: 恵み野里美２丁目 | B33: - | C33: - | D33: - | E33: - | F33: 112 | G33: 183 | H33: 184 | I33: 367 | J33: =F33 -> 112 | K33: =I33 -> 367
A34: 島松寿町１丁目 | B34: 289 | C34: 308 | D34: 335 | E34: 643 | F34: 292 | G34: 282 | H34: 335 | I34: 617 | J34: 3 | K34: -26
A35: 島松寿町２丁目 | B35: 443 | C35: 478 | D35: 562 | E35: 1040 | F35: 445 | G35: 462 | H35: 533 | I35: 995 | J35: 2 | K35: -45
A36: 島松仲町１丁目 | B36: 119 | C36: 147 | D36: 161 | E36: 308 | F36: 129 | G36: 142 | H36: 160 | I36: 302 | J36: 10 | K36: -6
A37: 島松仲町２丁目 | B37: 109 | C37: 114 | D37: 125 | E37: 239 | F37: 102 | G37: 101 | H37: 119 | I37: 220 | J37: -7 | K37: -19
A38: 島松仲町３丁目 | B38: 71 | C38: 78 | D38: 86 | E38: 164 | F38: 68 | G38: 69 | H38: 90 | I38: 159 | J38: -3 | K38: -5
A39: 島松東町１丁目 | B39: 96 | C39: 130 | D39: 139 | E39: 269 | F39: 103 | G39: 129 | H39: 144 | I39: 273 | J39: 7 | K39: 4
A40: 島松東町２丁目 | B40: 145 | C40: 164 | D40: 194 | E40: 358 | F40: 143 | G40: 154 | H40: 181 | I40: 335 | J40: -2 | K40: -23
A41: 島松東町３丁目 | B41: 208 | C41: 249 | D41: 218 | E41: 467 | F41: 151 | G41: 176 | H41: 163 | I41: 339 | J41: -57 | K41: -128
A42: 島松東町４丁目 | B42: 78 | C42: 105 | D42: 108 | E42: 213 | F42: 84 | G42: 102 | H42: 103 | I42: 205 | J42: 6 | K42: -8
A43: 島松本町１丁目 | B43: 183 | C43: 233 | D43: 271 | E43: 504 | F43: 178 | G43: 224 | H43: 251 | I43: 475 | J43: -5 | K43: -29
A44: 島松本町２丁目 | B44: 255 | C44: 311 | D44: 332 | E44: 643 | F44: 253 | G44: 289 | H44: 313 | I44: 602 | J44: -2 | K44: =I44-E44 -> -41
A45: 島松本町３丁目 | B45: 286 | C45: 349 | D45: 394 | E45: 743 | F45: 281 | G45: 328 | H45: 374 | I45: 702 | J45: -5 | K45: -41
A46: 島松本町４丁目 | B46: 199 | C46: 265 | D46: 268 | E46: 533 | F46: 196 | G46: 256 | H46: 292 | I46: 548 | J46: -3 | K46: 15
A47: 島松旭町１丁目 | B47: 104 | C47: 151 | D47: 159 | E47: 310 | F47: 114 | G47: 145 | H47: 167 | I47: 312 | J47: 10 | K47: 2
A48: 島松旭町２丁目 | B48: 136 | C48: 173 | D48: 198 | E48: 371 | F48: 123 | G48: 164 | H48: 171 | I48: 335 | J48: -13 | K48: -36
A49: 島松旭町３丁目 | B49: 95 | C49: 152 | D49: 164 | E49: 316 | F49: 101 | G49: 158 | H49: 166 | I49: 324 | J49: 6 | K49: 8
A50: 島松旭町４丁目 | B50: 146 | C50: 185 | D50: 206 | E50: 391 | F50: 149 | G50: 173 | H50: 206 | I50: 379 | J50: 3 | K50: -12
A51: 西島松 | B51: 192 | C51: 561 | D51: 421 | E51: 982 | F51: 192 | G51: 462 | H51: 404 | I51: 866 | J51: 0 | K51: -116
A52: 南島松 | B52: 79 | C52: 137 | D52: 203 | E52: 340 | F52: 73 | G52: 103 | H52: 149 | I52: 252 | J52: -6 | K52: -88
A53: 中島松 | B53: 54 | C53: 92 | D53: 90 | E53: 182 | F53: 50 | G53: 72 | H53: 83 | I53: 155 | J53: -4 | K53: -27
A54: 下島松 | B54: 95 | C54: 229 | D54: 233 | E54: 462 | F54: 86 | G54: 189 | H54: 219 | I54: 408 | J54: -9 | K54: -54
A55: 穂栄 | B55: 42 | C55: 48 | D55: 53 | E55: 101 | F55: 36 | G55: 35 | H55: 46 | I55: 81 | J55: -6 | K55: =I55-E55 -> -20
A56: 北島 | B56: 32 | C56: 57 | D56: 47 | E56: 104 | F56: 31 | G56: 45 | H56: 40 | I56: 85 | J56: -1 | K56: -19
A57: 合計 | B57: 27634 | C57: 33945 | D57: 35439 | E57: 69384 | F57: 28846 | G57: 33781 | H57: 35921 | I57: 69702 | J57: =F57-B57 -> 1212 | K57: =I57-E57 -> 318
I58: （単位：人）

Sheet 国調年齢別
A1: ３）年齢別人口（５歳階級）
H2: （各年10月1日）
A3: 年 齢 （各 歳） | D3: 平成22年 | G3: 平成27年
D4: 総 数 | E4: 男 | F4: 女 | G4: 総 数 | H4: 男 | I4: 女
A5: 総数 | D5: 69384 | E5: 33945 | F5: 35439 | G5: 69702 | H5: 33781 | I5: 35921
B6: 85 以上 | D6: 1613 | E6: 491 | F6: 1122 | G6: 2377 | H6: 819 | I6: 1558
B7: 80～84 | D7: 2108 | E7: 948 | F7: 1160 | G7: 2613 | H7: 1151 | I7: 1462
B8: 75～79 | D8: 3015 | E8: 1427 | F8: 1588 | G8: 3372 | H8: 1488 | I8: 1884
B9: 70～74 | D9: 3612 | E9: 1654 | F9: 1958 | G9: 3869 | H9: 1751 | I9: 2118
B10: 65～69 | D10: 4079 | E10: 1872 | F10: 2207 | G10: 5234 | H10: 2507 | I10: 2727
B11: 60～64 | D11: 5331 | E11: 2581 | F11: 2750 | G11: 4966 | H11: 2396 | I11: 2570
B12: 55～59 | D12: 4957 | E12: 2391 | F12: 2566 | G12: 4166 | H12: 2047 | I12: 2119
B13: 50～54 | D13: 4164 | E13: 2051 | F13: 2113 | G13: 4342 | H13: 2115 | I13: 2227
B14: 45～49 | D14: 4338 | E14: 2131 | F14: 2207 | G14: 4661 | H14: 2312 | I14: 2349
B15: 40～44 | D15: 4626 | E15: 2314 | F15: 2312 | G15: 5139 | H15: 2545 | I15: 2594
B16: 35～39 | D16: 5066 | E16: 2540 | F16: 2526 | G16: 4576 | H16: 2299 | I16: 2277
B17: 30～34 | D17: 4520 | E17: 2299 | F17: 2221 | G17: 3751 | H17: 1833 | I17: 1918
B18: 25～29 | D18: 3699 | E18: 1866 | F18: 1833 | G18: 3240 | H18: 1671 | I18: 1569
B19: 20～24 | D19: 4185 | E19: 2157 | F19: 2028 | G19: 3970 | H19: 2058 | I19: 1912
B20: 15～19 | D20: 4224 | E20: 2216 | F20: 2008 | G20: 4086 | H20: 2090 | I20: 1996
B21: 10～14 | D21: 3498 | E21: 1780 | F21: 1718 | G21: 3365 | H21: 1684 | I21: 1681
B22: 5～9 | D22: 3264 | E22: 1662 | F22: 1602 | G22: 3120 | H22: 1591 | I22: 1529
B23: 0～4 | D23: 2928 | E23: 1467 | F23: 1461 | G23: 2647 | H23: 1296 | I23: 1351
B25: 不詳 | D25: 157 | E25: 98 | F25: 59 | G25: 208 | H25: 128 | I25: 80
A27: （再 掲）
B28: 15歳未満 | D28: 9690 | E28: 4909 | F28: 4781 | G28: 9132 | H28: 4571 | I28: 4561
B29: 15～64歳 | D29: 45110 | E29: 22546 | F29: 22564 | G29: 42897 | H29: 21366 | I29: 21531
B30: 65歳以上 | D30: 14427 | E30: 6392 | F30: 8035 | G30: 17465 | H30: 7716 | I30: 9749
B31: 不詳 | D31: 157 | E31: 98 | F31: 59 | G31: 208 | H31: 128 | I31: 80
A32: 年齢別割合(%)
B33: 15歳未満 | D33: 13.96575579 | E33: 14.46162911 | F33: 13.49078699 | G33: 13.1 | H33: 13.6 | I33: 12.7
B34: 15～64歳 | D34: 65.01498905 | E34: 66.41920754 | F34: 63.66996811 | G34: 61.7 | H34: 63.5 | I34: 60.1
B35: 65歳以上 | D35: 20.79297821 | E35: 18.83046104 | F35: 22.67276165 | G35: 25.1 | H35: 22.9 | I35: 27.2
A36: 平均年齢 | C36: (歳) | D36: 43.5 | E36: 42.3 | F36: 44.6 | G36: 45.4 | H36: 44.2 | I36: 46.6
A37: 年齢中位数 | C37: (歳) | D37: 43.3 | E37: 41.9 | F37: 45 | G37: 45.9 | H37: 44.5 | I37: 47.3
A38: 〈資料〉総務省 国勢調査 （第1次基本集計結果 第3表） | H38: （単位：人）

Sheet 人口集中地区、昼間・夜間人口、産業別就業人口
A1: ４）人口集中地区（ＤＩＤ）人口および面積
F2: （各年10月1日）
A3: 年 次 | B3: 地区 | C3: 人 口 集 中 地 区 | F3: 面 積 | G3: 人口密度 （１K㎡あたり）
C4: 総 数 | D4: 男 | E4: 女
A5: 平成７年 | C5: 52895 | D5: … | E5: … | F5: 11.8 | G5: 4478.8
B6: Ⅰ | C6: 45485 | F6: 10.4 | G6: 4390.4
B7: Ⅱ | C7: 7410 | F7: 1.4 | G7: 5145.8
A8: 平成12年 | C8: 56262 | F8: 12.23 | G8: 4600.3
B9: Ⅰ | C9: 48955 | D9: … | E9: … | F9: 10.8 | G9: 4532.9
B10: Ⅱ | C10: 7307 | F10: 1.43 | G10: 5109.8
A11: 平成17年 | C11: =C12+C13 -> 58772 | F11: =F12+F13 -> 12.78 | G11: 4598.7
B12: Ⅰ | C12: 51337 | D12: … | E12: … | F12: 11.3 | G12: 4543.1
B13: Ⅱ | C13: 7435 | F13: 1.48 | G13: 5023.6
A14: 平成22年 | C14: 62946 | D14: 30742 | E14: 32204 | F14: 13.89 | G14: 4531.7
B15: Ⅰ | C15: 55487 | D15: … | E15: … | F15: 12.38 | G15: 4482
B16: Ⅱ | C16: 7459 | F16: 1.51 | G16: 4939.7
A17: 平成27年 | C17: 63166 | D17: 30577 | E17: 32589 | F17: 13.92 | G17: 4537.8
B18: Ⅰ | C18: 56081 | D18: … | E18: … | F18: 12.4 | G18: 4522.7
B19: Ⅱ | C19: 7085 | D19: … | E19: … | F19: 1.52 | G19: 4661.2
A20: 〈資料〉総務省 国勢調査 | G20: （単位：K㎡）
A21: 注）Ⅰは恵庭･恵み野地区、Ⅱは島松地区をさす。
A22: 〈人口集中地区〉
A23: 国勢調査区を基礎単位地域として用い、人口密度１平方キロメートル当り4,000人以上の調
A24: 査区が市の境域内で互いに隣接して、人口5,000人以上を有する場合、この地域を人口集中
A25: 地区とした。
A27: ５）恵庭市の昼間人口、夜間人口（詳細は30～31頁）
F28: （各年10月1日）
B29: 年次 | C29: 平成７年 | D29: 平成12年 | E29: 平成17年 | F29: 平成22年 | G29: 平成27年
A30: 区分
A31: 昼間人口 | C31: 56822 | D31: 60882 | E31: 63123 | F31: 65782 | G31: 65918
A32: 夜間人口 | C32: 62345 | D32: 65238 | E32: 67614 | F32: 69384 | G32: 69702
A33: 昼間人口率 | C33: 90.9 | D33: 93.3 | E33: 93.4 | F33: 94.8 | G33: 94.6
A34: 〈資料〉総務省 国勢調査 | F34: （単位：人）
A36: ６）産業別就業人口（詳細は32～33頁）
G37: （各年10月1日）
B38: 年次 | C38: 平成7年 | E38: 平成12年 | G38: 平成17年
A39: 産業別 | D39: 構成比 | F39: 構成比 | H39: 構成比
A40: 第１次産業 | C40: 1523 | D40: 4.896948651 | E40: 1387 | F40: 4.484899437 | G40: 1464 | H40: 4.662717371
A41: 第２次産業 | C41: 8411 | D41: 27.04414649 | E41: 7934 | F41: 25.65478885 | G41: 7282 | H41: 23.19256004
A42: 第３次産業 | C42: 21167 | D42: 68.05890486 | E42: 21605 | F42: 69.86031171 | G42: 22652 | H42: 72.14472259
A43: 合 計 | C43: 31101 | D43: 100 | E43: 30926 | F43: 100 | G43: 31398 | H43: 100
B45: 年次 | C45: 平成22年 | E45: 平成27年
A46: 産業別 | D46: 構成比 | F46: 構成比
A47: 第１次産業 | C47: 1151 | D47: 3.747354713 | E47: 1212 | F47: 3.8
A48: 第２次産業 | C48: 6688 | D48: 21.77437734 | E48: 6550 | F48: 20.7
A49: 第３次産業 | C49: 22876 | D49: 74.47826795 | E49: 23884 | F49: 75.5 | G49: （注）分類不能の産業は
A50: 合 計 | C50: 30715 | D50: 100 | E50: 31646 | F50: 100 | G50: 第３次産業に含む
A51: 〈資料〉総務省 国勢調査 | E51: （単位：人）

Sheet 夜間及び昼間人口、通学者数
A1: ７）夜間人口および昼間人口（詳細）
O2: （各年10月1日）
A3: 年 次 | B3: 夜間人口 | C3: 流 出 人 口 | H3: 流 入 人 口 | M3: 昼間人口 | N3: 昼間人口率 | O3: 年 次
B4: （Ａ) | C4: 総 数 | D4: 通 勤 | E4: 通 学 | F4: 不 詳 | G4: 流出率 | H4: 総 数 | I4: 通 勤 | J4: 通 学 | K4: 不 詳 | L4: 流入率 | M4: （Ａ－Ｂ）＋（Ｃ）＝（Ｅ） | N4: （Ｅ）／（Ａ）
C5: （Ｂ） | G5: （Ｂ）／（Ａ） | H5: （Ｃ） | L5: （Ｃ）／（Ａ）
A6: 平成７年 | B6: 62345 | C6: 12239 | D6: 10009 | E6: 2230 | F6: － | G6: 19.6 | H6: 6716 | I6: 5309 | J6: 1407 | K6: － | L6: 10.8 | M6: 56822 | N6: 90.9 | O6: 平成７年
A7: 平成12年 | B7: 65238 | C7: 12703 | D7: 10389 | E7: 2314 | F7: － | G7: 19.5 | H7: 8347 | I7: 6557 | J7: 1790 | K7: － | L7: 12.8 | M7: 60882 | N7: 93.3 | O7: 平成12年
A8: 平成17年 | B8: 67614 | C8: 13701 | D8: 11568 | E8: 2133 | F8: － | G8: 20.3 | H8: 9210 | I8: 7157 | J8: 2053 | K8: － | L8: 13.6 | M8: 63123 | N8: 93.4 | O8: 平成17年
A9: 平成22年 | B9: 69384 | C9: 13477 | D9: 11306 | E9: … | F9: … | G9: =C9/B9*100 -> 19.42378646 | H9: 9875 | I9: 7639 | J9: =H9-I9 -> 2236 | K9: － | L9: =H9/B9*100 -> 14.23238787 | M9: =(B9-C9)+H9 -> 65782 | N9: 94.8 | O9: 平成22年
A10: 平成27年 | B10: 69702 | C10: 14254 | D10: 12272 | E10: 1982 | F10: － | G10: =C10/B10*100 -> 20.44991535 | H10: 10470 | I10: 7984 | J10: 2486 | L10: =H10/B10*100 -> 15.02108978 | M10: 65918 | N10: 94.6 | O10: 平成27年
A11: 〈資料〉総務省 国勢調査 | N11: （単位：人、％）
A12: 注）平成22年国勢調査については「不詳」を含めていない。
A14: ８）恵庭市に常住する就業・通学市町村別１５歳以上就業者および通学者数
O15: （各年10月1日）
A16: 年 次 | B16: 総 数 | C16: 市内で就業・通学する者 | F16: 他の市町村で就業・通学する者 | N16: 不 詳 | O16: 年 次
C17: 小 計 | D17: 自 宅 | E17: 自 宅 外 | F17: 小 計 | G17: 札 幌 市 | H17: 千 歳 市 | I17: 江 別 市 | J17: 苫小牧市 | K17: 北広島市 | L17: その他市町村 | M17: 道 外
A18: 平成７年 | B18: 35704 | C18: 23501 | D18: 2342 | E18: 21159 | F18: 12203 | G18: 4977 | H18: 4367 | I18: 251 | J18: 383 | K18: 1629 | L18: 591 | M18: 5 | N18: － | O18: 平成７年
B19: -31101 | C19: -21092 | D19: -2342 | E19: -18750 | F19: -10009 | G19: -3857 | H19: -4027 | I19: -136 | J19: -336 | K19: -1142 | L19: -506 | M19: -5
A20: 平成12年 | B20: 35736 | C20: 23051 | D20: 2422 | E20: 20629 | F20: 12685 | G20: 4940 | H20: 4762 | I20: 287 | J20: 422 | K20: 1581 | L20: 658 | M20: 35 | N20: － | O20: 平成12年
B21: -30926 | C21: -20516 | D21: -2422 | E21: -18094 | F21: -10410 | G21: -3835 | H21: -4349 | I21: -152 | J21: -343 | K21: -1139 | L21: -559 | M21: -33
A22: 平成17年 | B22: 36133 | C22: 22472 | D22: 2222 | E22: 20250 | F22: 13661 | G22: 4802 | H22: 5609 | I22: 383 | J22: 470 | K22: 1544 | L22: 762 | M22: 91 | N22: － | O22: 平成17年
B23: -31398 | C23: -19830 | D23: -2222 | E23: -17608 | F23: -11568 | G23: -3832 | H23: -5164 | I23: -207 | J23: -413 | K23: -1262 | L23: -604 | M23: -86
A24: 平成22年 | B24: 35636 | C24: 21029 | D24: 1814 | E24: 19215 | F24: 13370 | G24: 4776 | H24: 5552 | I24: 325 | J24: 3731 | K24: 1408 | L24: 708 | M24: 64 | N24: － | O24: 平成22年
B25: -30715 | C25: -18458 | D25: -1814 | E25: -16644 | F25: -11248 | G25: -3731 | H25: -5085 | I25: -194 | J25: -488 | K25: -1136 | L25: -580 | M25: -58
A26: 平成27年 | B26: 36015 | C26: 20779 | D26: 1965 | E26: 18814 | F26: 14274 | G26: 4897 | H26: 5893 | I26: 355 | J26: 613 | K26: 1482 | L26: 890 | M26: 144 | N26: 962 | O26: 平成27年
B27: -31646 | C27: -18458 | D27: -1965 | E27: -16493 | F27: -12339 | G27: -3885 | H27: -5501 | I27: -222 | J27: -558 | K27: -1281 | L27: -770 | M27: -122 | N27: -849
A28: 〈資料〉総務省 国勢調査 | N28: （単位：人）
A29: 注）（ ）内は就業者数。総数と就業者数の差は通学者数。
A31: ９）恵庭市に就業・通学する常住市町村別１５歳以上就業者および通学者数
M32: （各年10月1日）
A33: 年 次 | B33: 総 数 | C33: 市内に常住する者 | D33: 他 の 市 町 村 に 常 住 す る 者 | L33: 不 詳 | M33: 年 次
D34: 小 計 | E34: 札 幌 市 | F34: 千 歳 市 | G34: 江 別 市 | H34: 苫小牧市 | I34: 北広島市 | J34: その他市町村 | K34: 道 外
A35: 平成７年 | B35: 30207 | C35: 23501 | D35: 6706 | E35: 2555 | F35: 2094 | G35: 249 | H35: 160 | I35: 1170 | J35: 465 | K35: 13 | L35: － | M35: 平成７年
B36: -26401 | C36: -21092 | D36: -5309 | E36: -2006 | F36: -1753 | G36: -209 | H36: -118 | I36: -838 | J36: -372 | K36: -13
A37: 平成12年 | B37: 31417 | C37: 23051 | D37: 8366 | E37: 3201 | F37: 2544 | G37: 359 | H37: 203 | I37: 1466 | J37: 570 | K37: 23 | L37: － | M37: 平成12年
B38: -27096 | C38: -20516 | D38: -6580 | E38: -2529 | F38: -1967 | G38: -308 | H38: -133 | I38: -1177 | J38: -443 | K38: -23
A39: 平成17年 | B39: 31673 | C39: 22472 | D39: 9201 | E39: 3520 | F39: 2520 | G39: 495 | H39: 272 | I39: 1647 | J39: 719 | K39: 28 | L39: － | M39: 平成17年
B40: -26987 | C40: -19830 | D40: -7157 | E40: -2794 | F40: -1959 | G40: -400 | H40: -157 | I40: -1328 | J40: -495 | K40: -24
A41: 平成22年 | B41: 32066 | C41: 21029 | D41: 9864 | E41: 3930 | F41: 2799 | G41: 510 | H41: 288 | I41: 1516 | J41: 750 | K41: 12 | L41: － | M41: 平成22年
B42: -27048 | C42: -18458 | D42: -7639 | E42: -3046 | F42: -2211 | G42: -396 | H42: -173 | I42: -1275 | J42: -498 | K42: -11
A43: 平成27年 | B43: 32268 | C43: 20779 | D43: 10457 | E43: 4066 | F43: 3058 | G43: 525 | H43: 329 | I43: 1468 | J43: 967 | K43: 62 | L43: 1032 | M43: 平成27年
B44: -27358 | C44: -18458 | D44: -7984 | E44: -3130 | F44: -2478 | G44: -409 | H44: -164 | I44: -1253 | J44: -509 | K44: -41 | L44: -916
A45: 〈資料〉総務省 国勢調査 | L45: （単位：人）

Sheet 産業別就業人口
A1: １０）産業別就業人口（男女別１５歳以上就業者）
V2: （各年10月1日）
A3: 産 業 分 類 | D3: 平成7年 | G3: 平成12年 | J3: 平成17年 | M3: 平成22年 | P3: 平成27年 | S3: 産業別割合（％）
D4: 総 数 | E4: 男 | F4: 女 | G4: 総 数 | H4: 男 | I4: 女 | J4: 総 数 | K4: 男 | L4: 女 | M4: 総 数 | N4: 男 | O4: 女 | P4: 総 数 | Q4: 男 | R4: 女 | S4: 平成7年 | T4: 平成12年 | U4: 平成17年 | V4: 平成22年 | W4: 平成27年
A5: 総数 | D5: =SUM(D7+D13+D19+D42) -> 31101 | E5: 19824 | F5: 11277 | G5: 30926 | H5: 19368 | I5: 11558 | J5: 31398 | K5: 19094 | L5: 12304 | M5: 30715 | N5: 18226 | O5: 12489 | P5: 31646 | Q5: 18241 | R5: 13405 | S5: 100 | T5: 100 | U5: 100 | V5: =V7+V13+V19+V42 -> 100 | W5: 100
B7: 第１次産業 | D7: 1523 | E7: 778 | F7: 745 | G7: 1387 | H7: 712 | I7: 675 | J7: 1464 | K7: 778 | L7: 686 | M7: 1151 | N7: 613 | O7: 538 | P7: 1212 | Q7: 614 | R7: 598 | S7: 4.9 | T7: 4.5 | U7: 4.7 | V7: 3.7 | W7: =P7/P5*100 -> 3.829867914
C8: 農業・林業 | D8: 1484 | E8: 753 | F8: 731 | G8: 1341 | H8: 683 | I8: 658 | J8: 1447 | K8: 768 | L8: 679 | M8: 1144 | N8: 609 | O8: 535 | P8: 1207 | Q8: 610 | R8: 597 | S8: 4.8 | T8: 4.3 | U8: 4.6 | V8: 3.7 | W8: 3.8
C9: 農業 | D9: 1401 | E9: 687 | F9: 714 | G9: 1295 | H9: 646 | I9: 649 | J9: 1413 | K9: 737 | L9: 676 | M9: 1111 | N9: 578 | O9: 533 | P9: 1176 | Q9: 582 | R9: 594 | S9: 4.5 | T9: 4.2 | U9: 4.5 | V9: (3.6) | W9: 3.7
C10: 林業 | D10: 83 | E10: 66 | F10: 17 | G10: 46 | H10: 37 | I10: 9 | J10: 34 | K10: 31 | L10: 3 | M10: 33 | N10: 31 | O10: 2 | P10: 31 | Q10: 28 | R10: 3 | S10: 0.3 | T10: 0.1 | U10: 0.1 | V10: (0.1) | W10: 0.1
C11: 漁業 | D11: 39 | E11: 25 | F11: 14 | G11: 46 | H11: 29 | I11: 17 | J11: 17 | K11: 10 | L11: 7 | M11: 7 | N11: 4 | O11: 3 | P11: 5 | Q11: 4 | R11: 1 | S11: 0.1 | T11: 0.1 | U11: 0.1 | V11: 0.01592458118 | W11: =P11/31398*100 -> 0.01592458118
B13: 第２次産業 | D13: 8411 | E13: 5860 | F13: 2551 | G13: 7934 | H13: 5580 | I13: 2354 | J13: 7282 | K13: 5135 | L13: 2147 | M13: 6688 | N13: 4756 | O13: 1932 | P13: 6550 | Q13: 4696 | R13: 1854 | S13: 27 | T13: 25.7 | U13: 23.2 | V13: 21.8 | W13: =P13/P5*100 -> 20.69771851
C14: 鉱業・採石業・砂利採取業 | M14: 6 | N14: 5 | O14: 1 | P14: 11 | Q14: 10 | R14: 1 | S14: … | T14: … | U14: … | V14: 0.03475952727 | W14: =P14/P13*W13 -> 0.03475952727
C15: 鉱業 | D15: 31 | E15: 29 | F15: 2 | G15: 23 | H15: 21 | I15: 2 | J15: 12 | K15: 12 | L15: － | M15: … | N15: … | O15: … | P15: … | Q15: … | R15: … | S15: 0.1 | T15: 0.1 | U15: 0 | V15: … | W15: …
C16: 建設業 | D16: 3118 | E16: 2599 | F16: 519 | G16: 2806 | H16: 2408 | I16: 398 | J16: 2502 | K16: 2150 | L16: 352 | M16: 2051 | N16: 1789 | O16: 262 | P16: 1939 | Q16: 1690 | R16: 249 | S16: 10 | T16: 9.1 | U16: 8 | V16: 6.7 | W16: =P16/P13*W13 -> 6.127156671
C17: 製造業 | D17: 5262 | E17: 3232 | F17: 2030 | G17: 5105 | H17: 3151 | I17: 1954 | J17: 4768 | K17: 2973 | L17: 1795 | M17: 4631 | N17: 2962 | O17: 1669 | P17: 4600 | Q17: 2996 | R17: 1604 | S17: 16.9 | T17: 16.5 | U17: 15.2 | V17: 15.1 | W17: =P17/P13*W13 -> 14.53580231
B19: 第３次産業 | D19: 21123 | E19: 13158 | F19: 7965 | G19: 21369 | H19: 12954 | I19: 8415 | J19: 22091 | K19: 12834 | L19: 9257 | M19: 21548 | N19: 12085 | O19: 9463 | P19: 22605 | Q19: 12181 | R19: 10424 | S19: 67.9 | T19: 69.1 | U19: 70.4 | V19: 70.2 | W19: =P19/P5*100 -> 71.43082854
C20: 電気･ガス・熱供給・水道業 | D20: 137 | E20: 122 | F20: 15 | G20: 140 | H20: 126 | I20: 14 | J20: 134 | K20: 119 | L20: 15 | M20: 155 | N20: 135 | O20: 20 | P20: 147 | Q20: 131 | R20: 16 | S20: 0.4 | T20: 0.5 | U20: 0.4 | V20: 0.4645136826 | W20: =P20/P19*W19 -> 0.4645136826
C21: 情報通信業 | D21: … | E21: … | F21: … | G21: … | H21: … | I21: … | J21: 384 | K21: 310 | L21: 74 | M21: 341 | N21: 239 | O21: 102 | P21: 410 | Q21: 294 | R21: 116 | S21: … | T21: … | U21: 1.2 | V21: 1.1 | W21: =P21/P19*W19 -> 1.29558238
C22: 運輸業･郵便業 | D22: … | E22: … | F22: … | G22: … | H22: … | I22: … | J22: … | K22: … | L22: … | M22: 1913 | N22: 1579 | O22: 334 | P22: 1905 | Q22: 1516 | R22: 389 | S22: … | T22: … | U22: … | V22: 6.2 | W22: =P22/P19*W19 -> 6.019718132
C23: 運輸･通信業 | D23: 1875 | E23: 1563 | F23: 312 | G23: 1963 | H23: 1559 | I23: 404 | J23: … | K23: … | L23: … | M23: … | N23: … | O23: … | P23: … | Q23: … | R23: … | S23: 6 | T23: 6.3 | U23: … | V23: … | W23: …
C24: 運輸業 | D24: … | E24: … | F24: … | G24: … | H24: … | I24: … | J24: 1773 | K24: 1467 | L24: 306 | M24: … | N24: … | O24: … | P24: … | Q24: … | R24: … | S24: … | T24: … | U24: 5.6 | V24: … | W24: …
C25: 卸売･小売業 | D25: … | E25: … | F25: … | G25: … | H25: … | I25: … | J25: 4591 | K25: 2078 | L25: 2513 | M25: 4328 | N25: 1928 | O25: 2400 | P25: 4509 | Q25: 1908 | R25: 2601 | S25: … | T25: … | U25: 14.6 | V25: 14.1 | W25: =P25/P19*W19 -> 14.24824622
C26: 卸売･小売･飲食業 | D26: 5335 | E26: 2461 | F26: 2874 | G26: 5434 | H26: 2370 | I26: 3064 | J26: … | K26: … | L26: … | M26: … | N26: … | O26: … | P26: … | Q26: … | R26: … | S26: 17.2 | T26: 17.6 | U26: … | V26: … | W26: …
C27: 飲食店・宿泊業 | D27: … | E27: … | F27: … | G27: … | H27: … | I27: … | J27: 1374 | K27: 459 | L27: 915 | M27: … | N27: … | O27: … | P27: … | Q27: … | R27: … | S27: … | T27: … | U27: 4.4 | V27: … | W27: …
C28: 金融･保険業 | D28: … | E28: … | F28: … | G28: … | H28: … | I28: … | J28: 506 | K28: 217 | L28: 289 | M28: 422 | N28: 182 | O28: 240 | P28: 420 | Q28: 157 | R28: 263 | S28: … | T28: … | U28: 1.6 | V28: 1.4 | W28: =P28/P19*W19 -> 1.32718195
C29: 不動産業・物品賃貸業 | D29: … | E29: … | F29: … | G29: … | H29: … | I29: … | J29: … | K29: … | L29: … | M29: 453 | N29: 310 | O29: 143 | P29: 516 | Q29: 343 | R29: 173 | S29: … | T29: … | U29: … | V29: 1.5 | W29: =P29/P19*W19 -> 1.630537825
C30: 金融･保険業･不動産業 | D30: 936 | E30: 416 | F30: 520 | G30: 794 | H30: 386 | I30: 408 | J30: … | K30: … | L30: … | M30: … | N30: … | O30: … | P30: … | Q30: … | R30: … | S30: 3 | T30: 2.6 | U30: … | V30: … | W30: …
C31: 不動産業 | D31: … | E31: … | F31: … | G31: … | H31: … | I31: … | J31: 267 | K31: 193 | L31: 74 | M31: … | N31: … | O31: … | P31: … | Q31: … | R31: … | S31: … | T31: … | U31: 0.9 | V31: … | W31: …
C32: 学術研究・専門・技術サービス業 | D32: … | E32: … | F32: … | G32: … | H32: … | I32: … | J32: … | K32: … | L32: … | M32: 549 | N32: 373 | O32: 176 | P32: 623 | Q32: 406 | R32: 217 | S32: … | T32: … | U32: … | V32: 1.8 | W32: =P32/P19*W19 -> 1.968653226
C33: 宿泊業・飲食サービス業 | D33: … | E33: … | F33: … | G33: … | H33: … | I33: … | J33: … | K33: … | L33: … | M33: 1737 | N33: 556 | O33: 1181 | P33: 1772 | Q33: 557 | R33: 1215 | S33: … | T33: … | U33: … | V33: 5.7 | W33: =P33/P19*W19 -> 5.599443848
C34: 生活関連サービス業，娯楽業 | D34: … | E34: … | F34: … | G34: … | H34: … | I34: … | J34: … | K34: … | L34: … | M34: 1589 | N34: 618 | O34: 971 | P34: 1433 | Q34: 544 | R34: 889 | S34: … | T34: … | U34: … | V34: 5.2 | W34: =P34/P19*W19 -> 4.528218416
C35: 教育・学習支援業 | D35: … | E35: … | F35: … | G35: … | H35: … | I35: … | J35: 1349 | K35: 691 | L35: 658 | M35: 1246 | N35: 594 | O35: 652 | P35: 1251 | Q35: 586 | R35: 665 | S35: … | T35: … | U35: 4.3 | V35: 4.1 | W35: =P35/P19*W19 -> 3.953106238
C36: 医療・福祉 | D36: … | E36: … | F36: … | G36: … | H36: … | I36: … | J36: 2411 | K36: 595 | L36: 1816 | M36: 2812 | N36: 677 | O36: 2135 | P36: 3355 | Q36: 820 | R36: 2535 | S36: … | T36: … | U36: 7.7 | V36: 9.2 | W36: =P36/P19*W19 -> 10.60165582
C37: 複合サービス業 | D37: … | E37: … | F37: … | G37: … | H37: … | I37: … | J37: 359 | K37: 229 | L37: 130 | M37: 202 | N37: 116 | O37: 86 | P37: 251 | Q37: 150 | R37: 101 | S37: … | T37: … | U37: 1.1 | V37: 0.7 | W37: =P37/P19*W19 -> 0.7931492132
C38: サービス業 | D38: 7295 | E38: 3518 | F38: 3777 | G38: 7835 | H38: 3745 | I38: 4090 | J38: … | K38: … | L38: … | M38: … | N38: … | O38: … | P38: … | Q38: … | R38: … | S38: 23.5 | T38: 25.3 | U38: … | V38: … | W38: …
C39: サービス業(他に分類されないもの） | D39: … | E39: … | F39: … | G39: … | H39: … | I39: … | J39: 4417 | K39: 2348 | L39: 2069 | M39: 1709 | N39: 1090 | O39: 619 | P39: 2015 | Q39: 1260 | R39: 755 | S39: … | T39: … | U39: 14.1 | V39: 5.6 | W39: =P39/P19*W19 -> 6.367313405
C40: 公務(他に分類されないもの） | D40: 5545 | E40: 5078 | F40: 467 | G40: 5203 | H40: 4768 | I40: 435 | J40: 4526 | K40: 4128 | L40: 398 | M40: 4092 | N40: 3688 | O40: 404 | P40: 3998 | Q40: 3509 | R40: 489 | S40: 17.8 | T40: 16.8 | U40: 14.4 | V40: 13.3 | W40: =P40/P19*W19 -> 12.63350818
A42: 分類不能の産業 | D42: 44 | E42: 28 | F42: 16 | G42: 236 | H42: 122 | I42: 114 | J42: 561 | K42: 347 | L42: 214 | M42: 1328 | N42: 772 | O42: 556 | P42: 1279 | Q42: 750 | R42: 529 | S42: 0.2 | T42: 0.7 | U42: 1.8 | V42: 4.3 | W42: 4.1
A43: 〈資料〉総務省 国勢調査 | V43: （単位：人）
A44: 注) 総数の中に｢不詳｣を含んでいるので合計と総数は一致しない｡

Sheet グラフ（入力シート）追加
B1: 人口 | C1: 割合
A2: 年少人口 | B2: 9132 | C2: 13.1
A3: 生産年齢人口 | B3: 42897 | C3: 61.5
A4: 老齢人口 | B4: 17465 | C4: 25.1
B7: 割合
A8: 年少人口 | B8: 13.1
A9: 生産年齢人口 | B9: 61.5
A10: 老齢人口 | B10: 25.1

Sheet グラフ（入力シート）
A2: 年度 | C2: 道外 | D2: 道内
A3: H26 | B3: 転入 | C3: ='社会動態（道外）'!$B$8+'社会動態（道外）'!$B$9 -> 585 | D3: ='社会動態（道外）'!$B$7 -> 2536 | E3: =C3+D3 -> 3121
B4: 転出 | C4: ='社会動態（道外）'!$C$8+'社会動態（道外）'!$C$9 -> 760 | D4: ='社会動態（道外）'!$C$7 -> 2186 | E4: =C4+D4 -> 2946
A5: H27 | B5: 転入 | C5: ='社会動態（道外）'!$D$8+'社会動態（道外）'!$D$9 -> 673 | D5: ='社会動態（道外）'!$D$7 -> 2516 | E5: 3189
B6: 転出 | C6: ='社会動態（道外）'!$E$8+'社会動態（道外）'!$E$9 -> 803 | D6: ='社会動態（道外）'!$E$7 -> 2138 | E6: =C6+D6 -> 2941
A7: H28 | B7: 転入 | C7: ='社会動態（道外）'!$F$8+'社会動態（道外）'!$F$9 -> 746 | D7: ='社会動態（道外）'!$F$7 -> 2562 | E7: 3308
B8: 転出 | C8: ='社会動態（道外）'!$G$8+'社会動態（道外）'!$G$9 -> 843 | D8: ='社会動態（道外）'!$G$7 -> 2196 | E8: 3039
A9: H29 | B9: 転入 | C9: ='社会動態（道外）'!$H$8+'社会動態（道外）'!$H$9 -> 809 | D9: ='社会動態（道外）'!$H$7 -> 2694 | E9: 3503
B10: 転出 | C10: ='社会動態（道外）'!$I$8+'社会動態（道外）'!$I$9 -> 776 | D10: ='社会動態（道外）'!$I$7 -> 2326 | E10: 3102
A11: H30 | B11: 転入 | C11: ='社会動態（道外）'!$J$8+'社会動態（道外）'!$J$9 -> 763 | D11: ='社会動態（道外）'!$J$7 -> 2550 | E11: 3313
B12: 転出 | C12: ='社会動態（道外）'!$K$8+'社会動態（道外）'!$K$9 -> 794 | D12: ='社会動態（道外）'!$K$7 -> 2073 | E12: 2867

Sheet グラフ（入力シート）②
L2: 平成22年国勢調査データより
L3: 産業別人口（男女別15歳以上就業者）
M4: 第１次産業 | N4: 第２次産業 | O4: 第３次産業 | P4: 分類不能の産業
L5: 割合 | M5: 3.8 | N5: 20.7 | O5: 71.4 | P5: 4.1 | Q5: =SUM(M5:P5) -> 100
L6: 人数 | M6: 1212 | N6: 6550 | O6: 22605 | P6: 1279
M23: H27年 | N23: H22年 | O23: H17年 | P23: H12年 | Q23: H7年
L24: 第1次産業 | M24: 3.8 | N24: 3.7 | O24: 4.662717371 | P24: 4.5 | Q24: 4.9
L25: 第2次産業 | M25: 20.7 | N25: 21.8 | O25: 23.19256004 | P25: 25.7 | Q25: 27
L26: 第3次産業 | M26: 71.4 | N26: 70.2 | O26: 70.35798459 | P26: 69.1 | Q26: 67.9
L27: 不詳 | M27: 4.1 | N27: 4.3 | O27: 1.8 | P27: 0.7 | Q27: 0.2

Sheet グラフ（入力シート）⑤
A1: ３）年齢別人口（５歳階級）
C3: 17年 | D3: 22年 | E3: 27年
B4: 85 以上 | C4: 323 | D4: 491 | E4: 819
B5: 80～84 | C5: 500 | D5: 948 | E5: 1151
B6: 75～79 | C6: 1175 | D6: 1427 | E6: 1488
B7: 70～74 | C7: 1589 | D7: 1654 | E7: 1751
B8: 65～69 | C8: 1786 | D8: 1872 | E8: 2507
B9: 60～64 | C9: 1945 | D9: 2581 | E9: 2396
B10: 55～59 | C10: 2530 | D10: 2391 | E10: 2047
B11: 50～54 | C11: 2401 | D11: 2051 | E11: 2115
B12: 45～49 | C12: 2069 | D12: 2131 | E12: 2312
B13: 40～44 | C13: 2135 | D13: 2314 | E13: 2545
B14: 35～39 | C14: 2235 | D14: 2540 | E14: 2299
B15: 30～34 | C15: 2482 | D15: 2299 | E15: 1833
B16: 25～29 | C16: 2237 | D16: 1866 | E16: 1671
B17: 20～24 | C17: 2430 | D17: 2157 | E17: 2058
B18: 15～19 | C18: 2272 | D18: 2216 | E18: 2090
B19: 10～14 | C19: 1903 | D19: 1780 | E19: 1684
B20: 5～9 | C20: 1742 | D20: 1662 | E20: 1591
B21: 0～4 | C21: 1563 | D21: 1467 | E21: 1296
A22: 〈資料〉国勢調査 （第１次基本集計結果 第3表） | E22: （単位：人）

Sheet グラフ（入力シート）⑥
A1: ３）年齢別人口（５歳階級）
C3: 17年 | D3: 22年 | E3: 27年
B4: 85 以上 | C4: 785 | D4: 1122 | E4: 1558
B5: 80～84 | C5: 798 | D5: 1160 | E5: 1462
B6: 75～79 | C6: 1219 | D6: 1588 | E6: 1884
B7: 70～74 | C7: 1659 | D7: 1958 | E7: 2118
B8: 65～69 | C8: 2013 | D8: 2207 | E8: 2727
B9: 60～64 | C9: 2222 | D9: 2750 | E9: 2570
B10: 55～59 | C10: 2736 | D10: 2566 | E10: 2119
B11: 50～54 | C11: 2545 | D11: 2113 | E11: 2227
B12: 45～49 | C12: 2087 | D12: 2207 | E12: 2349
B13: 40～44 | C13: 2192 | D13: 2312 | E13: 2594
B14: 35～39 | C14: 2253 | D14: 2526 | E14: 2277
B15: 30～34 | C15: 2385 | D15: 2221 | E15: 1918
B16: 25～29 | C16: 2069 | D16: 1833 | E16: 1569
B17: 20～24 | C17: 2156 | D17: 2028 | E17: 1912
B18: 15～19 | C18: 2175 | D18: 2008 | E18: 1996
B19: 10～14 | C19: 1768 | D19: 1718 | E19: 1681
B20: 5～9 | C20: 1701 | D20: 1602 | E20: 1529
B21: 0～4 | C21: 1534 | D21: 1461 | E21: 1351
A22: 〈資料〉国勢調査 （第１次基本集計結果 第3表）

Sheet グラフ（入力シート）⑦
A1: 市民の平均年齢の推移
B3: 総数 | C3: 男 | D3: 女
A4: H12 | B4: 38.8 | C4: 37.3 | D4: 40.3
A5: H17 | B5: 41 | C5: 39.4 | D5: 42.5
A6: H22 | B6: 43.3 | C6: 41.9 | D6: 45
A7: H27 | B7: 45.9 | C7: 44.5 | D7: 47.3
